{"text_format":"1","workbook":"xlsx","n_sheets":5,"sheets":["Partida","Conversor","PGN","Archivo","Piezas"],"not_rendered":{"charts":0,"images":10,"macros":1,"external_links":0,"defined_names":26,"comments":0,"pivot_tables":0},"unopened":[],"bounds":{"document_bytes":16777216,"sheet_cells":100000,"rows_first":2000,"rows_last":500,"rows_between":2000,"halvings":0,"cell_chars":16384,"cell_head_chars":4096},"cells_cut":0,"cells_raw":0,"read":"whole","date_system":"1900"}

{"sheet":"Partida","index":0,"n_rows":36,"n_cols":7,"rows_kept":36,"cut":false,"hidden":false,"merged":[]}
[]
[null,null,"Archivo PGN (Portable Game Notation)","Partidas",null,"Partida"]
[null,null,{"$f":"pgnArchivo","v":"Paul Morphy_vs_Duke of Brunswick and Count Isouard_1858.__.__.pgn"},{"$f":"pgnPartidas","v":1}," ",1]
["Abrir un",null,null,null,null,"Elegir una partida"]
["archivo PGN",null,null,null,null,"Elegir Notación Algebraica"]
[null,null,"Partida en formato PGN","Elegir fila",null,"Español","Elegir jugada"]
[null,{"$f":"D7","v":1},"[Event \"Paul Morphy - Duke Karl Count Isouard (1858.??.??)\"]",1,null,{"$f":"INDEX(pgnJugadas,G7)","v":"1. e4 e5"},1]
[null,{"$f":"B7+1","v":2},"[Site \"Paris (France)\"]",null,null,{"$f":"INDEX(pgnJugadas,G8)","v":"2. Cf3 d6"},{"$f":"G7+1","v":2}]
[null,3,"[Date \"1858.??.??\"]",null,null,{"$f":"INDEX(pgnJugadas,G9)","v":"3. d4 Ag4"},{"$f":"G8+1","v":3}]
[null,4,"[Round \"?\"]",null,null,{"$f":"INDEX(pgnJugadas,G10)","v":"4. dxe5 Axf3"},4]
["Archivar",5,"[White \"Paul Morphy\"]",null,null,{"$f":"INDEX(pgnJugadas,G11)","v":"5. Dxf3 dxe5"},5]
["la partida",6,"[Black \"Duke of Brunswick and Count Isouard\"]",null,null,{"$f":"INDEX(pgnJugadas,G12)","v":"6. Ac4 Cf6"},6]
[null,7,"[Result \"1-0\"]",null,null,{"$f":"INDEX(pgnJugadas,G13)","v":"7. Db3 De7"},7]
[null,8,"",null,null,{"$f":"INDEX(pgnJugadas,G14)","v":"8. Cc3 c6"},8]
[null,9,"1. e4 e5 2. Nf3 d6 3. d4 Bg4 4. dxe5 Bxf3 5. Qxf3 dxe5 6. Bc4 Nf6 7. Qb3 Qe7 8. Nc3 c6 9. Bg5 b5 ",null,null,{"$f":"INDEX(pgnJugadas,G15)","v":"9. Ag5 b5"},9]
[null,10,"10. Nxb5 cxb5 11. Bxb5+ Nbd7 12. O-O-O Rd8 13. Rxd7 Rxd7 14. Rd1 Qe6 15. Bxd7+ Nxd7 16. Qb8+ Nxb8 ",null,null,{"$f":"INDEX(pgnJugadas,G16)","v":"10. Cxb5 cxb5"},10]
[null,11,"17. Rd8# 1-0",null,null,{"$f":"INDEX(pgnJugadas,G17)","v":"11. Axb5+ Cbd7"},11]
[null,12,"",null,null,{"$f":"INDEX(pgnJugadas,G18)","v":"12. O-O-O Td8"},12]
[null,13,"",null,null,{"$f":"INDEX(pgnJugadas,G19)","v":"13. Txd7 Txd7"},13]
[null,14,"",null,null,{"$f":"INDEX(pgnJugadas,G20)","v":"14. Td1 De6"},14]
["Guardar en",15,"",null,null,{"$f":"INDEX(pgnJugadas,G21)","v":"15. Axd7+ Cxd7"},15]
["archivo PGN",16,"",null,null,{"$f":"INDEX(pgnJugadas,G22)","v":"16. Db8+ Cxb8"},16]
[{"$f":"pgnJuegosArchivo & \" partidas\"","v":"0 partidas"},17,"",null,null,{"$f":"INDEX(pgnJugadas,G23)","v":"17. Td8# 1-0"},17]
[null,18,"",null,null,{"$f":"INDEX(pgnJugadas,G24)","v":""},18]
[null,19,"",null,null,{"$f":"INDEX(pgnJugadas,G25)","v":""},19]
[null,20,"",null,null,{"$f":"INDEX(pgnJugadas,G26)","v":""},{"$f":"G25+1","v":20}]
[null,21,"",null,null,{"$f":"INDEX(pgnJugadas,G27)","v":""},21]
[null,22,"",null,null,{"$f":"INDEX(pgnJugadas,G28)","v":""},22]
[null,23,"",null,null,{"$f":"INDEX(pgnJugadas,G29)","v":""},{"$f":"G28+1","v":23}]
[null,24,"",null,null,{"$f":"INDEX(pgnJugadas,G30)","v":""},24]
[null,25,"",null,null,{"$f":"INDEX(pgnJugadas,G31)","v":""},25]
[null,null,null,null,null,"Clic en una jugada para buscarla"]
[]
[null,"Blog:","#ExcelPedroWave"]
[null,"Canal:","Excel Pedro Wave - YouTube"]
[null,"COPYRIGHT:","Creative Commons — Atribución-NoComercial-CompartirIgual 3.0 No portada"]

{"sheet":"Conversor","index":1,"n_rows":205,"n_cols":35,"rows_kept":205,"cut":false,"hidden":true,"merged":[]}
["#","Formato PGN (Portable Game Notation)",null,"PGN original",null,null,"PGN texto",null,"PGN","Pos1","Pos2","Comentarios",null,"PGN","Pos1","Pos2","Variantes",null,"PGN","Pos1","Pos2","Referencias",null,"Jugada","Fila","Inglés","Inglés","Blancas","Negras","Blancas","Negras","Figuras","Blancas","Negras",{"$f":"pgnIdioma","v":"Español"}]
[{"$f":"IFERROR(MATCH(pgnPartida,PGN[0],0)+1,\"\")","v":2},{"$f":"IFERROR(IF(INDEX(PGN[0],A2-1)=pgnPartida,INDEX(PGN[PGN],A2-1),\"\"),\"\")","v":"[Event \"Paul Morphy - Duke Karl Count Isouard (1858.??.??)\"]"}," ",{"$f":"IF(LEFT(B2)=\"[\",\"\",IF(D1=\"\",\"\",D1&\" \")&B2)","v":""},{"$f":"IF(D2=\"\",0,E1+LEN(G1)+IF(G1=\"\",1,0))","v":0},{"$f":"IFERROR(MID($D$153,E2,100),\"\")","v":""},{"$f":"IF(E2=0,B2,IFERROR(MID($D$153,E2,MIN(100,LEN(F2))-H2),\"\"))","v":"[Event \"Paul Morphy - Duke Karl Count Isouard (1858.??.??)\"]"},{"$f":"IF(OR(E2=0,LEN(F2)<100),0,MATCH(\" \",CONCATENATE(MID(RIGHT(F2,15),{15;14;13;12;11;10;9;8;7;6;5;4;3;2;1},1)),0)-1)","v":0},{"$f":"SUBSTITUTE(SUBSTITUTE($D$153,\"{ (\",\"{(\"),\") }\",\")}\")","v":"1. e4 e5 2. Nf3 d6 3. d4 Bg4 4. dxe5 Bxf3 5. Qxf3 dxe5 6. Bc4 Nf6 7. Qb3 Qe7 8. Nc3 c6 9. Bg5 b5 10. Nxb5 cxb5 11. Bxb5+ Nbd7 12. O-O-O Rd8 13. Rxd7 Rxd7 14. Rd1 Qe6 15. Bxd7+ Nxd7 16. Qb8+ Nxb8 17. Rd8# 1-0"},{"$f":"IFERROR(FIND(\"{\",I2),LEN(I2)+2)","v":209},{"$f":"IFERROR(FIND(\"}\",I2,J2),LEN(I2)+2)","v":209},{"$f":"IFERROR(MID(I2,J2,K2-J2+1),\"\")","v":""}," ",{"$f":"$L$153","v":"1. e4 e5 2. Nf3 d6 3. d4 Bg4 4. dxe5 Bxf3 5. Qxf3 dxe5 6. Bc4 Nf6 7. Qb3 Qe7 8. Nc3 c6 9. Bg5 b5 10. Nxb5 cxb5 11. Bxb5+ Nbd7 12. O-O-O Rd8 13. Rxd7 Rxd7 14. Rd1 Qe6 15. Bxd7+ Nxd7 16. Qb8+ Nxb8 17. Rd8# 1-0"},{"$f":"IFERROR(FIND(\"(\",N2),LEN(N2)+2)","v":209},{"$f":"IFERROR(FIND(\")\",N2,O2),LEN(N2)+2)","v":209},{"$f":"IFERROR(MID(N2,O2,P2-O2+1),\"\")","v":""}," ",{"$f":"$Q$153","v":"1. e4 e5 2. Nf3 d6 3. d4 Bg4 4. dxe5 Bxf3 5. Qxf3 dxe5 6. Bc4 Nf6 7. Qb3 Qe7 8. Nc3 c6 9. Bg5 b5 10. Nxb5 cxb5 11. Bxb5+ Nbd7 12. O-O-O Rd8 13. Rxd7 Rxd7 14. Rd1 Qe6 15. Bxd7+ Nxd7 16. Qb8+ Nxb8 17. Rd8# 1-0"},{"$f":"IFERROR(FIND(\"$\",S2),LEN(S2)+2)","v":209},{"$f":"IFERROR(FIND(\" \",S2,T2),LEN(S2)+2)","v":209},{"$f":"IFERROR(MID(S2,T2,U2-T2+1),\"\")","v":""}," ",1,{"$f":"IFERROR(FIND($X2&\".\",$V$153),LEN($V$153)+2)","v":1},{"$f":"IFERROR(TRIM(MID(pgnAlgebraica,$Y2,$Y3-$Y2-1)),\"\")","v":"1. e4 e5"},{"$f":"IFERROR(SUBSTITUTE(SUBSTITUTE(Z2,LEFT(Z2,FIND(\" \",Z2)-1)&\".. \",\"\"),LEFT(Z2,FIND(\" \",Z2)-1)&\" . . \",\"\"),\"\")","v":"1. e4 e5"},{"$f":"SUBSTITUTE(SUBSTITUTE(AA2,X2&\". \",\"\"),\" \"&AC2,\"\")","v":"e4"},{"$f":"IFERROR(RIGHT(SUBSTITUTE(AA2,X2&\". \",\"\"),LEN(SUBSTITUTE(AA2,X2&\". \",\"\"))-FIND(\" \",SUBSTITUTE(AA2,X2&\". \",\"\"))),\"\")","v":"e5"},{"$f":"SUBSTITUTE(SUBSTITUTE(SUBSTITUTE(SUBSTITUTE(SUBSTITUTE($AB2,\"R\",\"♖\"),\"N\",\"♘\"),\"B\",\"♗\"),\"Q\",\"♕\"),\"K\",\"♔\")","v":"e4"},{"$f":"SUBSTITUTE(SUBSTITUTE(SUBSTITUTE(SUBSTITUTE(SUBSTITUTE($AC2,\"R\",\"♜\"),\"N\",\"♞\"),\"B\",\"♝\"),\"Q\",\"♛\"),\"K\",\"♚\")","v":"e5"},{"$f":"IF($AD2=\"\",\"\",$X2 & \". \" & $AD2 & \" \" & $AE2)","v":"1. e4 e5"},{"$f":"IF(pgnNidioma=0,$AD2,SUBSTITUTE(SUBSTITUTE(SUBSTITUTE(SUBSTITUTE(SUBSTITUTE($AD2,\n\"♔\",INDEX(TablaPiezas[],1,pgnNidioma)),\n\"♕\",INDEX(TablaPiezas[],2,pgnNidioma)),\n\"♖\",INDEX(TablaPiezas[],3,pgnNidioma)),\n\"♗\",INDEX(TablaPiezas[],4,pgnNidioma)),\n\"♘\",INDEX(TablaPiezas[],5,pgnNidioma)))","v":"e4"},{"$f":"IF(pgnNidioma=0,$AE2,SUBSTITUTE(SUBSTITUTE(SUBSTITUTE(SUBSTITUTE(SUBSTITUTE($AE2,\n\"♚\",INDEX(TablaPiezas[],1,pgnNidioma)),\n\"♛\",INDEX(TablaPiezas[],2,pgnNidioma)),\n\"♜\",INDEX(TablaPiezas[],3,pgnNidioma)),\n\"♝\",INDEX(TablaPiezas[],4,pgnNidioma)),\n\"♞\",INDEX(TablaPiezas[],5,pgnNidioma)))","v":"e5"},{"$f":"IF($AG2=\"\",\"\",$X2 & \". \" & $AG2 & \" \" & $AH2)","v":"1. e4 e5"}]
[{"$f":"IFERROR(A2+1,\"\")","v":3},{"$f":"IFERROR(IF(INDEX(PGN[0],A3-1)=pgnPartida,INDEX(PGN[PGN],A3-1),\"\"),\"\")","v":"[Site \"Paris (France)\"]"}," ","",{"$f":"IF(D3=\"\",0,E2+LEN(G2)+IF(G2=\"\",1,0))","v":0},"","[Site \"Paris (France)\"]",{"$f":"IF(OR(E3=0,LEN(F3)<100),0,MATCH(\" \",CONCATENATE(MID(RIGHT(F3,15),{15;14;13;12;11;10;9;8;7;6;5;4;3;2;1},1)),0)-1)","v":0},{"$f":"SUBSTITUTE(I2,L2,\"\")","v":"1. e4 e5 2. Nf3 d6 3. d4 Bg4 4. dxe5 Bxf3 5. Qxf3 dxe5 6. Bc4 Nf6 7. Qb3 Qe7 8. Nc3 c6 9. Bg5 b5 10. Nxb5 cxb5 11. Bxb5+ Nbd7 12. O-O-O Rd8 13. Rxd7 Rxd7 14. Rd1 Qe6 15. Bxd7+ Nxd7 16. Qb8+ Nxb8 17. Rd8# 1-0"},{"$f":"IFERROR(FIND(\"{\",I3),LEN(I3)+2)","v":209},{"$f":"IFERROR(FIND(\"}\",I3,J3),LEN(I3)+2)","v":209},{"$f":"IFERROR(MID(I3,J3,K3-J3+1),\"\")","v":""}," ",{"$f":"SUBSTITUTE(N2,Q2,IF(IFERROR(FIND(\"(\",Q2,2),0)>1,\"(\",\"\")&IF(IFERROR(FIND(\"(\",Q2,FIND(\"(\",Q2,2)+1),0)>1,\"(\",\"\"))","v":"1. e4 e5 2. Nf3 d6 3. d4 Bg4 4. dxe5 Bxf3 5. Qxf3 dxe5 6. Bc4 Nf6 7. Qb3 Qe7 8. Nc3 c6 9. Bg5 b5 10. Nxb5 cxb5 11. Bxb5+ Nbd7 12. O-O-O Rd8 13. Rxd7 Rxd7 14. Rd1 Qe6 15. Bxd7+ Nxd7 16. Qb8+ Nxb8 17. Rd8# 1-0"},{"$f":"IFERROR(FIND(\"(\",N3),LEN(N3)+2)","v":209},{"$f":"IFERROR(FIND(\")\",N3,O3),LEN(N3)+2)","v":209},{"$f":"IFERROR(MID(N3,O3,P3-O3+1),\"\")","v":""}," ",{"$f":"SUBSTITUTE(S2,V2,\"\")","v":"1. e4 e5 2. Nf3 d6 3. d4 Bg4 4. dxe5 Bxf3 5. Qxf3 dxe5 6. Bc4 Nf6 7. Qb3 Qe7 8. Nc3 c6 9. Bg5 b5 10. Nxb5 cxb5 11. Bxb5+ Nbd7 12. O-O-O Rd8 13. Rxd7 Rxd7 14. Rd1 Qe6 15. Bxd7+ Nxd7 16. Qb8+ Nxb8 17. Rd8# 1-0"},{"$f":"IFERROR(FIND(\"$\",S3),LEN(S3)+2)","v":209},{"$f":"IFERROR(FIND(\" \",S3,T3),LEN(S3)+2)","v":209},{"$f":"IFERROR(MID(S3,T3,U3-T3+1),\"\")","v":""}," ",2,10,"2. Nf3 d6","2. Nf3 d6",{"$f":"SUBSTITUTE(SUBSTITUTE(AA3,X3&\". \",\"\"),\" \"&AC3,\"\")","v":"Nf3"},{"$f":"IFERROR(RIGHT(SUBSTITUTE(AA3,X3&\". \",\"\"),LEN(SUBSTITUTE(AA3,X3&\". \",\"\"))-FIND(\" \",SUBSTITUTE(AA3,X3&\". \",\"\"))),\"\")","v":"d6"},{"$f":"SUBSTITUTE(SUBSTITUTE(SUBSTITUTE(SUBSTITUTE(SUBSTITUTE($AB3,\"R\",\"♖\"),\"N\",\"♘\"),\"B\",\"♗\"),\"Q\",\"♕\"),\"K\",\"♔\")","v":"♘f3"},{"$f":"SUBSTITUTE(SUBSTITUTE(SUBSTITUTE(SUBSTITUTE(SUBSTITUTE($AC3,\"R\",\"♜\"),\"N\",\"♞\"),\"B\",\"♝\"),\"Q\",\"♛\"),\"K\",\"♚\")","v":"d6"},{"$f":"IF($AD3=\"\",\"\",$X3 & \". \" & $AD3 & \" \" & $AE3)","v":"2. ♘f3 d6"},{"$f":"IF(pgnNidioma=0,$AD3,SUBSTITUTE(SUBSTITUTE(SUBSTITUTE(SUBSTITUTE(SUBSTITUTE($AD3,\n\"♔\",INDEX(TablaPiezas[],1,pgnNidioma)),\n\"♕\",INDEX(TablaPiezas[],2,pgnNidioma)),\n\"♖\",INDEX(TablaPiezas[],3,pgnNidioma)),\n\"♗\",INDEX(TablaPiezas[],4,pgnNidioma)),\n\"♘\",INDEX(TablaPiezas[],5,pgnNidioma)))","v":"Cf3"},{"$f":"IF(pgnNidioma=0,$AE3,SUBSTITUTE(SUBSTITUTE(SUBSTITUTE(SUBSTITUTE(SUBSTITUTE($AE3,\n\"♚\",INDEX(TablaPiezas[],1,pgnNidioma)),\n\"♛\",INDEX(TablaPiezas[],2,pgnNidioma)),\n\"♜\",INDEX(TablaPiezas[],3,pgnNidioma)),\n\"♝\",INDEX(TablaPiezas[],4,pgnNidioma)),\n\"♞\",INDEX(TablaPiezas[],5,pgnNidioma)))","v":"d6"},{"$f":"IF($AG3=\"\",\"\",$X3 & \". \" & $AG3 & \" \" & $AH3)","v":"2. Cf3 d6"}]
[4,{"$f":"IFERROR(IF(INDEX(PGN[0],A4-1)=pgnPartida,INDEX(PGN[PGN],A4-1),\"\"),\"\")","v":"[Date \"1858.??.??\"]"}," ","",0,"","[Date \"1858.??.??\"]",{"$f":"IF(OR(E4=0,LEN(F4)<100),0,MATCH(\" \",CONCATENATE(MID(RIGHT(F4,15),{15;14;13;12;11;10;9;8;7;6;5;4;3;2;1},1)),0)-1)","v":0},"1. e4 e5 2. Nf3 d6 3. d4 Bg4 4. dxe5 Bxf3 5. Qxf3 dxe5 6. Bc4 Nf6 7. Qb3 Qe7 8. Nc3 c6 9. Bg5 b5 10. Nxb5 cxb5 11. Bxb5+ Nbd7 12. O-O-O Rd8 13. Rxd7 Rxd7 14. Rd1 Qe6 15. Bxd7+ Nxd7 16. Qb8+ Nxb8 17. Rd8# 1-0",209,209,""," ","1. e4 e5 2. Nf3 d6 3. d4 Bg4 4. dxe5 Bxf3 5. Qxf3 dxe5 6. Bc4 Nf6 7. Qb3 Qe7 8. Nc3 c6 9. Bg5 b5 10. Nxb5 cxb5 11. Bxb5+ Nbd7 12. O-O-O Rd8 13. Rxd7 Rxd7 14. Rd1 Qe6 15. Bxd7+ Nxd7 16. Qb8+ Nxb8 17. Rd8# 1-0",209,209,""," ","1. e4 e5 2. Nf3 d6 3. d4 Bg4 4. dxe5 Bxf3 5. Qxf3 dxe5 6. Bc4 Nf6 7. Qb3 Qe7 8. Nc3 c6 9. Bg5 b5 10. Nxb5 cxb5 11. Bxb5+ Nbd7 12. O-O-O Rd8 13. Rxd7 Rxd7 14. Rd1 Qe6 15. Bxd7+ Nxd7 16. Qb8+ Nxb8 17. Rd8# 1-0",209,209,""," ",3,20,"3. d4 Bg4","3. d4 Bg4","d4","Bg4","d4","♝g4","3. d4 ♝g4",{"$f":"IF(pgnNidioma=0,$AD4,SUBSTITUTE(SUBSTITUTE(SUBSTITUTE(SUBSTITUTE(SUBSTITUTE($AD4,\n\"♔\",INDEX(TablaPiezas[],1,pgnNidioma)),\n\"♕\",INDEX(TablaPiezas[],2,pgnNidioma)),\n\"♖\",INDEX(TablaPiezas[],3,pgnNidioma)),\n\"♗\",INDEX(TablaPiezas[],4,pgnNidioma)),\n\"♘\",INDEX(TablaPiezas[],5,pgnNidioma)))","v":"d4"},{"$f":"IF(pgnNidioma=0,$AE4,SUBSTITUTE(SUBSTITUTE(SUBSTITUTE(SUBSTITUTE(SUBSTITUTE($AE4,\n\"♚\",INDEX(TablaPiezas[],1,pgnNidioma)),\n\"♛\",INDEX(TablaPiezas[],2,pgnNidioma)),\n\"♜\",INDEX(TablaPiezas[],3,pgnNidioma)),\n\"♝\",INDEX(TablaPiezas[],4,pgnNidioma)),\n\"♞\",INDEX(TablaPiezas[],5,pgnNidioma)))","v":"Ag4"},"3. d4 Ag4"]
[5,{"$f":"IFERROR(IF(INDEX(PGN[0],A5-1)=pgnPartida,INDEX(PGN[PGN],A5-1),\"\"),\"\")","v":"[Round \"?\"]"}," ","",0,"","[Round \"?\"]",{"$f":"IF(OR(E5=0,LEN(F5)<100),0,MATCH(\" \",CONCATENATE(MID(RIGHT(F5,15),{15;14;13;12;11;10;9;8;7;6;5;4;3;2;1},1)),0)-1)","v":0},"1. e4 e5 2. Nf3 d6 3. d4 Bg4 4. dxe5 Bxf3 5. Qxf3 dxe5 6. Bc4 Nf6 7. Qb3 Qe7 8. Nc3 c6 9. Bg5 b5 10. Nxb5 cxb5 11. Bxb5+ Nbd7 12. O-O-O Rd8 13. Rxd7 Rxd7 14. Rd1 Qe6 15. Bxd7+ Nxd7 16. Qb8+ Nxb8 17. Rd8# 1-0",209,209,""," ","1. e4 e5 2. Nf3 d6 3. d4 Bg4 4. dxe5 Bxf3 5. Qxf3 dxe5 6. Bc4 Nf6 7. Qb3 Qe7 8. Nc3 c6 9. Bg5 b5 10. Nxb5 cxb5 11. Bxb5+ Nbd7 12. O-O-O Rd8 13. Rxd7 Rxd7 14. Rd1 Qe6 15. Bxd7+ Nxd7 16. Qb8+ Nxb8 17. Rd8# 1-0",209,209,""," ","1. e4 e5 2. Nf3 d6 3. d4 Bg4 4. dxe5 Bxf3 5. Qxf3 dxe5 6. Bc4 Nf6 7. Qb3 Qe7 8. Nc3 c6 9. Bg5 b5 10. Nxb5 cxb5 11. Bxb5+ Nbd7 12. O-O-O Rd8 13. Rxd7 Rxd7 14. Rd1 Qe6 15. Bxd7+ Nxd7 16. Qb8+ Nxb8 17. Rd8# 1-0",209,209,""," ",4,30,"4. dxe5 Bxf3","4. dxe5 Bxf3","dxe5","Bxf3","dxe5","♝xf3","4. dxe5 ♝xf3",{"$f":"IF(pgnNidioma=0,$AD5,SUBSTITUTE(SUBSTITUTE(SUBSTITUTE(SUBSTITUTE(SUBSTITUTE($AD5,\n\"♔\",INDEX(TablaPiezas[],1,pgnNidioma)),\n\"♕\",INDEX(TablaPiezas[],2,pgnNidioma)),\n\"♖\",INDEX(TablaPiezas[],3,pgnNidioma)),\n\"♗\",INDEX(TablaPiezas[],4,pgnNidioma)),\n\"♘\",INDEX(TablaPiezas[],5,pgnNidioma)))","v":"dxe5"},{"$f":"IF(pgnNidioma=0,$AE5,SUBSTITUTE(SUBSTITUTE(SUBSTITUTE(SUBSTITUTE(SUBSTITUTE($AE5,\n\"♚\",INDEX(TablaPiezas[],1,pgnNidioma)),\n\"♛\",INDEX(TablaPiezas[],2,pgnNidioma)),\n\"♜\",INDEX(TablaPiezas[],3,pgnNidioma)),\n\"♝\",INDEX(TablaPiezas[],4,pgnNidioma)),\n\"♞\",INDEX(TablaPiezas[],5,pgnNidioma)))","v":"Axf3"},"4. dxe5 Axf3"]
[6,{"$f":"IFERROR(IF(INDEX(PGN[0],A6-1)=pgnPartida,INDEX(PGN[PGN],A6-1),\"\"),\"\")","v":"[White \"Paul Morphy\"]"}," ","",0,"","[White \"Paul Morphy\"]",{"$f":"IF(OR(E6=0,LEN(F6)<100),0,MATCH(\" \",CONCATENATE(MID(RIGHT(F6,15),{15;14;13;12;11;10;9;8;7;6;5;4;3;2;1},1)),0)-1)","v":0},"1. e4 e5 2. Nf3 d6 3. d4 Bg4 4. dxe5 Bxf3 5. Qxf3 dxe5 6. Bc4 Nf6 7. Qb3 Qe7 8. Nc3 c6 9. Bg5 b5 10. Nxb5 cxb5 11. Bxb5+ Nbd7 12. O-O-O Rd8 13. Rxd7 Rxd7 14. Rd1 Qe6 15. Bxd7+ Nxd7 16. Qb8+ Nxb8 17. Rd8# 1-0",209,209,""," ","1. e4 e5 2. Nf3 d6 3. d4 Bg4 4. dxe5 Bxf3 5. Qxf3 dxe5 6. Bc4 Nf6 7. Qb3 Qe7 8. Nc3 c6 9. Bg5 b5 10. Nxb5 cxb5 11. Bxb5+ Nbd7 12. O-O-O Rd8 13. Rxd7 Rxd7 14. Rd1 Qe6 15. Bxd7+ Nxd7 16. Qb8+ Nxb8 17. Rd8# 1-0",209,209,""," ","1. e4 e5 2. Nf3 d6 3. d4 Bg4 4. dxe5 Bxf3 5. Qxf3 dxe5 6. Bc4 Nf6 7. Qb3 Qe7 8. Nc3 c6 9. Bg5 b5 10. Nxb5 cxb5 11. Bxb5+ Nbd7 12. O-O-O Rd8 13. Rxd7 Rxd7 14. Rd1 Qe6 15. Bxd7+ Nxd7 16. Qb8+ Nxb8 17. Rd8# 1-0",{"$f":"IFERROR(FIND(\"$\",S6),LEN(S6)+2)","v":209},{"$f":"IFERROR(FIND(\" \",S6,T6),LEN(S6)+2)","v":209},""," ",5,43,"5. Qxf3 dxe5","5. Qxf3 dxe5","Qxf3","dxe5","♕xf3","dxe5","5. ♕xf3 dxe5",{"$f":"IF(pgnNidioma=0,$AD6,SUBSTITUTE(SUBSTITUTE(SUBSTITUTE(SUBSTITUTE(SUBSTITUTE($AD6,\n\"♔\",INDEX(TablaPiezas[],1,pgnNidioma)),\n\"♕\",INDEX(TablaPiezas[],2,pgnNidioma)),\n\"♖\",INDEX(TablaPiezas[],3,pgnNidioma)),\n\"♗\",INDEX(TablaPiezas[],4,pgnNidioma)),\n\"♘\",INDEX(TablaPiezas[],5,pgnNidioma)))","v":"Dxf3"},{"$f":"IF(pgnNidioma=0,$AE6,SUBSTITUTE(SUBSTITUTE(SUBSTITUTE(SUBSTITUTE(SUBSTITUTE($AE6,\n\"♚\",INDEX(TablaPiezas[],1,pgnNidioma)),\n\"♛\",INDEX(TablaPiezas[],2,pgnNidioma)),\n\"♜\",INDEX(TablaPiezas[],3,pgnNidioma)),\n\"♝\",INDEX(TablaPiezas[],4,pgnNidioma)),\n\"♞\",INDEX(TablaPiezas[],5,pgnNidioma)))","v":"dxe5"},"5. Dxf3 dxe5"]
[7,{"$f":"IFERROR(IF(INDEX(PGN[0],A7-1)=pgnPartida,INDEX(PGN[PGN],A7-1),\"\"),\"\")","v":"[Black \"Duke of Brunswick and Count Isouard\"]"}," ","",0,"","[Black \"Duke of Brunswick and Count Isouard\"]",{"$f":"IF(OR(E7=0,LEN(F7)<100),0,MATCH(\" \",CONCATENATE(MID(RIGHT(F7,15),{15;14;13;12;11;10;9;8;7;6;5;4;3;2;1},1)),0)-1)","v":0},"1. e4 e5 2. Nf3 d6 3. d4 Bg4 4. dxe5 Bxf3 5. Qxf3 dxe5 6. Bc4 Nf6 7. Qb3 Qe7 8. Nc3 c6 9. Bg5 b5 10. Nxb5 cxb5 11. Bxb5+ Nbd7 12. O-O-O Rd8 13. Rxd7 Rxd7 14. Rd1 Qe6 15. Bxd7+ Nxd7 16. Qb8+ Nxb8 17. Rd8# 1-0",209,209,""," ","1. e4 e5 2. Nf3 d6 3. d4 Bg4 4. dxe5 Bxf3 5. Qxf3 dxe5 6. Bc4 Nf6 7. Qb3 Qe7 8. Nc3 c6 9. Bg5 b5 10. Nxb5 cxb5 11. Bxb5+ Nbd7 12. O-O-O Rd8 13. Rxd7 Rxd7 14. Rd1 Qe6 15. Bxd7+ Nxd7 16. Qb8+ Nxb8 17. Rd8# 1-0",209,209,""," ","1. e4 e5 2. Nf3 d6 3. d4 Bg4 4. dxe5 Bxf3 5. Qxf3 dxe5 6. Bc4 Nf6 7. Qb3 Qe7 8. Nc3 c6 9. Bg5 b5 10. Nxb5 cxb5 11. Bxb5+ Nbd7 12. O-O-O Rd8 13. Rxd7 Rxd7 14. Rd1 Qe6 15. Bxd7+ Nxd7 16. Qb8+ Nxb8 17. Rd8# 1-0",209,209,""," ",6,56,"6. Bc4 Nf6","6. Bc4 Nf6","Bc4","Nf6","♗c4","♞f6","6. ♗c4 ♞f6",{"$f":"IF(pgnNidioma=0,$AD7,SUBSTITUTE(SUBSTITUTE(SUBSTITUTE(SUBSTITUTE(SUBSTITUTE($AD7,\n\"♔\",INDEX(TablaPiezas[],1,pgnNidioma)),\n\"♕\",INDEX(TablaPiezas[],2,pgnNidioma)),\n\"♖\",INDEX(TablaPiezas[],3,pgnNidioma)),\n\"♗\",INDEX(TablaPiezas[],4,pgnNidioma)),\n\"♘\",INDEX(TablaPiezas[],5,pgnNidioma)))","v":"Ac4"},{"$f":"IF(pgnNidioma=0,$AE7,SUBSTITUTE(SUBSTITUTE(SUBSTITUTE(SUBSTITUTE(SUBSTITUTE($AE7,\n\"♚\",INDEX(TablaPiezas[],1,pgnNidioma)),\n\"♛\",INDEX(TablaPiezas[],2,pgnNidioma)),\n\"♜\",INDEX(TablaPiezas[],3,pgnNidioma)),\n\"♝\",INDEX(TablaPiezas[],4,pgnNidioma)),\n\"♞\",INDEX(TablaPiezas[],5,pgnNidioma)))","v":"Cf6"},"6. Ac4 Cf6"]
[8,{"$f":"IFERROR(IF(INDEX(PGN[0],A8-1)=pgnPartida,INDEX(PGN[PGN],A8-1),\"\"),\"\")","v":"[Result \"1-0\"]"}," ","",0,"","[Result \"1-0\"]",{"$f":"IF(OR(E8=0,LEN(F8)<100),0,MATCH(\" \",CONCATENATE(MID(RIGHT(F8,15),{15;14;13;12;11;10;9;8;7;6;5;4;3;2;1},1)),0)-1)","v":0},"1. e4 e5 2. Nf3 d6 3. d4 Bg4 4. dxe5 Bxf3 5. Qxf3 dxe5 6. Bc4 Nf6 7. Qb3 Qe7 8. Nc3 c6 9. Bg5 b5 10. Nxb5 cxb5 11. Bxb5+ Nbd7 12. O-O-O Rd8 13. Rxd7 Rxd7 14. Rd1 Qe6 15. Bxd7+ Nxd7 16. Qb8+ Nxb8 17. Rd8# 1-0",209,209,""," ","1. e4 e5 2. Nf3 d6 3. d4 Bg4 4. dxe5 Bxf3 5. Qxf3 dxe5 6. Bc4 Nf6 7. Qb3 Qe7 8. Nc3 c6 9. Bg5 b5 10. Nxb5 cxb5 11. Bxb5+ Nbd7 12. O-O-O Rd8 13. Rxd7 Rxd7 14. Rd1 Qe6 15. Bxd7+ Nxd7 16. Qb8+ Nxb8 17. Rd8# 1-0",209,209,""," ","1. e4 e5 2. Nf3 d6 3. d4 Bg4 4. dxe5 Bxf3 5. Qxf3 dxe5 6. Bc4 Nf6 7. Qb3 Qe7 8. Nc3 c6 9. Bg5 b5 10. Nxb5 cxb5 11. Bxb5+ Nbd7 12. O-O-O Rd8 13. Rxd7 Rxd7 14. Rd1 Qe6 15. Bxd7+ Nxd7 16. Qb8+ Nxb8 17. Rd8# 1-0",209,209,""," ",7,67,"7. Qb3 Qe7","7. Qb3 Qe7","Qb3","Qe7","♕b3","♛e7","7. ♕b3 ♛e7",{"$f":"IF(pgnNidioma=0,$AD8,SUBSTITUTE(SUBSTITUTE(SUBSTITUTE(SUBSTITUTE(SUBSTITUTE($AD8,\n\"♔\",INDEX(TablaPiezas[],1,pgnNidioma)),\n\"♕\",INDEX(TablaPiezas[],2,pgnNidioma)),\n\"♖\",INDEX(TablaPiezas[],3,pgnNidioma)),\n\"♗\",INDEX(TablaPiezas[],4,pgnNidioma)),\n\"♘\",INDEX(TablaPiezas[],5,pgnNidioma)))","v":"Db3"},{"$f":"IF(pgnNidioma=0,$AE8,SUBSTITUTE(SUBSTITUTE(SUBSTITUTE(SUBSTITUTE(SUBSTITUTE($AE8,\n\"♚\",INDEX(TablaPiezas[],1,pgnNidioma)),\n\"♛\",INDEX(TablaPiezas[],2,pgnNidioma)),\n\"♜\",INDEX(TablaPiezas[],3,pgnNidioma)),\n\"♝\",INDEX(TablaPiezas[],4,pgnNidioma)),\n\"♞\",INDEX(TablaPiezas[],5,pgnNidioma)))","v":"De7"},"7. Db3 De7"]
[9,{"$f":"IFERROR(IF(INDEX(PGN[0],A9-1)=pgnPartida,INDEX(PGN[PGN],A9-1),\"\"),\"\")","v":""}," ","",0,"","",{"$f":"IF(OR(E9=0,LEN(F9)<100),0,MATCH(\" \",CONCATENATE(MID(RIGHT(F9,15),{15;14;13;12;11;10;9;8;7;6;5;4;3;2;1},1)),0)-1)","v":0},"1. e4 e5 2. Nf3 d6 3. d4 Bg4 4. dxe5 Bxf3 5. Qxf3 dxe5 6. Bc4 Nf6 7. Qb3 Qe7 8. Nc3 c6 9. Bg5 b5 10. Nxb5 cxb5 11. Bxb5+ Nbd7 12. O-O-O Rd8 13. Rxd7 Rxd7 14. Rd1 Qe6 15. Bxd7+ Nxd7 16. Qb8+ Nxb8 17. Rd8# 1-0",209,209,""," ","1. e4 e5 2. Nf3 d6 3. d4 Bg4 4. dxe5 Bxf3 5. Qxf3 dxe5 6. Bc4 Nf6 7. Qb3 Qe7 8. Nc3 c6 9. Bg5 b5 10. Nxb5 cxb5 11. Bxb5+ Nbd7 12. O-O-O Rd8 13. Rxd7 Rxd7 14. Rd1 Qe6 15. Bxd7+ Nxd7 16. Qb8+ Nxb8 17. Rd8# 1-0",209,209,""," ","1. e4 e5 2. Nf3 d6 3. d4 Bg4 4. dxe5 Bxf3 5. Qxf3 dxe5 6. Bc4 Nf6 7. Qb3 Qe7 8. Nc3 c6 9. Bg5 b5 10. Nxb5 cxb5 11. Bxb5+ Nbd7 12. O-O-O Rd8 13. Rxd7 Rxd7 14. Rd1 Qe6 15. Bxd7+ Nxd7 16. Qb8+ Nxb8 17. Rd8# 1-0",209,209,""," ",8,78,"8. Nc3 c6","8. Nc3 c6","Nc3","c6","♘c3","c6","8. ♘c3 c6",{"$f":"IF(pgnNidioma=0,$AD9,SUBSTITUTE(SUBSTITUTE(SUBSTITUTE(SUBSTITUTE(SUBSTITUTE($AD9,\n\"♔\",INDEX(TablaPiezas[],1,pgnNidioma)),\n\"♕\",INDEX(TablaPiezas[],2,pgnNidioma)),\n\"♖\",INDEX(TablaPiezas[],3,pgnNidioma)),\n\"♗\",INDEX(TablaPiezas[],4,pgnNidioma)),\n\"♘\",INDEX(TablaPiezas[],5,pgnNidioma)))","v":"Cc3"},{"$f":"IF(pgnNidioma=0,$AE9,SUBSTITUTE(SUBSTITUTE(SUBSTITUTE(SUBSTITUTE(SUBSTITUTE($AE9,\n\"♚\",INDEX(TablaPiezas[],1,pgnNidioma)),\n\"♛\",INDEX(TablaPiezas[],2,pgnNidioma)),\n\"♜\",INDEX(TablaPiezas[],3,pgnNidioma)),\n\"♝\",INDEX(TablaPiezas[],4,pgnNidioma)),\n\"♞\",INDEX(TablaPiezas[],5,pgnNidioma)))","v":"c6"},"8. Cc3 c6"]
[10,{"$f":"IFERROR(IF(INDEX(PGN[0],A10-1)=pgnPartida,INDEX(PGN[PGN],A10-1),\"\"),\"\")","v":"1. e4 e5 2. Nf3 d6 3. d4 Bg4 4. dxe5 Bxf3 5. Qxf3 dxe5 6. Bc4 Nf6 7. Qb3 Qe7 8."}," ",{"$f":"IF(LEFT(B10)=\"[\",\"\",IF(D9=\"\",\"\",D9&\" \")&B10)","v":"1. e4 e5 2. Nf3 d6 3. d4 Bg4 4. dxe5 Bxf3 5. Qxf3 dxe5 6. Bc4 Nf6 7. Qb3 Qe7 8."},1,"1. e4 e5 2. Nf3 d6 3. d4 Bg4 4. dxe5 Bxf3 5. Qxf3 dxe5 6. Bc4 Nf6 7. Qb3 Qe7 8. Nc3 c6 9. Bg5 b5 10.","1. e4 e5 2. Nf3 d6 3. d4 Bg4 4. dxe5 Bxf3 5. Qxf3 dxe5 6. Bc4 Nf6 7. Qb3 Qe7 8. Nc3 c6 9. Bg5 b5 ",{"$f":"IF(OR(E10=0,LEN(F10)<100),0,MATCH(\" \",CONCATENATE(MID(RIGHT(F10,15),{15;14;13;12;11;10;9;8;7;6;5;4;3;2;1},1)),0)-1)","v":3},"1. e4 e5 2. Nf3 d6 3. d4 Bg4 4. dxe5 Bxf3 5. Qxf3 dxe5 6. Bc4 Nf6 7. Qb3 Qe7 8. Nc3 c6 9. Bg5 b5 10. Nxb5 cxb5 11. Bxb5+ Nbd7 12. O-O-O Rd8 13. Rxd7 Rxd7 14. Rd1 Qe6 15. Bxd7+ Nxd7 16. Qb8+ Nxb8 17. Rd8# 1-0",209,209,""," ","1. e4 e5 2. Nf3 d6 3. d4 Bg4 4. dxe5 Bxf3 5. Qxf3 dxe5 6. Bc4 Nf6 7. Qb3 Qe7 8. Nc3 c6 9. Bg5 b5 10. Nxb5 cxb5 11. Bxb5+ Nbd7 12. O-O-O Rd8 13. Rxd7 Rxd7 14. Rd1 Qe6 15. Bxd7+ Nxd7 16. Qb8+ Nxb8 17. Rd8# 1-0",209,209,""," ","1. e4 e5 2. Nf3 d6 3. d4 Bg4 4. dxe5 Bxf3 5. Qxf3 dxe5 6. Bc4 Nf6 7. Qb3 Qe7 8. Nc3 c6 9. Bg5 b5 10. Nxb5 cxb5 11. Bxb5+ Nbd7 12. O-O-O Rd8 13. Rxd7 Rxd7 14. Rd1 Qe6 15. Bxd7+ Nxd7 16. Qb8+ Nxb8 17. Rd8# 1-0",209,209,""," ",9,88,"9. Bg5 b5","9. Bg5 b5","Bg5","b5","♗g5","b5","9. ♗g5 b5",{"$f":"IF(pgnNidioma=0,$AD10,SUBSTITUTE(SUBSTITUTE(SUBSTITUTE(SUBSTITUTE(SUBSTITUTE($AD10,\n\"♔\",INDEX(TablaPiezas[],1,pgnNidioma)),\n\"♕\",INDEX(TablaPiezas[],2,pgnNidioma)),\n\"♖\",INDEX(TablaPiezas[],3,pgnNidioma)),\n\"♗\",INDEX(TablaPiezas[],4,pgnNidioma)),\n\"♘\",INDEX(TablaPiezas[],5,pgnNidioma)))","v":"Ag5"},{"$f":"IF(pgnNidioma=0,$AE10,SUBSTITUTE(SUBSTITUTE(SUBSTITUTE(SUBSTITUTE(SUBSTITUTE($AE10,\n\"♚\",INDEX(TablaPiezas[],1,pgnNidioma)),\n\"♛\",INDEX(TablaPiezas[],2,pgnNidioma)),\n\"♜\",INDEX(TablaPiezas[],3,pgnNidioma)),\n\"♝\",INDEX(TablaPiezas[],4,pgnNidioma)),\n\"♞\",INDEX(TablaPiezas[],5,pgnNidioma)))","v":"b5"},"9. Ag5 b5"]
[11,{"$f":"IFERROR(IF(INDEX(PGN[0],A11-1)=pgnPartida,INDEX(PGN[PGN],A11-1),\"\"),\"\")","v":"Nc3 c6 9. Bg5 b5 10. Nxb5 cxb5 11. Bxb5+ Nbd7 12. O-O-O Rd8 13. Rxd7 Rxd7 14."}," ",{"$f":"IF(LEFT(B11)=\"[\",\"\",IF(D10=\"\",\"\",D10&\" \")&B11)","v":"1. e4 e5 2. Nf3 d6 3. d4 Bg4 4. dxe5 Bxf3 5. Qxf3 dxe5 6. Bc4 Nf6 7. Qb3 Qe7 8. Nc3 c6 9. Bg5 b5 10. Nxb5 cxb5 11. Bxb5+ Nbd7 12. O-O-O Rd8 13. Rxd7 Rxd7 14."},98,"10. Nxb5 cxb5 11. Bxb5+ Nbd7 12. O-O-O Rd8 13. Rxd7 Rxd7 14. Rd1 Qe6 15. Bxd7+ Nxd7 16. Qb8+ Nxb8 17","10. Nxb5 cxb5 11. Bxb5+ Nbd7 12. O-O-O Rd8 13. Rxd7 Rxd7 14. Rd1 Qe6 15. Bxd7+ Nxd7 16. Qb8+ Nxb8 ",{"$f":"IF(OR(E11=0,LEN(F11)<100),0,MATCH(\" \",CONCATENATE(MID(RIGHT(F11,15),{15;14;13;12;11;10;9;8;7;6;5;4;3;2;1},1)),0)-1)","v":2},"1. e4 e5 2. Nf3 d6 3. d4 Bg4 4. dxe5 Bxf3 5. Qxf3 dxe5 6. Bc4 Nf6 7. Qb3 Qe7 8. Nc3 c6 9. Bg5 b5 10. Nxb5 cxb5 11. Bxb5+ Nbd7 12. O-O-O Rd8 13. Rxd7 Rxd7 14. Rd1 Qe6 15. Bxd7+ Nxd7 16. Qb8+ Nxb8 17. Rd8# 1-0",209,209,""," ","1. e4 e5 2. Nf3 d6 3. d4 Bg4 4. dxe5 Bxf3 5. Qxf3 dxe5 6. Bc4 Nf6 7. Qb3 Qe7 8. Nc3 c6 9. Bg5 b5 10. Nxb5 cxb5 11. Bxb5+ Nbd7 12. O-O-O Rd8 13. Rxd7 Rxd7 14. Rd1 Qe6 15. Bxd7+ Nxd7 16. Qb8+ Nxb8 17. Rd8# 1-0",209,209,""," ","1. e4 e5 2. Nf3 d6 3. d4 Bg4 4. dxe5 Bxf3 5. Qxf3 dxe5 6. Bc4 Nf6 7. Qb3 Qe7 8. Nc3 c6 9. Bg5 b5 10. Nxb5 cxb5 11. Bxb5+ Nbd7 12. O-O-O Rd8 13. Rxd7 Rxd7 14. Rd1 Qe6 15. Bxd7+ Nxd7 16. Qb8+ Nxb8 17. Rd8# 1-0",209,209,""," ",10,98,"10. Nxb5 cxb5","10. Nxb5 cxb5","Nxb5","cxb5","♘xb5","cxb5","10. ♘xb5 cxb5",{"$f":"IF(pgnNidioma=0,$AD11,SUBSTITUTE(SUBSTITUTE(SUBSTITUTE(SUBSTITUTE(SUBSTITUTE($AD11,\n\"♔\",INDEX(TablaPiezas[],1,pgnNidioma)),\n\"♕\",INDEX(TablaPiezas[],2,pgnNidioma)),\n\"♖\",INDEX(TablaPiezas[],3,pgnNidioma)),\n\"♗\",INDEX(TablaPiezas[],4,pgnNidioma)),\n\"♘\",INDEX(TablaPiezas[],5,pgnNidioma)))","v":"Cxb5"},{"$f":"IF(pgnNidioma=0,$AE11,SUBSTITUTE(SUBSTITUTE(SUBSTITUTE(SUBSTITUTE(SUBSTITUTE($AE11,\n\"♚\",INDEX(TablaPiezas[],1,pgnNidioma)),\n\"♛\",INDEX(TablaPiezas[],2,pgnNidioma)),\n\"♜\",INDEX(TablaPiezas[],3,pgnNidioma)),\n\"♝\",INDEX(TablaPiezas[],4,pgnNidioma)),\n\"♞\",INDEX(TablaPiezas[],5,pgnNidioma)))","v":"cxb5"},"10. Cxb5 cxb5"]
[12,{"$f":"IFERROR(IF(INDEX(PGN[0],A12-1)=pgnPartida,INDEX(PGN[PGN],A12-1),\"\"),\"\")","v":"Rd1 Qe6 15. Bxd7+ Nxd7 16. Qb8+ Nxb8 17. Rd8# 1-0"}," ","1. e4 e5 2. Nf3 d6 3. d4 Bg4 4. dxe5 Bxf3 5. Qxf3 dxe5 6. Bc4 Nf6 7. Qb3 Qe7 8. Nc3 c6 9. Bg5 b5 10. Nxb5 cxb5 11. Bxb5+ Nbd7 12. O-O-O Rd8 13. Rxd7 Rxd7 14. Rd1 Qe6 15. Bxd7+ Nxd7 16. Qb8+ Nxb8 17. Rd8# 1-0",196,"17. Rd8# 1-0","17. Rd8# 1-0",{"$f":"IF(OR(E12=0,LEN(F12)<100),0,MATCH(\" \",CONCATENATE(MID(RIGHT(F12,15),{15;14;13;12;11;10;9;8;7;6;5;4;3;2;1},1)),0)-1)","v":0},"1. e4 e5 2. Nf3 d6 3. d4 Bg4 4. dxe5 Bxf3 5. Qxf3 dxe5 6. Bc4 Nf6 7. Qb3 Qe7 8. Nc3 c6 9. Bg5 b5 10. Nxb5 cxb5 11. Bxb5+ Nbd7 12. O-O-O Rd8 13. Rxd7 Rxd7 14. Rd1 Qe6 15. Bxd7+ Nxd7 16. Qb8+ Nxb8 17. Rd8# 1-0",209,209,""," ","1. e4 e5 2. Nf3 d6 3. d4 Bg4 4. dxe5 Bxf3 5. Qxf3 dxe5 6. Bc4 Nf6 7. Qb3 Qe7 8. Nc3 c6 9. Bg5 b5 10. Nxb5 cxb5 11. Bxb5+ Nbd7 12. O-O-O Rd8 13. Rxd7 Rxd7 14. Rd1 Qe6 15. Bxd7+ Nxd7 16. Qb8+ Nxb8 17. Rd8# 1-0",209,209,""," ","1. e4 e5 2. Nf3 d6 3. d4 Bg4 4. dxe5 Bxf3 5. Qxf3 dxe5 6. Bc4 Nf6 7. Qb3 Qe7 8. Nc3 c6 9. Bg5 b5 10. Nxb5 cxb5 11. Bxb5+ Nbd7 12. O-O-O Rd8 13. Rxd7 Rxd7 14. Rd1 Qe6 15. Bxd7+ Nxd7 16. Qb8+ Nxb8 17. Rd8# 1-0",209,209,""," ",11,112,"11. Bxb5+ Nbd7","11. Bxb5+ Nbd7","Bxb5+","Nbd7","♗xb5+","♞bd7","11. ♗xb5+ ♞bd7",{"$f":"IF(pgnNidioma=0,$AD12,SUBSTITUTE(SUBSTITUTE(SUBSTITUTE(SUBSTITUTE(SUBSTITUTE($AD12,\n\"♔\",INDEX(TablaPiezas[],1,pgnNidioma)),\n\"♕\",INDEX(TablaPiezas[],2,pgnNidioma)),\n\"♖\",INDEX(TablaPiezas[],3,pgnNidioma)),\n\"♗\",INDEX(TablaPiezas[],4,pgnNidioma)),\n\"♘\",INDEX(TablaPiezas[],5,pgnNidioma)))","v":"Axb5+"},{"$f":"IF(pgnNidioma=0,$AE12,SUBSTITUTE(SUBSTITUTE(SUBSTITUTE(SUBSTITUTE(SUBSTITUTE($AE12,\n\"♚\",INDEX(TablaPiezas[],1,pgnNidioma)),\n\"♛\",INDEX(TablaPiezas[],2,pgnNidioma)),\n\"♜\",INDEX(TablaPiezas[],3,pgnNidioma)),\n\"♝\",INDEX(TablaPiezas[],4,pgnNidioma)),\n\"♞\",INDEX(TablaPiezas[],5,pgnNidioma)))","v":"Cbd7"},"11. Axb5+ Cbd7"]
[13,{"$f":"IFERROR(IF(INDEX(PGN[0],A13-1)=pgnPartida,INDEX(PGN[PGN],A13-1),\"\"),\"\")","v":""}," ","1. e4 e5 2. Nf3 d6 3. d4 Bg4 4. dxe5 Bxf3 5. Qxf3 dxe5 6. Bc4 Nf6 7. Qb3 Qe7 8. Nc3 c6 9. Bg5 b5 10. Nxb5 cxb5 11. Bxb5+ Nbd7 12. O-O-O Rd8 13. Rxd7 Rxd7 14. Rd1 Qe6 15. Bxd7+ Nxd7 16. Qb8+ Nxb8 17. Rd8# 1-0 ",208,"","",{"$f":"IF(OR(E13=0,LEN(F13)<100),0,MATCH(\" \",CONCATENATE(MID(RIGHT(F13,15),{15;14;13;12;11;10;9;8;7;6;5;4;3;2;1},1)),0)-1)","v":0},"1. e4 e5 2. Nf3 d6 3. d4 Bg4 4. dxe5 Bxf3 5. Qxf3 dxe5 6. Bc4 Nf6 7. Qb3 Qe7 8. Nc3 c6 9. Bg5 b5 10. Nxb5 cxb5 11. Bxb5+ Nbd7 12. O-O-O Rd8 13. Rxd7 Rxd7 14. Rd1 Qe6 15. Bxd7+ Nxd7 16. Qb8+ Nxb8 17. Rd8# 1-0",209,209,""," ","1. e4 e5 2. Nf3 d6 3. d4 Bg4 4. dxe5 Bxf3 5. Qxf3 dxe5 6. Bc4 Nf6 7. Qb3 Qe7 8. Nc3 c6 9. Bg5 b5 10. Nxb5 cxb5 11. Bxb5+ Nbd7 12. O-O-O Rd8 13. Rxd7 Rxd7 14. Rd1 Qe6 15. Bxd7+ Nxd7 16. Qb8+ Nxb8 17. Rd8# 1-0",209,209,""," ","1. e4 e5 2. Nf3 d6 3. d4 Bg4 4. dxe5 Bxf3 5. Qxf3 dxe5 6. Bc4 Nf6 7. Qb3 Qe7 8. Nc3 c6 9. Bg5 b5 10. Nxb5 cxb5 11. Bxb5+ Nbd7 12. O-O-O Rd8 13. Rxd7 Rxd7 14. Rd1 Qe6 15. Bxd7+ Nxd7 16. Qb8+ Nxb8 17. Rd8# 1-0",209,209,""," ",12,127,"12. O-O-O Rd8","12. O-O-O Rd8","O-O-O","Rd8","O-O-O","♜d8","12. O-O-O ♜d8",{"$f":"IF(pgnNidioma=0,$AD13,SUBSTITUTE(SUBSTITUTE(SUBSTITUTE(SUBSTITUTE(SUBSTITUTE($AD13,\n\"♔\",INDEX(TablaPiezas[],1,pgnNidioma)),\n\"♕\",INDEX(TablaPiezas[],2,pgnNidioma)),\n\"♖\",INDEX(TablaPiezas[],3,pgnNidioma)),\n\"♗\",INDEX(TablaPiezas[],4,pgnNidioma)),\n\"♘\",INDEX(TablaPiezas[],5,pgnNidioma)))","v":"O-O-O"},{"$f":"IF(pgnNidioma=0,$AE13,SUBSTITUTE(SUBSTITUTE(SUBSTITUTE(SUBSTITUTE(SUBSTITUTE($AE13,\n\"♚\",INDEX(TablaPiezas[],1,pgnNidioma)),\n\"♛\",INDEX(TablaPiezas[],2,pgnNidioma)),\n\"♜\",INDEX(TablaPiezas[],3,pgnNidioma)),\n\"♝\",INDEX(TablaPiezas[],4,pgnNidioma)),\n\"♞\",INDEX(TablaPiezas[],5,pgnNidioma)))","v":"Td8"},"12. O-O-O Td8"]
[14,{"$f":"IFERROR(IF(INDEX(PGN[0],A14-1)=pgnPartida,INDEX(PGN[PGN],A14-1),\"\"),\"\")","v":""}," ","1. e4 e5 2. Nf3 d6 3. d4 Bg4 4. dxe5 Bxf3 5. Qxf3 dxe5 6. Bc4 Nf6 7. Qb3 Qe7 8. Nc3 c6 9. Bg5 b5 10. Nxb5 cxb5 11. Bxb5+ Nbd7 12. O-O-O Rd8 13. Rxd7 Rxd7 14. Rd1 Qe6 15. Bxd7+ Nxd7 16. Qb8+ Nxb8 17. Rd8# 1-0  ",209,"","",{"$f":"IF(OR(E14=0,LEN(F14)<100),0,MATCH(\" \",CONCATENATE(MID(RIGHT(F14,15),{15;14;13;12;11;10;9;8;7;6;5;4;3;2;1},1)),0)-1)","v":0},"1. e4 e5 2. Nf3 d6 3. d4 Bg4 4. dxe5 Bxf3 5. Qxf3 dxe5 6. Bc4 Nf6 7. Qb3 Qe7 8. Nc3 c6 9. Bg5 b5 10. Nxb5 cxb5 11. Bxb5+ Nbd7 12. O-O-O Rd8 13. Rxd7 Rxd7 14. Rd1 Qe6 15. Bxd7+ Nxd7 16. Qb8+ Nxb8 17. Rd8# 1-0",209,209,""," ","1. e4 e5 2. Nf3 d6 3. d4 Bg4 4. dxe5 Bxf3 5. Qxf3 dxe5 6. Bc4 Nf6 7. Qb3 Qe7 8. Nc3 c6 9. Bg5 b5 10. Nxb5 cxb5 11. Bxb5+ Nbd7 12. O-O-O Rd8 13. Rxd7 Rxd7 14. Rd1 Qe6 15. Bxd7+ Nxd7 16. Qb8+ Nxb8 17. Rd8# 1-0",209,209,""," ","1. e4 e5 2. Nf3 d6 3. d4 Bg4 4. dxe5 Bxf3 5. Qxf3 dxe5 6. Bc4 Nf6 7. Qb3 Qe7 8. Nc3 c6 9. Bg5 b5 10. Nxb5 cxb5 11. Bxb5+ Nbd7 12. O-O-O Rd8 13. Rxd7 Rxd7 14. Rd1 Qe6 15. Bxd7+ Nxd7 16. Qb8+ Nxb8 17. Rd8# 1-0",209,209,""," ",13,141,"13. Rxd7 Rxd7","13. Rxd7 Rxd7","Rxd7","Rxd7","♖xd7","♜xd7","13. ♖xd7 ♜xd7",{"$f":"IF(pgnNidioma=0,$AD14,SUBSTITUTE(SUBSTITUTE(SUBSTITUTE(SUBSTITUTE(SUBSTITUTE($AD14,\n\"♔\",INDEX(TablaPiezas[],1,pgnNidioma)),\n\"♕\",INDEX(TablaPiezas[],2,pgnNidioma)),\n\"♖\",INDEX(TablaPiezas[],3,pgnNidioma)),\n\"♗\",INDEX(TablaPiezas[],4,pgnNidioma)),\n\"♘\",INDEX(TablaPiezas[],5,pgnNidioma)))","v":"Txd7"},{"$f":"IF(pgnNidioma=0,$AE14,SUBSTITUTE(SUBSTITUTE(SUBSTITUTE(SUBSTITUTE(SUBSTITUTE($AE14,\n\"♚\",INDEX(TablaPiezas[],1,pgnNidioma)),\n\"♛\",INDEX(TablaPiezas[],2,pgnNidioma)),\n\"♜\",INDEX(TablaPiezas[],3,pgnNidioma)),\n\"♝\",INDEX(TablaPiezas[],4,pgnNidioma)),\n\"♞\",INDEX(TablaPiezas[],5,pgnNidioma)))","v":"Txd7"},"13. Txd7 Txd7"]
[15,{"$f":"IFERROR(IF(INDEX(PGN[0],A15-1)=pgnPartida,INDEX(PGN[PGN],A15-1),\"\"),\"\")","v":""}," ","1. e4 e5 2. Nf3 d6 3. d4 Bg4 4. dxe5 Bxf3 5. Qxf3 dxe5 6. Bc4 Nf6 7. Qb3 Qe7 8. Nc3 c6 9. Bg5 b5 10. Nxb5 cxb5 11. Bxb5+ Nbd7 12. O-O-O Rd8 13. Rxd7 Rxd7 14. Rd1 Qe6 15. Bxd7+ Nxd7 16. Qb8+ Nxb8 17. Rd8# 1-0   ",210,"","",{"$f":"IF(OR(E15=0,LEN(F15)<100),0,MATCH(\" \",CONCATENATE(MID(RIGHT(F15,15),{15;14;13;12;11;10;9;8;7;6;5;4;3;2;1},1)),0)-1)","v":0},"1. e4 e5 2. Nf3 d6 3. d4 Bg4 4. dxe5 Bxf3 5. Qxf3 dxe5 6. Bc4 Nf6 7. Qb3 Qe7 8. Nc3 c6 9. Bg5 b5 10. Nxb5 cxb5 11. Bxb5+ Nbd7 12. O-O-O Rd8 13. Rxd7 Rxd7 14. Rd1 Qe6 15. Bxd7+ Nxd7 16. Qb8+ Nxb8 17. Rd8# 1-0",209,209,""," ","1. e4 e5 2. Nf3 d6 3. d4 Bg4 4. dxe5 Bxf3 5. Qxf3 dxe5 6. Bc4 Nf6 7. Qb3 Qe7 8. Nc3 c6 9. Bg5 b5 10. Nxb5 cxb5 11. Bxb5+ Nbd7 12. O-O-O Rd8 13. Rxd7 Rxd7 14. Rd1 Qe6 15. Bxd7+ Nxd7 16. Qb8+ Nxb8 17. Rd8# 1-0",209,209,""," ","1. e4 e5 2. Nf3 d6 3. d4 Bg4 4. dxe5 Bxf3 5. Qxf3 dxe5 6. Bc4 Nf6 7. Qb3 Qe7 8. Nc3 c6 9. Bg5 b5 10. Nxb5 cxb5 11. Bxb5+ Nbd7 12. O-O-O Rd8 13. Rxd7 Rxd7 14. Rd1 Qe6 15. Bxd7+ Nxd7 16. Qb8+ Nxb8 17. Rd8# 1-0",209,209,""," ",14,155,"14. Rd1 Qe6","14. Rd1 Qe6","Rd1","Qe6","♖d1","♛e6","14. ♖d1 ♛e6",{"$f":"IF(pgnNidioma=0,$AD15,SUBSTITUTE(SUBSTITUTE(SUBSTITUTE(SUBSTITUTE(SUBSTITUTE($AD15,\n\"♔\",INDEX(TablaPiezas[],1,pgnNidioma)),\n\"♕\",INDEX(TablaPiezas[],2,pgnNidioma)),\n\"♖\",INDEX(TablaPiezas[],3,pgnNidioma)),\n\"♗\",INDEX(TablaPiezas[],4,pgnNidioma)),\n\"♘\",INDEX(TablaPiezas[],5,pgnNidioma)))","v":"Td1"},{"$f":"IF(pgnNidioma=0,$AE15,SUBSTITUTE(SUBSTITUTE(SUBSTITUTE(SUBSTITUTE(SUBSTITUTE($AE15,\n\"♚\",INDEX(TablaPiezas[],1,pgnNidioma)),\n\"♛\",INDEX(TablaPiezas[],2,pgnNidioma)),\n\"♜\",INDEX(TablaPiezas[],3,pgnNidioma)),\n\"♝\",INDEX(TablaPiezas[],4,pgnNidioma)),\n\"♞\",INDEX(TablaPiezas[],5,pgnNidioma)))","v":"De6"},"14. Td1 De6"]
[16,{"$f":"IFERROR(IF(INDEX(PGN[0],A16-1)=pgnPartida,INDEX(PGN[PGN],A16-1),\"\"),\"\")","v":""}," ","1. e4 e5 2. Nf3 d6 3. d4 Bg4 4. dxe5 Bxf3 5. Qxf3 dxe5 6. Bc4 Nf6 7. Qb3 Qe7 8. Nc3 c6 9. Bg5 b5 10. Nxb5 cxb5 11. Bxb5+ Nbd7 12. O-O-O Rd8 13. Rxd7 Rxd7 14. Rd1 Qe6 15. Bxd7+ Nxd7 16. Qb8+ Nxb8 17. Rd8# 1-0    ",211,{"$f":"IFERROR(MID($D$153,E16,100),\"\")","v":""},{"$f":"IF(E16=0,B16,IFERROR(MID($D$153,E16,MIN(100,LEN(F16))-H16),\"\"))","v":""},{"$f":"IF(OR(E16=0,LEN(F16)<100),0,MATCH(\" \",CONCATENATE(MID(RIGHT(F16,15),{15;14;13;12;11;10;9;8;7;6;5;4;3;2;1},1)),0)-1)","v":0},"1. e4 e5 2. Nf3 d6 3. d4 Bg4 4. dxe5 Bxf3 5. Qxf3 dxe5 6. Bc4 Nf6 7. Qb3 Qe7 8. Nc3 c6 9. Bg5 b5 10. Nxb5 cxb5 11. Bxb5+ Nbd7 12. O-O-O Rd8 13. Rxd7 Rxd7 14. Rd1 Qe6 15. Bxd7+ Nxd7 16. Qb8+ Nxb8 17. Rd8# 1-0",209,209,""," ","1. e4 e5 2. Nf3 d6 3. d4 Bg4 4. dxe5 Bxf3 5. Qxf3 dxe5 6. Bc4 Nf6 7. Qb3 Qe7 8. Nc3 c6 9. Bg5 b5 10. Nxb5 cxb5 11. Bxb5+ Nbd7 12. O-O-O Rd8 13. Rxd7 Rxd7 14. Rd1 Qe6 15. Bxd7+ Nxd7 16. Qb8+ Nxb8 17. Rd8# 1-0",209,209,""," ","1. e4 e5 2. Nf3 d6 3. d4 Bg4 4. dxe5 Bxf3 5. Qxf3 dxe5 6. Bc4 Nf6 7. Qb3 Qe7 8. Nc3 c6 9. Bg5 b5 10. Nxb5 cxb5 11. Bxb5+ Nbd7 12. O-O-O Rd8 13. Rxd7 Rxd7 14. Rd1 Qe6 15. Bxd7+ Nxd7 16. Qb8+ Nxb8 17. Rd8# 1-0",209,209,""," ",15,167,"15. Bxd7+ Nxd7","15. Bxd7+ Nxd7","Bxd7+","Nxd7","♗xd7+","♞xd7","15. ♗xd7+ ♞xd7",{"$f":"IF(pgnNidioma=0,$AD16,SUBSTITUTE(SUBSTITUTE(SUBSTITUTE(SUBSTITUTE(SUBSTITUTE($AD16,\n\"♔\",INDEX(TablaPiezas[],1,pgnNidioma)),\n\"♕\",INDEX(TablaPiezas[],2,pgnNidioma)),\n\"♖\",INDEX(TablaPiezas[],3,pgnNidioma)),\n\"♗\",INDEX(TablaPiezas[],4,pgnNidioma)),\n\"♘\",INDEX(TablaPiezas[],5,pgnNidioma)))","v":"Axd7+"},{"$f":"IF(pgnNidioma=0,$AE16,SUBSTITUTE(SUBSTITUTE(SUBSTITUTE(SUBSTITUTE(SUBSTITUTE($AE16,\n\"♚\",INDEX(TablaPiezas[],1,pgnNidioma)),\n\"♛\",INDEX(TablaPiezas[],2,pgnNidioma)),\n\"♜\",INDEX(TablaPiezas[],3,pgnNidioma)),\n\"♝\",INDEX(TablaPiezas[],4,pgnNidioma)),\n\"♞\",INDEX(TablaPiezas[],5,pgnNidioma)))","v":"Cxd7"},"15. Axd7+ Cxd7"]
[17,{"$f":"IFERROR(IF(INDEX(PGN[0],A17-1)=pgnPartida,INDEX(PGN[PGN],A17-1),\"\"),\"\")","v":""}," ","1. e4 e5 2. Nf3 d6 3. d4 Bg4 4. dxe5 Bxf3 5. Qxf3 dxe5 6. Bc4 Nf6 7. Qb3 Qe7 8. Nc3 c6 9. Bg5 b5 10. Nxb5 cxb5 11. Bxb5+ Nbd7 12. O-O-O Rd8 13. Rxd7 Rxd7 14. Rd1 Qe6 15. Bxd7+ Nxd7 16. Qb8+ Nxb8 17. Rd8# 1-0     ",212,"",{"$f":"IF(E17=0,B17,IFERROR(MID($D$153,E17,MIN(100,LEN(F17))-H17),\"\"))","v":""},{"$f":"IF(OR(E17=0,LEN(F17)<100),0,MATCH(\" \",CONCATENATE(MID(RIGHT(F17,15),{15;14;13;12;11;10;9;8;7;6;5;4;3;2;1},1)),0)-1)","v":0},"1. e4 e5 2. Nf3 d6 3. d4 Bg4 4. dxe5 Bxf3 5. Qxf3 dxe5 6. Bc4 Nf6 7. Qb3 Qe7 8. Nc3 c6 9. Bg5 b5 10. Nxb5 cxb5 11. Bxb5+ Nbd7 12. O-O-O Rd8 13. Rxd7 Rxd7 14. Rd1 Qe6 15. Bxd7+ Nxd7 16. Qb8+ Nxb8 17. Rd8# 1-0",209,209,""," ","1. e4 e5 2. Nf3 d6 3. d4 Bg4 4. dxe5 Bxf3 5. Qxf3 dxe5 6. Bc4 Nf6 7. Qb3 Qe7 8. Nc3 c6 9. Bg5 b5 10. Nxb5 cxb5 11. Bxb5+ Nbd7 12. O-O-O Rd8 13. Rxd7 Rxd7 14. Rd1 Qe6 15. Bxd7+ Nxd7 16. Qb8+ Nxb8 17. Rd8# 1-0",209,209,""," ","1. e4 e5 2. Nf3 d6 3. d4 Bg4 4. dxe5 Bxf3 5. Qxf3 dxe5 6. Bc4 Nf6 7. Qb3 Qe7 8. Nc3 c6 9. Bg5 b5 10. Nxb5 cxb5 11. Bxb5+ Nbd7 12. O-O-O Rd8 13. Rxd7 Rxd7 14. Rd1 Qe6 15. Bxd7+ Nxd7 16. Qb8+ Nxb8 17. Rd8# 1-0",209,209,""," ",16,182,"16. Qb8+ Nxb8","16. Qb8+ Nxb8","Qb8+","Nxb8","♕b8+","♞xb8","16. ♕b8+ ♞xb8",{"$f":"IF(pgnNidioma=0,$AD17,SUBSTITUTE(SUBSTITUTE(SUBSTITUTE(SUBSTITUTE(SUBSTITUTE($AD17,\n\"♔\",INDEX(TablaPiezas[],1,pgnNidioma)),\n\"♕\",INDEX(TablaPiezas[],2,pgnNidioma)),\n\"♖\",INDEX(TablaPiezas[],3,pgnNidioma)),\n\"♗\",INDEX(TablaPiezas[],4,pgnNidioma)),\n\"♘\",INDEX(TablaPiezas[],5,pgnNidioma)))","v":"Db8+"},{"$f":"IF(pgnNidioma=0,$AE17,SUBSTITUTE(SUBSTITUTE(SUBSTITUTE(SUBSTITUTE(SUBSTITUTE($AE17,\n\"♚\",INDEX(TablaPiezas[],1,pgnNidioma)),\n\"♛\",INDEX(TablaPiezas[],2,pgnNidioma)),\n\"♜\",INDEX(TablaPiezas[],3,pgnNidioma)),\n\"♝\",INDEX(TablaPiezas[],4,pgnNidioma)),\n\"♞\",INDEX(TablaPiezas[],5,pgnNidioma)))","v":"Cxb8"},"16. Db8+ Cxb8"]
[18,{"$f":"IFERROR(IF(INDEX(PGN[0],A18-1)=pgnPartida,INDEX(PGN[PGN],A18-1),\"\"),\"\")","v":""}," ","1. e4 e5 2. Nf3 d6 3. d4 Bg4 4. dxe5 Bxf3 5. Qxf3 dxe5 6. Bc4 Nf6 7. Qb3 Qe7 8. Nc3 c6 9. Bg5 b5 10. Nxb5 cxb5 11. Bxb5+ Nbd7 12. O-O-O Rd8 13. Rxd7 Rxd7 14. Rd1 Qe6 15. Bxd7+ Nxd7 16. Qb8+ Nxb8 17. Rd8# 1-0      ",213,"","",{"$f":"IF(OR(E18=0,LEN(F18)<100),0,MATCH(\" \",CONCATENATE(MID(RIGHT(F18,15),{15;14;13;12;11;10;9;8;7;6;5;4;3;2;1},1)),0)-1)","v":0},"1. e4 e5 2. Nf3 d6 3. d4 Bg4 4. dxe5 Bxf3 5. Qxf3 dxe5 6. Bc4 Nf6 7. Qb3 Qe7 8. Nc3 c6 9. Bg5 b5 10. Nxb5 cxb5 11. Bxb5+ Nbd7 12. O-O-O Rd8 13. Rxd7 Rxd7 14. Rd1 Qe6 15. Bxd7+ Nxd7 16. Qb8+ Nxb8 17. Rd8# 1-0",209,209,""," ","1. e4 e5 2. Nf3 d6 3. d4 Bg4 4. dxe5 Bxf3 5. Qxf3 dxe5 6. Bc4 Nf6 7. Qb3 Qe7 8. Nc3 c6 9. Bg5 b5 10. Nxb5 cxb5 11. Bxb5+ Nbd7 12. O-O-O Rd8 13. Rxd7 Rxd7 14. Rd1 Qe6 15. Bxd7+ Nxd7 16. Qb8+ Nxb8 17. Rd8# 1-0",209,209,""," ","1. e4 e5 2. Nf3 d6 3. d4 Bg4 4. dxe5 Bxf3 5. Qxf3 dxe5 6. Bc4 Nf6 7. Qb3 Qe7 8. Nc3 c6 9. Bg5 b5 10. Nxb5 cxb5 11. Bxb5+ Nbd7 12. O-O-O Rd8 13. Rxd7 Rxd7 14. Rd1 Qe6 15. Bxd7+ Nxd7 16. Qb8+ Nxb8 17. Rd8# 1-0",209,209,""," ",17,196,"17. Rd8# 1-0","17. Rd8# 1-0","Rd8#","1-0","♖d8#","1-0","17. ♖d8# 1-0",{"$f":"IF(pgnNidioma=0,$AD18,SUBSTITUTE(SUBSTITUTE(SUBSTITUTE(SUBSTITUTE(SUBSTITUTE($AD18,\n\"♔\",INDEX(TablaPiezas[],1,pgnNidioma)),\n\"♕\",INDEX(TablaPiezas[],2,pgnNidioma)),\n\"♖\",INDEX(TablaPiezas[],3,pgnNidioma)),\n\"♗\",INDEX(TablaPiezas[],4,pgnNidioma)),\n\"♘\",INDEX(TablaPiezas[],5,pgnNidioma)))","v":"Td8#"},{"$f":"IF(pgnNidioma=0,$AE18,SUBSTITUTE(SUBSTITUTE(SUBSTITUTE(SUBSTITUTE(SUBSTITUTE($AE18,\n\"♚\",INDEX(TablaPiezas[],1,pgnNidioma)),\n\"♛\",INDEX(TablaPiezas[],2,pgnNidioma)),\n\"♜\",INDEX(TablaPiezas[],3,pgnNidioma)),\n\"♝\",INDEX(TablaPiezas[],4,pgnNidioma)),\n\"♞\",INDEX(TablaPiezas[],5,pgnNidioma)))","v":"1-0"},"17. Td8# 1-0"]
[19,{"$f":"IFERROR(IF(INDEX(PGN[0],A19-1)=pgnPartida,INDEX(PGN[PGN],A19-1),\"\"),\"\")","v":""}," ","1. e4 e5 2. Nf3 d6 3. d4 Bg4 4. dxe5 Bxf3 5. Qxf3 dxe5 6. Bc4 Nf6 7. Qb3 Qe7 8. Nc3 c6 9. Bg5 b5 10. Nxb5 cxb5 11. Bxb5+ Nbd7 12. O-O-O Rd8 13. Rxd7 Rxd7 14. Rd1 Qe6 15. Bxd7+ Nxd7 16. Qb8+ Nxb8 17. Rd8# 1-0       ",214,"","",{"$f":"IF(OR(E19=0,LEN(F19)<100),0,MATCH(\" \",CONCATENATE(MID(RIGHT(F19,15),{15;14;13;12;11;10;9;8;7;6;5;4;3;2;1},1)),0)-1)","v":0},"1. e4 e5 2. Nf3 d6 3. d4 Bg4 4. dxe5 Bxf3 5. Qxf3 dxe5 6. Bc4 Nf6 7. Qb3 Qe7 8. Nc3 c6 9. Bg5 b5 10. Nxb5 cxb5 11. Bxb5+ Nbd7 12. O-O-O Rd8 13. Rxd7 Rxd7 14. Rd1 Qe6 15. Bxd7+ Nxd7 16. Qb8+ Nxb8 17. Rd8# 1-0",209,209,""," ","1. e4 e5 2. Nf3 d6 3. d4 Bg4 4. dxe5 Bxf3 5. Qxf3 dxe5 6. Bc4 Nf6 7. Qb3 Qe7 8. Nc3 c6 9. Bg5 b5 10. Nxb5 cxb5 11. Bxb5+ Nbd7 12. O-O-O Rd8 13. Rxd7 Rxd7 14. Rd1 Qe6 15. Bxd7+ Nxd7 16. Qb8+ Nxb8 17. Rd8# 1-0",209,209,""," ","1. e4 e5 2. Nf3 d6 3. d4 Bg4 4. dxe5 Bxf3 5. Qxf3 dxe5 6. Bc4 Nf6 7. Qb3 Qe7 8. Nc3 c6 9. Bg5 b5 10. Nxb5 cxb5 11. Bxb5+ Nbd7 12. O-O-O Rd8 13. Rxd7 Rxd7 14. Rd1 Qe6 15. Bxd7+ Nxd7 16. Qb8+ Nxb8 17. Rd8# 1-0",209,209,""," ",18,209,"","","","","","","",{"$f":"IF(pgnNidioma=0,$AD19,SUBSTITUTE(SUBSTITUTE(SUBSTITUTE(SUBSTITUTE(SUBSTITUTE($AD19,\n\"♔\",INDEX(TablaPiezas[],1,pgnNidioma)),\n\"♕\",INDEX(TablaPiezas[],2,pgnNidioma)),\n\"♖\",INDEX(TablaPiezas[],3,pgnNidioma)),\n\"♗\",INDEX(TablaPiezas[],4,pgnNidioma)),\n\"♘\",INDEX(TablaPiezas[],5,pgnNidioma)))","v":""},{"$f":"IF(pgnNidioma=0,$AE19,SUBSTITUTE(SUBSTITUTE(SUBSTITUTE(SUBSTITUTE(SUBSTITUTE($AE19,\n\"♚\",INDEX(TablaPiezas[],1,pgnNidioma)),\n\"♛\",INDEX(TablaPiezas[],2,pgnNidioma)),\n\"♜\",INDEX(TablaPiezas[],3,pgnNidioma)),\n\"♝\",INDEX(TablaPiezas[],4,pgnNidioma)),\n\"♞\",INDEX(TablaPiezas[],5,pgnNidioma)))","v":""},""]
[20,{"$f":"IFERROR(IF(INDEX(PGN[0],A20-1)=pgnPartida,INDEX(PGN[PGN],A20-1),\"\"),\"\")","v":""}," ","1. e4 e5 2. Nf3 d6 3. d4 Bg4 4. dxe5 Bxf3 5. Qxf3 dxe5 6. Bc4 Nf6 7. Qb3 Qe7 8. Nc3 c6 9. Bg5 b5 10. Nxb5 cxb5 11. Bxb5+ Nbd7 12. O-O-O Rd8 13. Rxd7 Rxd7 14. Rd1 Qe6 15. Bxd7+ Nxd7 16. Qb8+ Nxb8 17. Rd8# 1-0        ",215,"","",{"$f":"IF(OR(E20=0,LEN(F20)<100),0,MATCH(\" \",CONCATENATE(MID(RIGHT(F20,15),{15;14;13;12;11;10;9;8;7;6;5;4;3;2;1},1)),0)-1)","v":0},"1. e4 e5 2. Nf3 d6 3. d4 Bg4 4. dxe5 Bxf3 5. Qxf3 dxe5 6. Bc4 Nf6 7. Qb3 Qe7 8. Nc3 c6 9. Bg5 b5 10. Nxb5 cxb5 11. Bxb5+ Nbd7 12. O-O-O Rd8 13. Rxd7 Rxd7 14. Rd1 Qe6 15. Bxd7+ Nxd7 16. Qb8+ Nxb8 17. Rd8# 1-0",209,209,""," ","1. e4 e5 2. Nf3 d6 3. d4 Bg4 4. dxe5 Bxf3 5. Qxf3 dxe5 6. Bc4 Nf6 7. Qb3 Qe7 8. Nc3 c6 9. Bg5 b5 10. Nxb5 cxb5 11. Bxb5+ Nbd7 12. O-O-O Rd8 13. Rxd7 Rxd7 14. Rd1 Qe6 15. Bxd7+ Nxd7 16. Qb8+ Nxb8 17. Rd8# 1-0",209,209,""," ","1. e4 e5 2. Nf3 d6 3. d4 Bg4 4. dxe5 Bxf3 5. Qxf3 dxe5 6. Bc4 Nf6 7. Qb3 Qe7 8. Nc3 c6 9. Bg5 b5 10. Nxb5 cxb5 11. Bxb5+ Nbd7 12. O-O-O Rd8 13. Rxd7 Rxd7 14. Rd1 Qe6 15. Bxd7+ Nxd7 16. Qb8+ Nxb8 17. Rd8# 1-0",209,209,""," ",19,209,"","","","","","","",{"$f":"IF(pgnNidioma=0,$AD20,SUBSTITUTE(SUBSTITUTE(SUBSTITUTE(SUBSTITUTE(SUBSTITUTE($AD20,\n\"♔\",INDEX(TablaPiezas[],1,pgnNidioma)),\n\"♕\",INDEX(TablaPiezas[],2,pgnNidioma)),\n\"♖\",INDEX(TablaPiezas[],3,pgnNidioma)),\n\"♗\",INDEX(TablaPiezas[],4,pgnNidioma)),\n\"♘\",INDEX(TablaPiezas[],5,pgnNidioma)))","v":""},{"$f":"IF(pgnNidioma=0,$AE20,SUBSTITUTE(SUBSTITUTE(SUBSTITUTE(SUBSTITUTE(SUBSTITUTE($AE20,\n\"♚\",INDEX(TablaPiezas[],1,pgnNidioma)),\n\"♛\",INDEX(TablaPiezas[],2,pgnNidioma)),\n\"♜\",INDEX(TablaPiezas[],3,pgnNidioma)),\n\"♝\",INDEX(TablaPiezas[],4,pgnNidioma)),\n\"♞\",INDEX(TablaPiezas[],5,pgnNidioma)))","v":""},""]
[21,{"$f":"IFERROR(IF(INDEX(PGN[0],A21-1)=pgnPartida,INDEX(PGN[PGN],A21-1),\"\"),\"\")","v":""}," ",{"$f":"D20&\" \"&B21","v":"1. e4 e5 2. Nf3 d6 3. d4 Bg4 4. dxe5 Bxf3 5. Qxf3 dxe5 6. Bc4 Nf6 7. Qb3 Qe7 8. Nc3 c6 9. Bg5 b5 10. Nxb5 cxb5 11. Bxb5+ Nbd7 12. O-O-O Rd8 13. Rxd7 Rxd7 14. Rd1 Qe6 15. Bxd7+ Nxd7 16. Qb8+ Nxb8 17. Rd8# 1-0         "},216,"","",{"$f":"IF(OR(E21=0,LEN(F21)<100),0,MATCH(\" \",CONCATENATE(MID(RIGHT(F21,15),{15;14;13;12;11;10;9;8;7;6;5;4;3;2;1},1)),0)-1)","v":0},"1. e4 e5 2. Nf3 d6 3. d4 Bg4 4. dxe5 Bxf3 5. Qxf3 dxe5 6. Bc4 Nf6 7. Qb3 Qe7 8. Nc3 c6 9. Bg5 b5 10. Nxb5 cxb5 11. Bxb5+ Nbd7 12. O-O-O Rd8 13. Rxd7 Rxd7 14. Rd1 Qe6 15. Bxd7+ Nxd7 16. Qb8+ Nxb8 17. Rd8# 1-0",209,209,""," ","1. e4 e5 2. Nf3 d6 3. d4 Bg4 4. dxe5 Bxf3 5. Qxf3 dxe5 6. Bc4 Nf6 7. Qb3 Qe7 8. Nc3 c6 9. Bg5 b5 10. Nxb5 cxb5 11. Bxb5+ Nbd7 12. O-O-O Rd8 13. Rxd7 Rxd7 14. Rd1 Qe6 15. Bxd7+ Nxd7 16. Qb8+ Nxb8 17. Rd8# 1-0",209,209,""," ","1. e4 e5 2. Nf3 d6 3. d4 Bg4 4. dxe5 Bxf3 5. Qxf3 dxe5 6. Bc4 Nf6 7. Qb3 Qe7 8. Nc3 c6 9. Bg5 b5 10. Nxb5 cxb5 11. Bxb5+ Nbd7 12. O-O-O Rd8 13. Rxd7 Rxd7 14. Rd1 Qe6 15. Bxd7+ Nxd7 16. Qb8+ Nxb8 17. Rd8# 1-0",209,209,""," ",20,209,"","","","","","","",{"$f":"IF(pgnNidioma=0,$AD21,SUBSTITUTE(SUBSTITUTE(SUBSTITUTE(SUBSTITUTE(SUBSTITUTE($AD21,\n\"♔\",INDEX(TablaPiezas[],1,pgnNidioma)),\n\"♕\",INDEX(TablaPiezas[],2,pgnNidioma)),\n\"♖\",INDEX(TablaPiezas[],3,pgnNidioma)),\n\"♗\",INDEX(TablaPiezas[],4,pgnNidioma)),\n\"♘\",INDEX(TablaPiezas[],5,pgnNidioma)))","v":""},{"$f":"IF(pgnNidioma=0,$AE21,SUBSTITUTE(SUBSTITUTE(SUBSTITUTE(SUBSTITUTE(SUBSTITUTE($AE21,\n\"♚\",INDEX(TablaPiezas[],1,pgnNidioma)),\n\"♛\",INDEX(TablaPiezas[],2,pgnNidioma)),\n\"♜\",INDEX(TablaPiezas[],3,pgnNidioma)),\n\"♝\",INDEX(TablaPiezas[],4,pgnNidioma)),\n\"♞\",INDEX(TablaPiezas[],5,pgnNidioma)))","v":""},""]
[22,{"$f":"IFERROR(IF(INDEX(PGN[0],A22-1)=pgnPartida,INDEX(PGN[PGN],A22-1),\"\"),\"\")","v":""}," ","1. e4 e5 2. Nf3 d6 3. d4 Bg4 4. dxe5 Bxf3 5. Qxf3 dxe5 6. Bc4 Nf6 7. Qb3 Qe7 8. Nc3 c6 9. Bg5 b5 10. Nxb5 cxb5 11. Bxb5+ Nbd7 12. O-O-O Rd8 13. Rxd7 Rxd7 14. Rd1 Qe6 15. Bxd7+ Nxd7 16. Qb8+ Nxb8 17. Rd8# 1-0          ",217,"","",{"$f":"IF(OR(E22=0,LEN(F22)<100),0,MATCH(\" \",CONCATENATE(MID(RIGHT(F22,15),{15;14;13;12;11;10;9;8;7;6;5;4;3;2;1},1)),0)-1)","v":0},"1. e4 e5 2. Nf3 d6 3. d4 Bg4 4. dxe5 Bxf3 5. Qxf3 dxe5 6. Bc4 Nf6 7. Qb3 Qe7 8. Nc3 c6 9. Bg5 b5 10. Nxb5 cxb5 11. Bxb5+ Nbd7 12. O-O-O Rd8 13. Rxd7 Rxd7 14. Rd1 Qe6 15. Bxd7+ Nxd7 16. Qb8+ Nxb8 17. Rd8# 1-0",209,209,""," ","1. e4 e5 2. Nf3 d6 3. d4 Bg4 4. dxe5 Bxf3 5. Qxf3 dxe5 6. Bc4 Nf6 7. Qb3 Qe7 8. Nc3 c6 9. Bg5 b5 10. Nxb5 cxb5 11. Bxb5+ Nbd7 12. O-O-O Rd8 13. Rxd7 Rxd7 14. Rd1 Qe6 15. Bxd7+ Nxd7 16. Qb8+ Nxb8 17. Rd8# 1-0",209,209,""," ","1. e4 e5 2. Nf3 d6 3. d4 Bg4 4. dxe5 Bxf3 5. Qxf3 dxe5 6. Bc4 Nf6 7. Qb3 Qe7 8. Nc3 c6 9. Bg5 b5 10. Nxb5 cxb5 11. Bxb5+ Nbd7 12. O-O-O Rd8 13. Rxd7 Rxd7 14. Rd1 Qe6 15. Bxd7+ Nxd7 16. Qb8+ Nxb8 17. Rd8# 1-0",209,209,""," ",21,209,"","","","","","","",{"$f":"IF(pgnNidioma=0,$AD22,SUBSTITUTE(SUBSTITUTE(SUBSTITUTE(SUBSTITUTE(SUBSTITUTE($AD22,\n\"♔\",INDEX(TablaPiezas[],1,pgnNidioma)),\n\"♕\",INDEX(TablaPiezas[],2,pgnNidioma)),\n\"♖\",INDEX(TablaPiezas[],3,pgnNidioma)),\n\"♗\",INDEX(TablaPiezas[],4,pgnNidioma)),\n\"♘\",INDEX(TablaPiezas[],5,pgnNidioma)))","v":""},{"$f":"IF(pgnNidioma=0,$AE22,SUBSTITUTE(SUBSTITUTE(SUBSTITUTE(SUBSTITUTE(SUBSTITUTE($AE22,\n\"♚\",INDEX(TablaPiezas[],1,pgnNidioma)),\n\"♛\",INDEX(TablaPiezas[],2,pgnNidioma)),\n\"♜\",INDEX(TablaPiezas[],3,pgnNidioma)),\n\"♝\",INDEX(TablaPiezas[],4,pgnNidioma)),\n\"♞\",INDEX(TablaPiezas[],5,pgnNidioma)))","v":""},""]
[23,{"$f":"IFERROR(IF(INDEX(PGN[0],A23-1)=pgnPartida,INDEX(PGN[PGN],A23-1),\"\"),\"\")","v":""}," ","1. e4 e5 2. Nf3 d6 3. d4 Bg4 4. dxe5 Bxf3 5. Qxf3 dxe5 6. Bc4 Nf6 7. Qb3 Qe7 8. Nc3 c6 9. Bg5 b5 10. Nxb5 cxb5 11. Bxb5+ Nbd7 12. O-O-O Rd8 13. Rxd7 Rxd7 14. Rd1 Qe6 15. Bxd7+ Nxd7 16. Qb8+ Nxb8 17. Rd8# 1-0           ",218,"","",{"$f":"IF(OR(E23=0,LEN(F23)<100),0,MATCH(\" \",CONCATENATE(MID(RIGHT(F23,15),{15;14;13;12;11;10;9;8;7;6;5;4;3;2;1},1)),0)-1)","v":0},"1. e4 e5 2. Nf3 d6 3. d4 Bg4 4. dxe5 Bxf3 5. Qxf3 dxe5 6. Bc4 Nf6 7. Qb3 Qe7 8. Nc3 c6 9. Bg5 b5 10. Nxb5 cxb5 11. Bxb5+ Nbd7 12. O-O-O Rd8 13. Rxd7 Rxd7 14. Rd1 Qe6 15. Bxd7+ Nxd7 16. Qb8+ Nxb8 17. Rd8# 1-0",209,209,""," ","1. e4 e5 2. Nf3 d6 3. d4 Bg4 4. dxe5 Bxf3 5. Qxf3 dxe5 6. Bc4 Nf6 7. Qb3 Qe7 8. Nc3 c6 9. Bg5 b5 10. Nxb5 cxb5 11. Bxb5+ Nbd7 12. O-O-O Rd8 13. Rxd7 Rxd7 14. Rd1 Qe6 15. Bxd7+ Nxd7 16. Qb8+ Nxb8 17. Rd8# 1-0",209,209,""," ","1. e4 e5 2. Nf3 d6 3. d4 Bg4 4. dxe5 Bxf3 5. Qxf3 dxe5 6. Bc4 Nf6 7. Qb3 Qe7 8. Nc3 c6 9. Bg5 b5 10. Nxb5 cxb5 11. Bxb5+ Nbd7 12. O-O-O Rd8 13. Rxd7 Rxd7 14. Rd1 Qe6 15. Bxd7+ Nxd7 16. Qb8+ Nxb8 17. Rd8# 1-0",209,209,""," ",22,209,"","","","","","","",{"$f":"IF(pgnNidioma=0,$AD23,SUBSTITUTE(SUBSTITUTE(SUBSTITUTE(SUBSTITUTE(SUBSTITUTE($AD23,\n\"♔\",INDEX(TablaPiezas[],1,pgnNidioma)),\n\"♕\",INDEX(TablaPiezas[],2,pgnNidioma)),\n\"♖\",INDEX(TablaPiezas[],3,pgnNidioma)),\n\"♗\",INDEX(TablaPiezas[],4,pgnNidioma)),\n\"♘\",INDEX(TablaPiezas[],5,pgnNidioma)))","v":""},{"$f":"IF(pgnNidioma=0,$AE23,SUBSTITUTE(SUBSTITUTE(SUBSTITUTE(SUBSTITUTE(SUBSTITUTE($AE23,\n\"♚\",INDEX(TablaPiezas[],1,pgnNidioma)),\n\"♛\",INDEX(TablaPiezas[],2,pgnNidioma)),\n\"♜\",INDEX(TablaPiezas[],3,pgnNidioma)),\n\"♝\",INDEX(TablaPiezas[],4,pgnNidioma)),\n\"♞\",INDEX(TablaPiezas[],5,pgnNidioma)))","v":""},""]
[24,{"$f":"IFERROR(IF(INDEX(PGN[0],A24-1)=pgnPartida,INDEX(PGN[PGN],A24-1),\"\"),\"\")","v":""}," ","1. e4 e5 2. Nf3 d6 3. d4 Bg4 4. dxe5 Bxf3 5. Qxf3 dxe5 6. Bc4 Nf6 7. Qb3 Qe7 8. Nc3 c6 9. Bg5 b5 10. Nxb5 cxb5 11. Bxb5+ Nbd7 12. O-O-O Rd8 13. Rxd7 Rxd7 14. Rd1 Qe6 15. Bxd7+ Nxd7 16. Qb8+ Nxb8 17. Rd8# 1-0            ",219,"","",{"$f":"IF(OR(E24=0,LEN(F24)<100),0,MATCH(\" \",CONCATENATE(MID(RIGHT(F24,15),{15;14;13;12;11;10;9;8;7;6;5;4;3;2;1},1)),0)-1)","v":0},"1. e4 e5 2. Nf3 d6 3. d4 Bg4 4. dxe5 Bxf3 5. Qxf3 dxe5 6. Bc4 Nf6 7. Qb3 Qe7 8. Nc3 c6 9. Bg5 b5 10. Nxb5 cxb5 11. Bxb5+ Nbd7 12. O-O-O Rd8 13. Rxd7 Rxd7 14. Rd1 Qe6 15. Bxd7+ Nxd7 16. Qb8+ Nxb8 17. Rd8# 1-0",209,209,""," ","1. e4 e5 2. Nf3 d6 3. d4 Bg4 4. dxe5 Bxf3 5. Qxf3 dxe5 6. Bc4 Nf6 7. Qb3 Qe7 8. Nc3 c6 9. Bg5 b5 10. Nxb5 cxb5 11. Bxb5+ Nbd7 12. O-O-O Rd8 13. Rxd7 Rxd7 14. Rd1 Qe6 15. Bxd7+ Nxd7 16. Qb8+ Nxb8 17. Rd8# 1-0",209,209,""," ","1. e4 e5 2. Nf3 d6 3. d4 Bg4 4. dxe5 Bxf3 5. Qxf3 dxe5 6. Bc4 Nf6 7. Qb3 Qe7 8. Nc3 c6 9. Bg5 b5 10. Nxb5 cxb5 11. Bxb5+ Nbd7 12. O-O-O Rd8 13. Rxd7 Rxd7 14. Rd1 Qe6 15. Bxd7+ Nxd7 16. Qb8+ Nxb8 17. Rd8# 1-0",209,209,""," ",23,209,"","","","","","","",{"$f":"IF(pgnNidioma=0,$AD24,SUBSTITUTE(SUBSTITUTE(SUBSTITUTE(SUBSTITUTE(SUBSTITUTE($AD24,\n\"♔\",INDEX(TablaPiezas[],1,pgnNidioma)),\n\"♕\",INDEX(TablaPiezas[],2,pgnNidioma)),\n\"♖\",INDEX(TablaPiezas[],3,pgnNidioma)),\n\"♗\",INDEX(TablaPiezas[],4,pgnNidioma)),\n\"♘\",INDEX(TablaPiezas[],5,pgnNidioma)))","v":""},{"$f":"IF(pgnNidioma=0,$AE24,SUBSTITUTE(SUBSTITUTE(SUBSTITUTE(SUBSTITUTE(SUBSTITUTE($AE24,\n\"♚\",INDEX(TablaPiezas[],1,pgnNidioma)),\n\"♛\",INDEX(TablaPiezas[],2,pgnNidioma)),\n\"♜\",INDEX(TablaPiezas[],3,pgnNidioma)),\n\"♝\",INDEX(TablaPiezas[],4,pgnNidioma)),\n\"♞\",INDEX(TablaPiezas[],5,pgnNidioma)))","v":""},""]
[25,{"$f":"IFERROR(IF(INDEX(PGN[0],A25-1)=pgnPartida,INDEX(PGN[PGN],A25-1),\"\"),\"\")","v":""}," ","1. e4 e5 2. Nf3 d6 3. d4 Bg4 4. dxe5 Bxf3 5. Qxf3 dxe5 6. Bc4 Nf6 7. Qb3 Qe7 8. Nc3 c6 9. Bg5 b5 10. Nxb5 cxb5 11. Bxb5+ Nbd7 12. O-O-O Rd8 13. Rxd7 Rxd7 14. Rd1 Qe6 15. Bxd7+ Nxd7 16. Qb8+ Nxb8 17. Rd8# 1-0             ",220,"","",{"$f":"IF(OR(E25=0,LEN(F25)<100),0,MATCH(\" \",CONCATENATE(MID(RIGHT(F25,15),{15;14;13;12;11;10;9;8;7;6;5;4;3;2;1},1)),0)-1)","v":0},"1. e4 e5 2. Nf3 d6 3. d4 Bg4 4. dxe5 Bxf3 5. Qxf3 dxe5 6. Bc4 Nf6 7. Qb3 Qe7 8. Nc3 c6 9. Bg5 b5 10. Nxb5 cxb5 11. Bxb5+ Nbd7 12. O-O-O Rd8 13. Rxd7 Rxd7 14. Rd1 Qe6 15. Bxd7+ Nxd7 16. Qb8+ Nxb8 17. Rd8# 1-0",209,209,""," ","1. e4 e5 2. Nf3 d6 3. d4 Bg4 4. dxe5 Bxf3 5. Qxf3 dxe5 6. Bc4 Nf6 7. Qb3 Qe7 8. Nc3 c6 9. Bg5 b5 10. Nxb5 cxb5 11. Bxb5+ Nbd7 12. O-O-O Rd8 13. Rxd7 Rxd7 14. Rd1 Qe6 15. Bxd7+ Nxd7 16. Qb8+ Nxb8 17. Rd8# 1-0",209,209,""," ","1. e4 e5 2. Nf3 d6 3. d4 Bg4 4. dxe5 Bxf3 5. Qxf3 dxe5 6. Bc4 Nf6 7. Qb3 Qe7 8. Nc3 c6 9. Bg5 b5 10. Nxb5 cxb5 11. Bxb5+ Nbd7 12. O-O-O Rd8 13. Rxd7 Rxd7 14. Rd1 Qe6 15. Bxd7+ Nxd7 16. Qb8+ Nxb8 17. Rd8# 1-0",209,209,""," ",24,209,"","","","","","","",{"$f":"IF(pgnNidioma=0,$AD25,SUBSTITUTE(SUBSTITUTE(SUBSTITUTE(SUBSTITUTE(SUBSTITUTE($AD25,\n\"♔\",INDEX(TablaPiezas[],1,pgnNidioma)),\n\"♕\",INDEX(TablaPiezas[],2,pgnNidioma)),\n\"♖\",INDEX(TablaPiezas[],3,pgnNidioma)),\n\"♗\",INDEX(TablaPiezas[],4,pgnNidioma)),\n\"♘\",INDEX(TablaPiezas[],5,pgnNidioma)))","v":""},{"$f":"IF(pgnNidioma=0,$AE25,SUBSTITUTE(SUBSTITUTE(SUBSTITUTE(SUBSTITUTE(SUBSTITUTE($AE25,\n\"♚\",INDEX(TablaPiezas[],1,pgnNidioma)),\n\"♛\",INDEX(TablaPiezas[],2,pgnNidioma)),\n\"♜\",INDEX(TablaPiezas[],3,pgnNidioma)),\n\"♝\",INDEX(TablaPiezas[],4,pgnNidioma)),\n\"♞\",INDEX(TablaPiezas[],5,pgnNidioma)))","v":""},""]
[26,{"$f":"IFERROR(IF(INDEX(PGN[0],A26-1)=pgnPartida,INDEX(PGN[PGN],A26-1),\"\"),\"\")","v":""}," ","1. e4 e5 2. Nf3 d6 3. d4 Bg4 4. dxe5 Bxf3 5. Qxf3 dxe5 6. Bc4 Nf6 7. Qb3 Qe7 8. Nc3 c6 9. Bg5 b5 10. Nxb5 cxb5 11. Bxb5+ Nbd7 12. O-O-O Rd8 13. Rxd7 Rxd7 14. Rd1 Qe6 15. Bxd7+ Nxd7 16. Qb8+ Nxb8 17. Rd8# 1-0              ",221,"","",{"$f":"IF(OR(E26=0,LEN(F26)<100),0,MATCH(\" \",CONCATENATE(MID(RIGHT(F26,15),{15;14;13;12;11;10;9;8;7;6;5;4;3;2;1},1)),0)-1)","v":0},"1. e4 e5 2. Nf3 d6 3. d4 Bg4 4. dxe5 Bxf3 5. Qxf3 dxe5 6. Bc4 Nf6 7. Qb3 Qe7 8. Nc3 c6 9. Bg5 b5 10. Nxb5 cxb5 11. Bxb5+ Nbd7 12. O-O-O Rd8 13. Rxd7 Rxd7 14. Rd1 Qe6 15. Bxd7+ Nxd7 16. Qb8+ Nxb8 17. Rd8# 1-0",209,209,""," ","1. e4 e5 2. Nf3 d6 3. d4 Bg4 4. dxe5 Bxf3 5. Qxf3 dxe5 6. Bc4 Nf6 7. Qb3 Qe7 8. Nc3 c6 9. Bg5 b5 10. Nxb5 cxb5 11. Bxb5+ Nbd7 12. O-O-O Rd8 13. Rxd7 Rxd7 14. Rd1 Qe6 15. Bxd7+ Nxd7 16. Qb8+ Nxb8 17. Rd8# 1-0",209,209,""," ","1. e4 e5 2. Nf3 d6 3. d4 Bg4 4. dxe5 Bxf3 5. Qxf3 dxe5 6. Bc4 Nf6 7. Qb3 Qe7 8. Nc3 c6 9. Bg5 b5 10. Nxb5 cxb5 11. Bxb5+ Nbd7 12. O-O-O Rd8 13. Rxd7 Rxd7 14. Rd1 Qe6 15. Bxd7+ Nxd7 16. Qb8+ Nxb8 17. Rd8# 1-0",209,209,""," ",25,209,"","","","","","","",{"$f":"IF(pgnNidioma=0,$AD26,SUBSTITUTE(SUBSTITUTE(SUBSTITUTE(SUBSTITUTE(SUBSTITUTE($AD26,\n\"♔\",INDEX(TablaPiezas[],1,pgnNidioma)),\n\"♕\",INDEX(TablaPiezas[],2,pgnNidioma)),\n\"♖\",INDEX(TablaPiezas[],3,pgnNidioma)),\n\"♗\",INDEX(TablaPiezas[],4,pgnNidioma)),\n\"♘\",INDEX(TablaPiezas[],5,pgnNidioma)))","v":""},{"$f":"IF(pgnNidioma=0,$AE26,SUBSTITUTE(SUBSTITUTE(SUBSTITUTE(SUBSTITUTE(SUBSTITUTE($AE26,\n\"♚\",INDEX(TablaPiezas[],1,pgnNidioma)),\n\"♛\",INDEX(TablaPiezas[],2,pgnNidioma)),\n\"♜\",INDEX(TablaPiezas[],3,pgnNidioma)),\n\"♝\",INDEX(TablaPiezas[],4,pgnNidioma)),\n\"♞\",INDEX(TablaPiezas[],5,pgnNidioma)))","v":""},""]
[27,{"$f":"IFERROR(IF(INDEX(PGN[0],A27-1)=pgnPartida,INDEX(PGN[PGN],A27-1),\"\"),\"\")","v":""}," ","1. e4 e5 2. Nf3 d6 3. d4 Bg4 4. dxe5 Bxf3 5. Qxf3 dxe5 6. Bc4 Nf6 7. Qb3 Qe7 8. Nc3 c6 9. Bg5 b5 10. Nxb5 cxb5 11. Bxb5+ Nbd7 12. O-O-O Rd8 13. Rxd7 Rxd7 14. Rd1 Qe6 15. Bxd7+ Nxd7 16. Qb8+ Nxb8 17. Rd8# 1-0               ",222,"","",{"$f":"IF(OR(E27=0,LEN(F27)<100),0,MATCH(\" \",CONCATENATE(MID(RIGHT(F27,15),{15;14;13;12;11;10;9;8;7;6;5;4;3;2;1},1)),0)-1)","v":0},"1. e4 e5 2. Nf3 d6 3. d4 Bg4 4. dxe5 Bxf3 5. Qxf3 dxe5 6. Bc4 Nf6 7. Qb3 Qe7 8. Nc3 c6 9. Bg5 b5 10. Nxb5 cxb5 11. Bxb5+ Nbd7 12. O-O-O Rd8 13. Rxd7 Rxd7 14. Rd1 Qe6 15. Bxd7+ Nxd7 16. Qb8+ Nxb8 17. Rd8# 1-0",209,209,""," ","1. e4 e5 2. Nf3 d6 3. d4 Bg4 4. dxe5 Bxf3 5. Qxf3 dxe5 6. Bc4 Nf6 7. Qb3 Qe7 8. Nc3 c6 9. Bg5 b5 10. Nxb5 cxb5 11. Bxb5+ Nbd7 12. O-O-O Rd8 13. Rxd7 Rxd7 14. Rd1 Qe6 15. Bxd7+ Nxd7 16. Qb8+ Nxb8 17. Rd8# 1-0",209,209,""," ","1. e4 e5 2. Nf3 d6 3. d4 Bg4 4. dxe5 Bxf3 5. Qxf3 dxe5 6. Bc4 Nf6 7. Qb3 Qe7 8. Nc3 c6 9. Bg5 b5 10. Nxb5 cxb5 11. Bxb5+ Nbd7 12. O-O-O Rd8 13. Rxd7 Rxd7 14. Rd1 Qe6 15. Bxd7+ Nxd7 16. Qb8+ Nxb8 17. Rd8# 1-0",209,209,""," ",26,209,"","","","","","","",{"$f":"IF(pgnNidioma=0,$AD27,SUBSTITUTE(SUBSTITUTE(SUBSTITUTE(SUBSTITUTE(SUBSTITUTE($AD27,\n\"♔\",INDEX(TablaPiezas[],1,pgnNidioma)),\n\"♕\",INDEX(TablaPiezas[],2,pgnNidioma)),\n\"♖\",INDEX(TablaPiezas[],3,pgnNidioma)),\n\"♗\",INDEX(TablaPiezas[],4,pgnNidioma)),\n\"♘\",INDEX(TablaPiezas[],5,pgnNidioma)))","v":""},{"$f":"IF(pgnNidioma=0,$AE27,SUBSTITUTE(SUBSTITUTE(SUBSTITUTE(SUBSTITUTE(SUBSTITUTE($AE27,\n\"♚\",INDEX(TablaPiezas[],1,pgnNidioma)),\n\"♛\",INDEX(TablaPiezas[],2,pgnNidioma)),\n\"♜\",INDEX(TablaPiezas[],3,pgnNidioma)),\n\"♝\",INDEX(TablaPiezas[],4,pgnNidioma)),\n\"♞\",INDEX(TablaPiezas[],5,pgnNidioma)))","v":""},""]
[28,{"$f":"IFERROR(IF(INDEX(PGN[0],A28-1)=pgnPartida,INDEX(PGN[PGN],A28-1),\"\"),\"\")","v":""}," ","1. e4 e5 2. Nf3 d6 3. d4 Bg4 4. dxe5 Bxf3 5. Qxf3 dxe5 6. Bc4 Nf6 7. Qb3 Qe7 8. Nc3 c6 9. Bg5 b5 10. Nxb5 cxb5 11. Bxb5+ Nbd7 12. O-O-O Rd8 13. Rxd7 Rxd7 14. Rd1 Qe6 15. Bxd7+ Nxd7 16. Qb8+ Nxb8 17. Rd8# 1-0                ",223,"","",{"$f":"IF(OR(E28=0,LEN(F28)<100),0,MATCH(\" \",CONCATENATE(MID(RIGHT(F28,15),{15;14;13;12;11;10;9;8;7;6;5;4;3;2;1},1)),0)-1)","v":0},"1. e4 e5 2. Nf3 d6 3. d4 Bg4 4. dxe5 Bxf3 5. Qxf3 dxe5 6. Bc4 Nf6 7. Qb3 Qe7 8. Nc3 c6 9. Bg5 b5 10. Nxb5 cxb5 11. Bxb5+ Nbd7 12. O-O-O Rd8 13. Rxd7 Rxd7 14. Rd1 Qe6 15. Bxd7+ Nxd7 16. Qb8+ Nxb8 17. Rd8# 1-0",209,209,""," ","1. e4 e5 2. Nf3 d6 3. d4 Bg4 4. dxe5 Bxf3 5. Qxf3 dxe5 6. Bc4 Nf6 7. Qb3 Qe7 8. Nc3 c6 9. Bg5 b5 10. Nxb5 cxb5 11. Bxb5+ Nbd7 12. O-O-O Rd8 13. Rxd7 Rxd7 14. Rd1 Qe6 15. Bxd7+ Nxd7 16. Qb8+ Nxb8 17. Rd8# 1-0",209,209,""," ","1. e4 e5 2. Nf3 d6 3. d4 Bg4 4. dxe5 Bxf3 5. Qxf3 dxe5 6. Bc4 Nf6 7. Qb3 Qe7 8. Nc3 c6 9. Bg5 b5 10. Nxb5 cxb5 11. Bxb5+ Nbd7 12. O-O-O Rd8 13. Rxd7 Rxd7 14. Rd1 Qe6 15. Bxd7+ Nxd7 16. Qb8+ Nxb8 17. Rd8# 1-0",209,209,""," ",27,209,"","","","","","","",{"$f":"IF(pgnNidioma=0,$AD28,SUBSTITUTE(SUBSTITUTE(SUBSTITUTE(SUBSTITUTE(SUBSTITUTE($AD28,\n\"♔\",INDEX(TablaPiezas[],1,pgnNidioma)),\n\"♕\",INDEX(TablaPiezas[],2,pgnNidioma)),\n\"♖\",INDEX(TablaPiezas[],3,pgnNidioma)),\n\"♗\",INDEX(TablaPiezas[],4,pgnNidioma)),\n\"♘\",INDEX(TablaPiezas[],5,pgnNidioma)))","v":""},{"$f":"IF(pgnNidioma=0,$AE28,SUBSTITUTE(SUBSTITUTE(SUBSTITUTE(SUBSTITUTE(SUBSTITUTE($AE28,\n\"♚\",INDEX(TablaPiezas[],1,pgnNidioma)),\n\"♛\",INDEX(TablaPiezas[],2,pgnNidioma)),\n\"♜\",INDEX(TablaPiezas[],3,pgnNidioma)),\n\"♝\",INDEX(TablaPiezas[],4,pgnNidioma)),\n\"♞\",INDEX(TablaPiezas[],5,pgnNidioma)))","v":""},""]
[29,{"$f":"IFERROR(IF(INDEX(PGN[0],A29-1)=pgnPartida,INDEX(PGN[PGN],A29-1),\"\"),\"\")","v":""}," ","1. e4 e5 2. Nf3 d6 3. d4 Bg4 4. dxe5 Bxf3 5. Qxf3 dxe5 6. Bc4 Nf6 7. Qb3 Qe7 8. Nc3 c6 9. Bg5 b5 10. Nxb5 cxb5 11. Bxb5+ Nbd7 12. O-O-O Rd8 13. Rxd7 Rxd7 14. Rd1 Qe6 15. Bxd7+ Nxd7 16. Qb8+ Nxb8 17. Rd8# 1-0                 ",224,"","",{"$f":"IF(OR(E29=0,LEN(F29)<100),0,MATCH(\" \",CONCATENATE(MID(RIGHT(F29,15),{15;14;13;12;11;10;9;8;7;6;5;4;3;2;1},1)),0)-1)","v":0},"1. e4 e5 2. Nf3 d6 3. d4 Bg4 4. dxe5 Bxf3 5. Qxf3 dxe5 6. Bc4 Nf6 7. Qb3 Qe7 8. Nc3 c6 9. Bg5 b5 10. Nxb5 cxb5 11. Bxb5+ Nbd7 12. O-O-O Rd8 13. Rxd7 Rxd7 14. Rd1 Qe6 15. Bxd7+ Nxd7 16. Qb8+ Nxb8 17. Rd8# 1-0",209,209,""," ","1. e4 e5 2. Nf3 d6 3. d4 Bg4 4. dxe5 Bxf3 5. Qxf3 dxe5 6. Bc4 Nf6 7. Qb3 Qe7 8. Nc3 c6 9. Bg5 b5 10. Nxb5 cxb5 11. Bxb5+ Nbd7 12. O-O-O Rd8 13. Rxd7 Rxd7 14. Rd1 Qe6 15. Bxd7+ Nxd7 16. Qb8+ Nxb8 17. Rd8# 1-0",209,209,""," ","1. e4 e5 2. Nf3 d6 3. d4 Bg4 4. dxe5 Bxf3 5. Qxf3 dxe5 6. Bc4 Nf6 7. Qb3 Qe7 8. Nc3 c6 9. Bg5 b5 10. Nxb5 cxb5 11. Bxb5+ Nbd7 12. O-O-O Rd8 13. Rxd7 Rxd7 14. Rd1 Qe6 15. Bxd7+ Nxd7 16. Qb8+ Nxb8 17. Rd8# 1-0",209,209,""," ",28,209,"","","","","","","",{"$f":"IF(pgnNidioma=0,$AD29,SUBSTITUTE(SUBSTITUTE(SUBSTITUTE(SUBSTITUTE(SUBSTITUTE($AD29,\n\"♔\",INDEX(TablaPiezas[],1,pgnNidioma)),\n\"♕\",INDEX(TablaPiezas[],2,pgnNidioma)),\n\"♖\",INDEX(TablaPiezas[],3,pgnNidioma)),\n\"♗\",INDEX(TablaPiezas[],4,pgnNidioma)),\n\"♘\",INDEX(TablaPiezas[],5,pgnNidioma)))","v":""},{"$f":"IF(pgnNidioma=0,$AE29,SUBSTITUTE(SUBSTITUTE(SUBSTITUTE(SUBSTITUTE(SUBSTITUTE($AE29,\n\"♚\",INDEX(TablaPiezas[],1,pgnNidioma)),\n\"♛\",INDEX(TablaPiezas[],2,pgnNidioma)),\n\"♜\",INDEX(TablaPiezas[],3,pgnNidioma)),\n\"♝\",INDEX(TablaPiezas[],4,pgnNidioma)),\n\"♞\",INDEX(TablaPiezas[],5,pgnNidioma)))","v":""},""]
[30,{"$f":"IFERROR(IF(INDEX(PGN[0],A30-1)=pgnPartida,INDEX(PGN[PGN],A30-1),\"\"),\"\")","v":""}," ","1. e4 e5 2. Nf3 d6 3. d4 Bg4 4. dxe5 Bxf3 5. Qxf3 dxe5 6. Bc4 Nf6 7. Qb3 Qe7 8. Nc3 c6 9. Bg5 b5 10. Nxb5 cxb5 11. Bxb5+ Nbd7 12. O-O-O Rd8 13. Rxd7 Rxd7 14. Rd1 Qe6 15. Bxd7+ Nxd7 16. Qb8+ Nxb8 17. Rd8# 1-0                  ",225,"","",{"$f":"IF(OR(E30=0,LEN(F30)<100),0,MATCH(\" \",CONCATENATE(MID(RIGHT(F30,15),{15;14;13;12;11;10;9;8;7;6;5;4;3;2;1},1)),0)-1)","v":0},"1. e4 e5 2. Nf3 d6 3. d4 Bg4 4. dxe5 Bxf3 5. Qxf3 dxe5 6. Bc4 Nf6 7. Qb3 Qe7 8. Nc3 c6 9. Bg5 b5 10. Nxb5 cxb5 11. Bxb5+ Nbd7 12. O-O-O Rd8 13. Rxd7 Rxd7 14. Rd1 Qe6 15. Bxd7+ Nxd7 16. Qb8+ Nxb8 17. Rd8# 1-0",209,209,""," ","1. e4 e5 2. Nf3 d6 3. d4 Bg4 4. dxe5 Bxf3 5. Qxf3 dxe5 6. Bc4 Nf6 7. Qb3 Qe7 8. Nc3 c6 9. Bg5 b5 10. Nxb5 cxb5 11. Bxb5+ Nbd7 12. O-O-O Rd8 13. Rxd7 Rxd7 14. Rd1 Qe6 15. Bxd7+ Nxd7 16. Qb8+ Nxb8 17. Rd8# 1-0",209,209,""," ","1. e4 e5 2. Nf3 d6 3. d4 Bg4 4. dxe5 Bxf3 5. Qxf3 dxe5 6. Bc4 Nf6 7. Qb3 Qe7 8. Nc3 c6 9. Bg5 b5 10. Nxb5 cxb5 11. Bxb5+ Nbd7 12. O-O-O Rd8 13. Rxd7 Rxd7 14. Rd1 Qe6 15. Bxd7+ Nxd7 16. Qb8+ Nxb8 17. Rd8# 1-0",209,209,""," ",29,209,"","","","","","","",{"$f":"IF(pgnNidioma=0,$AD30,SUBSTITUTE(SUBSTITUTE(SUBSTITUTE(SUBSTITUTE(SUBSTITUTE($AD30,\n\"♔\",INDEX(TablaPiezas[],1,pgnNidioma)),\n\"♕\",INDEX(TablaPiezas[],2,pgnNidioma)),\n\"♖\",INDEX(TablaPiezas[],3,pgnNidioma)),\n\"♗\",INDEX(TablaPiezas[],4,pgnNidioma)),\n\"♘\",INDEX(TablaPiezas[],5,pgnNidioma)))","v":""},{"$f":"IF(pgnNidioma=0,$AE30,SUBSTITUTE(SUBSTITUTE(SUBSTITUTE(SUBSTITUTE(SUBSTITUTE($AE30,\n\"♚\",INDEX(TablaPiezas[],1,pgnNidioma)),\n\"♛\",INDEX(TablaPiezas[],2,pgnNidioma)),\n\"♜\",INDEX(TablaPiezas[],3,pgnNidioma)),\n\"♝\",INDEX(TablaPiezas[],4,pgnNidioma)),\n\"♞\",INDEX(TablaPiezas[],5,pgnNidioma)))","v":""},""]
[31,{"$f":"IFERROR(IF(INDEX(PGN[0],A31-1)=pgnPartida,INDEX(PGN[PGN],A31-1),\"\"),\"\")","v":""}," ","1. e4 e5 2. Nf3 d6 3. d4 Bg4 4. dxe5 Bxf3 5. Qxf3 dxe5 6. Bc4 Nf6 7. Qb3 Qe7 8. Nc3 c6 9. Bg5 b5 10. Nxb5 cxb5 11. Bxb5+ Nbd7 12. O-O-O Rd8 13. Rxd7 Rxd7 14. Rd1 Qe6 15. Bxd7+ Nxd7 16. Qb8+ Nxb8 17. Rd8# 1-0                   ",226,"","",{"$f":"IF(OR(E31=0,LEN(F31)<100),0,MATCH(\" \",CONCATENATE(MID(RIGHT(F31,15),{15;14;13;12;11;10;9;8;7;6;5;4;3;2;1},1)),0)-1)","v":0},"1. e4 e5 2. Nf3 d6 3. d4 Bg4 4. dxe5 Bxf3 5. Qxf3 dxe5 6. Bc4 Nf6 7. Qb3 Qe7 8. Nc3 c6 9. Bg5 b5 10. Nxb5 cxb5 11. Bxb5+ Nbd7 12. O-O-O Rd8 13. Rxd7 Rxd7 14. Rd1 Qe6 15. Bxd7+ Nxd7 16. Qb8+ Nxb8 17. Rd8# 1-0",209,209,""," ","1. e4 e5 2. Nf3 d6 3. d4 Bg4 4. dxe5 Bxf3 5. Qxf3 dxe5 6. Bc4 Nf6 7. Qb3 Qe7 8. Nc3 c6 9. Bg5 b5 10. Nxb5 cxb5 11. Bxb5+ Nbd7 12. O-O-O Rd8 13. Rxd7 Rxd7 14. Rd1 Qe6 15. Bxd7+ Nxd7 16. Qb8+ Nxb8 17. Rd8# 1-0",209,209,""," ","1. e4 e5 2. Nf3 d6 3. d4 Bg4 4. dxe5 Bxf3 5. Qxf3 dxe5 6. Bc4 Nf6 7. Qb3 Qe7 8. Nc3 c6 9. Bg5 b5 10. Nxb5 cxb5 11. Bxb5+ Nbd7 12. O-O-O Rd8 13. Rxd7 Rxd7 14. Rd1 Qe6 15. Bxd7+ Nxd7 16. Qb8+ Nxb8 17. Rd8# 1-0",209,209,""," ",30,209,"","","","","","","",{"$f":"IF(pgnNidioma=0,$AD31,SUBSTITUTE(SUBSTITUTE(SUBSTITUTE(SUBSTITUTE(SUBSTITUTE($AD31,\n\"♔\",INDEX(TablaPiezas[],1,pgnNidioma)),\n\"♕\",INDEX(TablaPiezas[],2,pgnNidioma)),\n\"♖\",INDEX(TablaPiezas[],3,pgnNidioma)),\n\"♗\",INDEX(TablaPiezas[],4,pgnNidioma)),\n\"♘\",INDEX(TablaPiezas[],5,pgnNidioma)))","v":""},{"$f":"IF(pgnNidioma=0,$AE31,SUBSTITUTE(SUBSTITUTE(SUBSTITUTE(SUBSTITUTE(SUBSTITUTE($AE31,\n\"♚\",INDEX(TablaPiezas[],1,pgnNidioma)),\n\"♛\",INDEX(TablaPiezas[],2,pgnNidioma)),\n\"♜\",INDEX(TablaPiezas[],3,pgnNidioma)),\n\"♝\",INDEX(TablaPiezas[],4,pgnNidioma)),\n\"♞\",INDEX(TablaPiezas[],5,pgnNidioma)))","v":""},""]
[32,{"$f":"IFERROR(IF(INDEX(PGN[0],A32-1)=pgnPartida,INDEX(PGN[PGN],A32-1),\"\"),\"\")","v":""}," ","1. e4 e5 2. Nf3 d6 3. d4 Bg4 4. dxe5 Bxf3 5. Qxf3 dxe5 6. Bc4 Nf6 7. Qb3 Qe7 8. Nc3 c6 9. Bg5 b5 10. Nxb5 cxb5 11. Bxb5+ Nbd7 12. O-O-O Rd8 13. Rxd7 Rxd7 14. Rd1 Qe6 15. Bxd7+ Nxd7 16. Qb8+ Nxb8 17. Rd8# 1-0                    ",227,"","",{"$f":"IF(OR(E32=0,LEN(F32)<100),0,MATCH(\" \",CONCATENATE(MID(RIGHT(F32,15),{15;14;13;12;11;10;9;8;7;6;5;4;3;2;1},1)),0)-1)","v":0},"1. e4 e5 2. Nf3 d6 3. d4 Bg4 4. dxe5 Bxf3 5. Qxf3 dxe5 6. Bc4 Nf6 7. Qb3 Qe7 8. Nc3 c6 9. Bg5 b5 10. Nxb5 cxb5 11. Bxb5+ Nbd7 12. O-O-O Rd8 13. Rxd7 Rxd7 14. Rd1 Qe6 15. Bxd7+ Nxd7 16. Qb8+ Nxb8 17. Rd8# 1-0",209,209,""," ","1. e4 e5 2. Nf3 d6 3. d4 Bg4 4. dxe5 Bxf3 5. Qxf3 dxe5 6. Bc4 Nf6 7. Qb3 Qe7 8. Nc3 c6 9. Bg5 b5 10. Nxb5 cxb5 11. Bxb5+ Nbd7 12. O-O-O Rd8 13. Rxd7 Rxd7 14. Rd1 Qe6 15. Bxd7+ Nxd7 16. Qb8+ Nxb8 17. Rd8# 1-0",209,209,""," ","1. e4 e5 2. Nf3 d6 3. d4 Bg4 4. dxe5 Bxf3 5. Qxf3 dxe5 6. Bc4 Nf6 7. Qb3 Qe7 8. Nc3 c6 9. Bg5 b5 10. Nxb5 cxb5 11. Bxb5+ Nbd7 12. O-O-O Rd8 13. Rxd7 Rxd7 14. Rd1 Qe6 15. Bxd7+ Nxd7 16. Qb8+ Nxb8 17. Rd8# 1-0",209,209,""," ",31,209,"","","","","","","",{"$f":"IF(pgnNidioma=0,$AD32,SUBSTITUTE(SUBSTITUTE(SUBSTITUTE(SUBSTITUTE(SUBSTITUTE($AD32,\n\"♔\",INDEX(TablaPiezas[],1,pgnNidioma)),\n\"♕\",INDEX(TablaPiezas[],2,pgnNidioma)),\n\"♖\",INDEX(TablaPiezas[],3,pgnNidioma)),\n\"♗\",INDEX(TablaPiezas[],4,pgnNidioma)),\n\"♘\",INDEX(TablaPiezas[],5,pgnNidioma)))","v":""},{"$f":"IF(pgnNidioma=0,$AE32,SUBSTITUTE(SUBSTITUTE(SUBSTITUTE(SUBSTITUTE(SUBSTITUTE($AE32,\n\"♚\",INDEX(TablaPiezas[],1,pgnNidioma)),\n\"♛\",INDEX(TablaPiezas[],2,pgnNidioma)),\n\"♜\",INDEX(TablaPiezas[],3,pgnNidioma)),\n\"♝\",INDEX(TablaPiezas[],4,pgnNidioma)),\n\"♞\",INDEX(TablaPiezas[],5,pgnNidioma)))","v":""},""]
[33,{"$f":"IFERROR(IF(INDEX(PGN[0],A33-1)=pgnPartida,INDEX(PGN[PGN],A33-1),\"\"),\"\")","v":""}," ","1. e4 e5 2. Nf3 d6 3. d4 Bg4 4. dxe5 Bxf3 5. Qxf3 dxe5 6. Bc4 Nf6 7. Qb3 Qe7 8. Nc3 c6 9. Bg5 b5 10. Nxb5 cxb5 11. Bxb5+ Nbd7 12. O-O-O Rd8 13. Rxd7 Rxd7 14. Rd1 Qe6 15. Bxd7+ Nxd7 16. Qb8+ Nxb8 17. Rd8# 1-0                     ",228,"","",{"$f":"IF(OR(E33=0,LEN(F33)<100),0,MATCH(\" \",CONCATENATE(MID(RIGHT(F33,15),{15;14;13;12;11;10;9;8;7;6;5;4;3;2;1},1)),0)-1)","v":0},"1. e4 e5 2. Nf3 d6 3. d4 Bg4 4. dxe5 Bxf3 5. Qxf3 dxe5 6. Bc4 Nf6 7. Qb3 Qe7 8. Nc3 c6 9. Bg5 b5 10. Nxb5 cxb5 11. Bxb5+ Nbd7 12. O-O-O Rd8 13. Rxd7 Rxd7 14. Rd1 Qe6 15. Bxd7+ Nxd7 16. Qb8+ Nxb8 17. Rd8# 1-0",209,209,""," ","1. e4 e5 2. Nf3 d6 3. d4 Bg4 4. dxe5 Bxf3 5. Qxf3 dxe5 6. Bc4 Nf6 7. Qb3 Qe7 8. Nc3 c6 9. Bg5 b5 10. Nxb5 cxb5 11. Bxb5+ Nbd7 12. O-O-O Rd8 13. Rxd7 Rxd7 14. Rd1 Qe6 15. Bxd7+ Nxd7 16. Qb8+ Nxb8 17. Rd8# 1-0",209,209,""," ","1. e4 e5 2. Nf3 d6 3. d4 Bg4 4. dxe5 Bxf3 5. Qxf3 dxe5 6. Bc4 Nf6 7. Qb3 Qe7 8. Nc3 c6 9. Bg5 b5 10. Nxb5 cxb5 11. Bxb5+ Nbd7 12. O-O-O Rd8 13. Rxd7 Rxd7 14. Rd1 Qe6 15. Bxd7+ Nxd7 16. Qb8+ Nxb8 17. Rd8# 1-0",209,209,""," ",32,209,"","","","","","","",{"$f":"IF(pgnNidioma=0,$AD33,SUBSTITUTE(SUBSTITUTE(SUBSTITUTE(SUBSTITUTE(SUBSTITUTE($AD33,\n\"♔\",INDEX(TablaPiezas[],1,pgnNidioma)),\n\"♕\",INDEX(TablaPiezas[],2,pgnNidioma)),\n\"♖\",INDEX(TablaPiezas[],3,pgnNidioma)),\n\"♗\",INDEX(TablaPiezas[],4,pgnNidioma)),\n\"♘\",INDEX(TablaPiezas[],5,pgnNidioma)))","v":""},{"$f":"IF(pgnNidioma=0,$AE33,SUBSTITUTE(SUBSTITUTE(SUBSTITUTE(SUBSTITUTE(SUBSTITUTE($AE33,\n\"♚\",INDEX(TablaPiezas[],1,pgnNidioma)),\n\"♛\",INDEX(TablaPiezas[],2,pgnNidioma)),\n\"♜\",INDEX(TablaPiezas[],3,pgnNidioma)),\n\"♝\",INDEX(TablaPiezas[],4,pgnNidioma)),\n\"♞\",INDEX(TablaPiezas[],5,pgnNidioma)))","v":""},""]
[34,{"$f":"IFERROR(IF(INDEX(PGN[0],A34-1)=pgnPartida,INDEX(PGN[PGN],A34-1),\"\"),\"\")","v":""}," ","1. e4 e5 2. Nf3 d6 3. d4 Bg4 4. dxe5 Bxf3 5. Qxf3 dxe5 6. Bc4 Nf6 7. Qb3 Qe7 8. Nc3 c6 9. Bg5 b5 10. Nxb5 cxb5 11. Bxb5+ Nbd7 12. O-O-O Rd8 13. Rxd7 Rxd7 14. Rd1 Qe6 15. Bxd7+ Nxd7 16. Qb8+ Nxb8 17. Rd8# 1-0                      ",229,"","",{"$f":"IF(OR(E34=0,LEN(F34)<100),0,MATCH(\" \",CONCATENATE(MID(RIGHT(F34,15),{15;14;13;12;11;10;9;8;7;6;5;4;3;2;1},1)),0)-1)","v":0},"1. e4 e5 2. Nf3 d6 3. d4 Bg4 4. dxe5 Bxf3 5. Qxf3 dxe5 6. Bc4 Nf6 7. Qb3 Qe7 8. Nc3 c6 9. Bg5 b5 10. Nxb5 cxb5 11. Bxb5+ Nbd7 12. O-O-O Rd8 13. Rxd7 Rxd7 14. Rd1 Qe6 15. Bxd7+ Nxd7 16. Qb8+ Nxb8 17. Rd8# 1-0",209,209,""," ","1. e4 e5 2. Nf3 d6 3. d4 Bg4 4. dxe5 Bxf3 5. Qxf3 dxe5 6. Bc4 Nf6 7. Qb3 Qe7 8. Nc3 c6 9. Bg5 b5 10. Nxb5 cxb5 11. Bxb5+ Nbd7 12. O-O-O Rd8 13. Rxd7 Rxd7 14. Rd1 Qe6 15. Bxd7+ Nxd7 16. Qb8+ Nxb8 17. Rd8# 1-0",209,209,""," ","1. e4 e5 2. Nf3 d6 3. d4 Bg4 4. dxe5 Bxf3 5. Qxf3 dxe5 6. Bc4 Nf6 7. Qb3 Qe7 8. Nc3 c6 9. Bg5 b5 10. Nxb5 cxb5 11. Bxb5+ Nbd7 12. O-O-O Rd8 13. Rxd7 Rxd7 14. Rd1 Qe6 15. Bxd7+ Nxd7 16. Qb8+ Nxb8 17. Rd8# 1-0",209,209,""," ",33,{"$f":"IFERROR(FIND($X34&\".\",$V$153),LEN($V$153)+2)","v":209},{"$f":"IFERROR(TRIM(MID(pgnAlgebraica,$Y34,$Y35-$Y34-1)),\"\")","v":""},"","","","","","",{"$f":"IF(pgnNidioma=0,$AD34,SUBSTITUTE(SUBSTITUTE(SUBSTITUTE(SUBSTITUTE(SUBSTITUTE($AD34,\n\"♔\",INDEX(TablaPiezas[],1,pgnNidioma)),\n\"♕\",INDEX(TablaPiezas[],2,pgnNidioma)),\n\"♖\",INDEX(TablaPiezas[],3,pgnNidioma)),\n\"♗\",INDEX(TablaPiezas[],4,pgnNidioma)),\n\"♘\",INDEX(TablaPiezas[],5,pgnNidioma)))","v":""},{"$f":"IF(pgnNidioma=0,$AE34,SUBSTITUTE(SUBSTITUTE(SUBSTITUTE(SUBSTITUTE(SUBSTITUTE($AE34,\n\"♚\",INDEX(TablaPiezas[],1,pgnNidioma)),\n\"♛\",INDEX(TablaPiezas[],2,pgnNidioma)),\n\"♜\",INDEX(TablaPiezas[],3,pgnNidioma)),\n\"♝\",INDEX(TablaPiezas[],4,pgnNidioma)),\n\"♞\",INDEX(TablaPiezas[],5,pgnNidioma)))","v":""},""]
[35,{"$f":"IFERROR(IF(INDEX(PGN[0],A35-1)=pgnPartida,INDEX(PGN[PGN],A35-1),\"\"),\"\")","v":""}," ","1. e4 e5 2. Nf3 d6 3. d4 Bg4 4. dxe5 Bxf3 5. Qxf3 dxe5 6. Bc4 Nf6 7. Qb3 Qe7 8. Nc3 c6 9. Bg5 b5 10. Nxb5 cxb5 11. Bxb5+ Nbd7 12. O-O-O Rd8 13. Rxd7 Rxd7 14. Rd1 Qe6 15. Bxd7+ Nxd7 16. Qb8+ Nxb8 17. Rd8# 1-0                       ",230,"","",{"$f":"IF(OR(E35=0,LEN(F35)<100),0,MATCH(\" \",CONCATENATE(MID(RIGHT(F35,15),{15;14;13;12;11;10;9;8;7;6;5;4;3;2;1},1)),0)-1)","v":0},"1. e4 e5 2. Nf3 d6 3. d4 Bg4 4. dxe5 Bxf3 5. Qxf3 dxe5 6. Bc4 Nf6 7. Qb3 Qe7 8. Nc3 c6 9. Bg5 b5 10. Nxb5 cxb5 11. Bxb5+ Nbd7 12. O-O-O Rd8 13. Rxd7 Rxd7 14. Rd1 Qe6 15. Bxd7+ Nxd7 16. Qb8+ Nxb8 17. Rd8# 1-0",209,209,""," ","1. e4 e5 2. Nf3 d6 3. d4 Bg4 4. dxe5 Bxf3 5. Qxf3 dxe5 6. Bc4 Nf6 7. Qb3 Qe7 8. Nc3 c6 9. Bg5 b5 10. Nxb5 cxb5 11. Bxb5+ Nbd7 12. O-O-O Rd8 13. Rxd7 Rxd7 14. Rd1 Qe6 15. Bxd7+ Nxd7 16. Qb8+ Nxb8 17. Rd8# 1-0",209,209,""," ","1. e4 e5 2. Nf3 d6 3. d4 Bg4 4. dxe5 Bxf3 5. Qxf3 dxe5 6. Bc4 Nf6 7. Qb3 Qe7 8. Nc3 c6 9. Bg5 b5 10. Nxb5 cxb5 11. Bxb5+ Nbd7 12. O-O-O Rd8 13. Rxd7 Rxd7 14. Rd1 Qe6 15. Bxd7+ Nxd7 16. Qb8+ Nxb8 17. Rd8# 1-0",209,209,""," ",34,209,"","","","","","","",{"$f":"IF(pgnNidioma=0,$AD35,SUBSTITUTE(SUBSTITUTE(SUBSTITUTE(SUBSTITUTE(SUBSTITUTE($AD35,\n\"♔\",INDEX(TablaPiezas[],1,pgnNidioma)),\n\"♕\",INDEX(TablaPiezas[],2,pgnNidioma)),\n\"♖\",INDEX(TablaPiezas[],3,pgnNidioma)),\n\"♗\",INDEX(TablaPiezas[],4,pgnNidioma)),\n\"♘\",INDEX(TablaPiezas[],5,pgnNidioma)))","v":""},{"$f":"IF(pgnNidioma=0,$AE35,SUBSTITUTE(SUBSTITUTE(SUBSTITUTE(SUBSTITUTE(SUBSTITUTE($AE35,\n\"♚\",INDEX(TablaPiezas[],1,pgnNidioma)),\n\"♛\",INDEX(TablaPiezas[],2,pgnNidioma)),\n\"♜\",INDEX(TablaPiezas[],3,pgnNidioma)),\n\"♝\",INDEX(TablaPiezas[],4,pgnNidioma)),\n\"♞\",INDEX(TablaPiezas[],5,pgnNidioma)))","v":""},""]
[36,{"$f":"IFERROR(IF(INDEX(PGN[0],A36-1)=pgnPartida,INDEX(PGN[PGN],A36-1),\"\"),\"\")","v":""}," ","1. e4 e5 2. Nf3 d6 3. d4 Bg4 4. dxe5 Bxf3 5. Qxf3 dxe5 6. Bc4 Nf6 7. Qb3 Qe7 8. Nc3 c6 9. Bg5 b5 10. Nxb5 cxb5 11. Bxb5+ Nbd7 12. O-O-O Rd8 13. Rxd7 Rxd7 14. Rd1 Qe6 15. Bxd7+ Nxd7 16. Qb8+ Nxb8 17. Rd8# 1-0                        ",231,"","",{"$f":"IF(OR(E36=0,LEN(F36)<100),0,MATCH(\" \",CONCATENATE(MID(RIGHT(F36,15),{15;14;13;12;11;10;9;8;7;6;5;4;3;2;1},1)),0)-1)","v":0},"1. e4 e5 2. Nf3 d6 3. d4 Bg4 4. dxe5 Bxf3 5. Qxf3 dxe5 6. Bc4 Nf6 7. Qb3 Qe7 8. Nc3 c6 9. Bg5 b5 10. Nxb5 cxb5 11. Bxb5+ Nbd7 12. O-O-O Rd8 13. Rxd7 Rxd7 14. Rd1 Qe6 15. Bxd7+ Nxd7 16. Qb8+ Nxb8 17. Rd8# 1-0",209,209,""," ","1. e4 e5 2. Nf3 d6 3. d4 Bg4 4. dxe5 Bxf3 5. Qxf3 dxe5 6. Bc4 Nf6 7. Qb3 Qe7 8. Nc3 c6 9. Bg5 b5 10. Nxb5 cxb5 11. Bxb5+ Nbd7 12. O-O-O Rd8 13. Rxd7 Rxd7 14. Rd1 Qe6 15. Bxd7+ Nxd7 16. Qb8+ Nxb8 17. Rd8# 1-0",209,209,""," ","1. e4 e5 2. Nf3 d6 3. d4 Bg4 4. dxe5 Bxf3 5. Qxf3 dxe5 6. Bc4 Nf6 7. Qb3 Qe7 8. Nc3 c6 9. Bg5 b5 10. Nxb5 cxb5 11. Bxb5+ Nbd7 12. O-O-O Rd8 13. Rxd7 Rxd7 14. Rd1 Qe6 15. Bxd7+ Nxd7 16. Qb8+ Nxb8 17. Rd8# 1-0",209,209,""," ",35,209,"","","","","","","",{"$f":"IF(pgnNidioma=0,$AD36,SUBSTITUTE(SUBSTITUTE(SUBSTITUTE(SUBSTITUTE(SUBSTITUTE($AD36,\n\"♔\",INDEX(TablaPiezas[],1,pgnNidioma)),\n\"♕\",INDEX(TablaPiezas[],2,pgnNidioma)),\n\"♖\",INDEX(TablaPiezas[],3,pgnNidioma)),\n\"♗\",INDEX(TablaPiezas[],4,pgnNidioma)),\n\"♘\",INDEX(TablaPiezas[],5,pgnNidioma)))","v":""},{"$f":"IF(pgnNidioma=0,$AE36,SUBSTITUTE(SUBSTITUTE(SUBSTITUTE(SUBSTITUTE(SUBSTITUTE($AE36,\n\"♚\",INDEX(TablaPiezas[],1,pgnNidioma)),\n\"♛\",INDEX(TablaPiezas[],2,pgnNidioma)),\n\"♜\",INDEX(TablaPiezas[],3,pgnNidioma)),\n\"♝\",INDEX(TablaPiezas[],4,pgnNidioma)),\n\"♞\",INDEX(TablaPiezas[],5,pgnNidioma)))","v":""},""]
[37,{"$f":"IFERROR(IF(INDEX(PGN[0],A37-1)=pgnPartida,INDEX(PGN[PGN],A37-1),\"\"),\"\")","v":""}," ","1. e4 e5 2. Nf3 d6 3. d4 Bg4 4. dxe5 Bxf3 5. Qxf3 dxe5 6. Bc4 Nf6 7. Qb3 Qe7 8. Nc3 c6 9. Bg5 b5 10. Nxb5 cxb5 11. Bxb5+ Nbd7 12. O-O-O Rd8 13. Rxd7 Rxd7 14. Rd1 Qe6 15. Bxd7+ Nxd7 16. Qb8+ Nxb8 17. Rd8# 1-0                         ",232,"","",{"$f":"IF(OR(E37=0,LEN(F37)<100),0,MATCH(\" \",CONCATENATE(MID(RIGHT(F37,15),{15;14;13;12;11;10;9;8;7;6;5;4;3;2;1},1)),0)-1)","v":0},"1. e4 e5 2. Nf3 d6 3. d4 Bg4 4. dxe5 Bxf3 5. Qxf3 dxe5 6. Bc4 Nf6 7. Qb3 Qe7 8. Nc3 c6 9. Bg5 b5 10. Nxb5 cxb5 11. Bxb5+ Nbd7 12. O-O-O Rd8 13. Rxd7 Rxd7 14. Rd1 Qe6 15. Bxd7+ Nxd7 16. Qb8+ Nxb8 17. Rd8# 1-0",209,209,""," ","1. e4 e5 2. Nf3 d6 3. d4 Bg4 4. dxe5 Bxf3 5. Qxf3 dxe5 6. Bc4 Nf6 7. Qb3 Qe7 8. Nc3 c6 9. Bg5 b5 10. Nxb5 cxb5 11. Bxb5+ Nbd7 12. O-O-O Rd8 13. Rxd7 Rxd7 14. Rd1 Qe6 15. Bxd7+ Nxd7 16. Qb8+ Nxb8 17. Rd8# 1-0",209,209,""," ","1. e4 e5 2. Nf3 d6 3. d4 Bg4 4. dxe5 Bxf3 5. Qxf3 dxe5 6. Bc4 Nf6 7. Qb3 Qe7 8. Nc3 c6 9. Bg5 b5 10. Nxb5 cxb5 11. Bxb5+ Nbd7 12. O-O-O Rd8 13. Rxd7 Rxd7 14. Rd1 Qe6 15. Bxd7+ Nxd7 16. Qb8+ Nxb8 17. Rd8# 1-0",209,209,""," ",36,209,"","","","","","","",{"$f":"IF(pgnNidioma=0,$AD37,SUBSTITUTE(SUBSTITUTE(SUBSTITUTE(SUBSTITUTE(SUBSTITUTE($AD37,\n\"♔\",INDEX(TablaPiezas[],1,pgnNidioma)),\n\"♕\",INDEX(TablaPiezas[],2,pgnNidioma)),\n\"♖\",INDEX(TablaPiezas[],3,pgnNidioma)),\n\"♗\",INDEX(TablaPiezas[],4,pgnNidioma)),\n\"♘\",INDEX(TablaPiezas[],5,pgnNidioma)))","v":""},{"$f":"IF(pgnNidioma=0,$AE37,SUBSTITUTE(SUBSTITUTE(SUBSTITUTE(SUBSTITUTE(SUBSTITUTE($AE37,\n\"♚\",INDEX(TablaPiezas[],1,pgnNidioma)),\n\"♛\",INDEX(TablaPiezas[],2,pgnNidioma)),\n\"♜\",INDEX(TablaPiezas[],3,pgnNidioma)),\n\"♝\",INDEX(TablaPiezas[],4,pgnNidioma)),\n\"♞\",INDEX(TablaPiezas[],5,pgnNidioma)))","v":""},""]
[38,{"$f":"IFERROR(IF(INDEX(PGN[0],A38-1)=pgnPartida,INDEX(PGN[PGN],A38-1),\"\"),\"\")","v":""}," ","1. e4 e5 2. Nf3 d6 3. d4 Bg4 4. dxe5 Bxf3 5. Qxf3 dxe5 6. Bc4 Nf6 7. Qb3 Qe7 8. Nc3 c6 9. Bg5 b5 10. Nxb5 cxb5 11. Bxb5+ Nbd7 12. O-O-O Rd8 13. Rxd7 Rxd7 14. Rd1 Qe6 15. Bxd7+ Nxd7 16. Qb8+ Nxb8 17. Rd8# 1-0                          ",233,"","",{"$f":"IF(OR(E38=0,LEN(F38)<100),0,MATCH(\" \",CONCATENATE(MID(RIGHT(F38,15),{15;14;13;12;11;10;9;8;7;6;5;4;3;2;1},1)),0)-1)","v":0},"1. e4 e5 2. Nf3 d6 3. d4 Bg4 4. dxe5 Bxf3 5. Qxf3 dxe5 6. Bc4 Nf6 7. Qb3 Qe7 8. Nc3 c6 9. Bg5 b5 10. Nxb5 cxb5 11. Bxb5+ Nbd7 12. O-O-O Rd8 13. Rxd7 Rxd7 14. Rd1 Qe6 15. Bxd7+ Nxd7 16. Qb8+ Nxb8 17. Rd8# 1-0",209,209,""," ","1. e4 e5 2. Nf3 d6 3. d4 Bg4 4. dxe5 Bxf3 5. Qxf3 dxe5 6. Bc4 Nf6 7. Qb3 Qe7 8. Nc3 c6 9. Bg5 b5 10. Nxb5 cxb5 11. Bxb5+ Nbd7 12. O-O-O Rd8 13. Rxd7 Rxd7 14. Rd1 Qe6 15. Bxd7+ Nxd7 16. Qb8+ Nxb8 17. Rd8# 1-0",209,209,""," ","1. e4 e5 2. Nf3 d6 3. d4 Bg4 4. dxe5 Bxf3 5. Qxf3 dxe5 6. Bc4 Nf6 7. Qb3 Qe7 8. Nc3 c6 9. Bg5 b5 10. Nxb5 cxb5 11. Bxb5+ Nbd7 12. O-O-O Rd8 13. Rxd7 Rxd7 14. Rd1 Qe6 15. Bxd7+ Nxd7 16. Qb8+ Nxb8 17. Rd8# 1-0",209,209,""," ",37,209,"","","","","","","",{"$f":"IF(pgnNidioma=0,$AD38,SUBSTITUTE(SUBSTITUTE(SUBSTITUTE(SUBSTITUTE(SUBSTITUTE($AD38,\n\"♔\",INDEX(TablaPiezas[],1,pgnNidioma)),\n\"♕\",INDEX(TablaPiezas[],2,pgnNidioma)),\n\"♖\",INDEX(TablaPiezas[],3,pgnNidioma)),\n\"♗\",INDEX(TablaPiezas[],4,pgnNidioma)),\n\"♘\",INDEX(TablaPiezas[],5,pgnNidioma)))","v":""},{"$f":"IF(pgnNidioma=0,$AE38,SUBSTITUTE(SUBSTITUTE(SUBSTITUTE(SUBSTITUTE(SUBSTITUTE($AE38,\n\"♚\",INDEX(TablaPiezas[],1,pgnNidioma)),\n\"♛\",INDEX(TablaPiezas[],2,pgnNidioma)),\n\"♜\",INDEX(TablaPiezas[],3,pgnNidioma)),\n\"♝\",INDEX(TablaPiezas[],4,pgnNidioma)),\n\"♞\",INDEX(TablaPiezas[],5,pgnNidioma)))","v":""},""]
[39,{"$f":"IFERROR(IF(INDEX(PGN[0],A39-1)=pgnPartida,INDEX(PGN[PGN],A39-1),\"\"),\"\")","v":""}," ","1. e4 e5 2. Nf3 d6 3. d4 Bg4 4. dxe5 Bxf3 5. Qxf3 dxe5 6. Bc4 Nf6 7. Qb3 Qe7 8. Nc3 c6 9. Bg5 b5 10. Nxb5 cxb5 11. Bxb5+ Nbd7 12. O-O-O Rd8 13. Rxd7 Rxd7 14. Rd1 Qe6 15. Bxd7+ Nxd7 16. Qb8+ Nxb8 17. Rd8# 1-0                           ",234,"","",{"$f":"IF(OR(E39=0,LEN(F39)<100),0,MATCH(\" \",CONCATENATE(MID(RIGHT(F39,15),{15;14;13;12;11;10;9;8;7;6;5;4;3;2;1},1)),0)-1)","v":0},"1. e4 e5 2. Nf3 d6 3. d4 Bg4 4. dxe5 Bxf3 5. Qxf3 dxe5 6. Bc4 Nf6 7. Qb3 Qe7 8. Nc3 c6 9. Bg5 b5 10. Nxb5 cxb5 11. Bxb5+ Nbd7 12. O-O-O Rd8 13. Rxd7 Rxd7 14. Rd1 Qe6 15. Bxd7+ Nxd7 16. Qb8+ Nxb8 17. Rd8# 1-0",209,209,""," ","1. e4 e5 2. Nf3 d6 3. d4 Bg4 4. dxe5 Bxf3 5. Qxf3 dxe5 6. Bc4 Nf6 7. Qb3 Qe7 8. Nc3 c6 9. Bg5 b5 10. Nxb5 cxb5 11. Bxb5+ Nbd7 12. O-O-O Rd8 13. Rxd7 Rxd7 14. Rd1 Qe6 15. Bxd7+ Nxd7 16. Qb8+ Nxb8 17. Rd8# 1-0",209,209,""," ","1. e4 e5 2. Nf3 d6 3. d4 Bg4 4. dxe5 Bxf3 5. Qxf3 dxe5 6. Bc4 Nf6 7. Qb3 Qe7 8. Nc3 c6 9. Bg5 b5 10. Nxb5 cxb5 11. Bxb5+ Nbd7 12. O-O-O Rd8 13. Rxd7 Rxd7 14. Rd1 Qe6 15. Bxd7+ Nxd7 16. Qb8+ Nxb8 17. Rd8# 1-0",209,209,""," ",38,209,"","","","","","","",{"$f":"IF(pgnNidioma=0,$AD39,SUBSTITUTE(SUBSTITUTE(SUBSTITUTE(SUBSTITUTE(SUBSTITUTE($AD39,\n\"♔\",INDEX(TablaPiezas[],1,pgnNidioma)),\n\"♕\",INDEX(TablaPiezas[],2,pgnNidioma)),\n\"♖\",INDEX(TablaPiezas[],3,pgnNidioma)),\n\"♗\",INDEX(TablaPiezas[],4,pgnNidioma)),\n\"♘\",INDEX(TablaPiezas[],5,pgnNidioma)))","v":""},{"$f":"IF(pgnNidioma=0,$AE39,SUBSTITUTE(SUBSTITUTE(SUBSTITUTE(SUBSTITUTE(SUBSTITUTE($AE39,\n\"♚\",INDEX(TablaPiezas[],1,pgnNidioma)),\n\"♛\",INDEX(TablaPiezas[],2,pgnNidioma)),\n\"♜\",INDEX(TablaPiezas[],3,pgnNidioma)),\n\"♝\",INDEX(TablaPiezas[],4,pgnNidioma)),\n\"♞\",INDEX(TablaPiezas[],5,pgnNidioma)))","v":""},""]
[40,{"$f":"IFERROR(IF(INDEX(PGN[0],A40-1)=pgnPartida,INDEX(PGN[PGN],A40-1),\"\"),\"\")","v":""}," ","1. e4 e5 2. Nf3 d6 3. d4 Bg4 4. dxe5 Bxf3 5. Qxf3 dxe5 6. Bc4 Nf6 7. Qb3 Qe7 8. Nc3 c6 9. Bg5 b5 10. Nxb5 cxb5 11. Bxb5+ Nbd7 12. O-O-O Rd8 13. Rxd7 Rxd7 14. Rd1 Qe6 15. Bxd7+ Nxd7 16. Qb8+ Nxb8 17. Rd8# 1-0                            ",235,"","",{"$f":"IF(OR(E40=0,LEN(F40)<100),0,MATCH(\" \",CONCATENATE(MID(RIGHT(F40,15),{15;14;13;12;11;10;9;8;7;6;5;4;3;2;1},1)),0)-1)","v":0},"1. e4 e5 2. Nf3 d6 3. d4 Bg4 4. dxe5 Bxf3 5. Qxf3 dxe5 6. Bc4 Nf6 7. Qb3 Qe7 8. Nc3 c6 9. Bg5 b5 10. Nxb5 cxb5 11. Bxb5+ Nbd7 12. O-O-O Rd8 13. Rxd7 Rxd7 14. Rd1 Qe6 15. Bxd7+ Nxd7 16. Qb8+ Nxb8 17. Rd8# 1-0",209,209,""," ","1. e4 e5 2. Nf3 d6 3. d4 Bg4 4. dxe5 Bxf3 5. Qxf3 dxe5 6. Bc4 Nf6 7. Qb3 Qe7 8. Nc3 c6 9. Bg5 b5 10. Nxb5 cxb5 11. Bxb5+ Nbd7 12. O-O-O Rd8 13. Rxd7 Rxd7 14. Rd1 Qe6 15. Bxd7+ Nxd7 16. Qb8+ Nxb8 17. Rd8# 1-0",209,209,""," ","1. e4 e5 2. Nf3 d6 3. d4 Bg4 4. dxe5 Bxf3 5. Qxf3 dxe5 6. Bc4 Nf6 7. Qb3 Qe7 8. Nc3 c6 9. Bg5 b5 10. Nxb5 cxb5 11. Bxb5+ Nbd7 12. O-O-O Rd8 13. Rxd7 Rxd7 14. Rd1 Qe6 15. Bxd7+ Nxd7 16. Qb8+ Nxb8 17. Rd8# 1-0",209,209,""," ",39,209,"","","","","","","",{"$f":"IF(pgnNidioma=0,$AD40,SUBSTITUTE(SUBSTITUTE(SUBSTITUTE(SUBSTITUTE(SUBSTITUTE($AD40,\n\"♔\",INDEX(TablaPiezas[],1,pgnNidioma)),\n\"♕\",INDEX(TablaPiezas[],2,pgnNidioma)),\n\"♖\",INDEX(TablaPiezas[],3,pgnNidioma)),\n\"♗\",INDEX(TablaPiezas[],4,pgnNidioma)),\n\"♘\",INDEX(TablaPiezas[],5,pgnNidioma)))","v":""},{"$f":"IF(pgnNidioma=0,$AE40,SUBSTITUTE(SUBSTITUTE(SUBSTITUTE(SUBSTITUTE(SUBSTITUTE($AE40,\n\"♚\",INDEX(TablaPiezas[],1,pgnNidioma)),\n\"♛\",INDEX(TablaPiezas[],2,pgnNidioma)),\n\"♜\",INDEX(TablaPiezas[],3,pgnNidioma)),\n\"♝\",INDEX(TablaPiezas[],4,pgnNidioma)),\n\"♞\",INDEX(TablaPiezas[],5,pgnNidioma)))","v":""},""]
[41,{"$f":"IFERROR(IF(INDEX(PGN[0],A41-1)=pgnPartida,INDEX(PGN[PGN],A41-1),\"\"),\"\")","v":""}," ","1. e4 e5 2. Nf3 d6 3. d4 Bg4 4. dxe5 Bxf3 5. Qxf3 dxe5 6. Bc4 Nf6 7. Qb3 Qe7 8. Nc3 c6 9. Bg5 b5 10. Nxb5 cxb5 11. Bxb5+ Nbd7 12. O-O-O Rd8 13. Rxd7 Rxd7 14. Rd1 Qe6 15. Bxd7+ Nxd7 16. Qb8+ Nxb8 17. Rd8# 1-0                             ",236,"","",{"$f":"IF(OR(E41=0,LEN(F41)<100),0,MATCH(\" \",CONCATENATE(MID(RIGHT(F41,15),{15;14;13;12;11;10;9;8;7;6;5;4;3;2;1},1)),0)-1)","v":0},"1. e4 e5 2. Nf3 d6 3. d4 Bg4 4. dxe5 Bxf3 5. Qxf3 dxe5 6. Bc4 Nf6 7. Qb3 Qe7 8. Nc3 c6 9. Bg5 b5 10. Nxb5 cxb5 11. Bxb5+ Nbd7 12. O-O-O Rd8 13. Rxd7 Rxd7 14. Rd1 Qe6 15. Bxd7+ Nxd7 16. Qb8+ Nxb8 17. Rd8# 1-0",209,209,""," ","1. e4 e5 2. Nf3 d6 3. d4 Bg4 4. dxe5 Bxf3 5. Qxf3 dxe5 6. Bc4 Nf6 7. Qb3 Qe7 8. Nc3 c6 9. Bg5 b5 10. Nxb5 cxb5 11. Bxb5+ Nbd7 12. O-O-O Rd8 13. Rxd7 Rxd7 14. Rd1 Qe6 15. Bxd7+ Nxd7 16. Qb8+ Nxb8 17. Rd8# 1-0",209,209,""," ","1. e4 e5 2. Nf3 d6 3. d4 Bg4 4. dxe5 Bxf3 5. Qxf3 dxe5 6. Bc4 Nf6 7. Qb3 Qe7 8. Nc3 c6 9. Bg5 b5 10. Nxb5 cxb5 11. Bxb5+ Nbd7 12. O-O-O Rd8 13. Rxd7 Rxd7 14. Rd1 Qe6 15. Bxd7+ Nxd7 16. Qb8+ Nxb8 17. Rd8# 1-0",209,209,""," ",40,209,"","","","","","","",{"$f":"IF(pgnNidioma=0,$AD41,SUBSTITUTE(SUBSTITUTE(SUBSTITUTE(SUBSTITUTE(SUBSTITUTE($AD41,\n\"♔\",INDEX(TablaPiezas[],1,pgnNidioma)),\n\"♕\",INDEX(TablaPiezas[],2,pgnNidioma)),\n\"♖\",INDEX(TablaPiezas[],3,pgnNidioma)),\n\"♗\",INDEX(TablaPiezas[],4,pgnNidioma)),\n\"♘\",INDEX(TablaPiezas[],5,pgnNidioma)))","v":""},{"$f":"IF(pgnNidioma=0,$AE41,SUBSTITUTE(SUBSTITUTE(SUBSTITUTE(SUBSTITUTE(SUBSTITUTE($AE41,\n\"♚\",INDEX(TablaPiezas[],1,pgnNidioma)),\n\"♛\",INDEX(TablaPiezas[],2,pgnNidioma)),\n\"♜\",INDEX(TablaPiezas[],3,pgnNidioma)),\n\"♝\",INDEX(TablaPiezas[],4,pgnNidioma)),\n\"♞\",INDEX(TablaPiezas[],5,pgnNidioma)))","v":""},""]
[42,{"$f":"IFERROR(IF(INDEX(PGN[0],A42-1)=pgnPartida,INDEX(PGN[PGN],A42-1),\"\"),\"\")","v":""}," ","1. e4 e5 2. Nf3 d6 3. d4 Bg4 4. dxe5 Bxf3 5. Qxf3 dxe5 6. Bc4 Nf6 7. Qb3 Qe7 8. Nc3 c6 9. Bg5 b5 10. Nxb5 cxb5 11. Bxb5+ Nbd7 12. O-O-O Rd8 13. Rxd7 Rxd7 14. Rd1 Qe6 15. Bxd7+ Nxd7 16. Qb8+ Nxb8 17. Rd8# 1-0                              ",237,"","",{"$f":"IF(OR(E42=0,LEN(F42)<100),0,MATCH(\" \",CONCATENATE(MID(RIGHT(F42,15),{15;14;13;12;11;10;9;8;7;6;5;4;3;2;1},1)),0)-1)","v":0},"1. e4 e5 2. Nf3 d6 3. d4 Bg4 4. dxe5 Bxf3 5. Qxf3 dxe5 6. Bc4 Nf6 7. Qb3 Qe7 8. Nc3 c6 9. Bg5 b5 10. Nxb5 cxb5 11. Bxb5+ Nbd7 12. O-O-O Rd8 13. Rxd7 Rxd7 14. Rd1 Qe6 15. Bxd7+ Nxd7 16. Qb8+ Nxb8 17. Rd8# 1-0",209,209,""," ","1. e4 e5 2. Nf3 d6 3. d4 Bg4 4. dxe5 Bxf3 5. Qxf3 dxe5 6. Bc4 Nf6 7. Qb3 Qe7 8. Nc3 c6 9. Bg5 b5 10. Nxb5 cxb5 11. Bxb5+ Nbd7 12. O-O-O Rd8 13. Rxd7 Rxd7 14. Rd1 Qe6 15. Bxd7+ Nxd7 16. Qb8+ Nxb8 17. Rd8# 1-0",209,209,""," ","1. e4 e5 2. Nf3 d6 3. d4 Bg4 4. dxe5 Bxf3 5. Qxf3 dxe5 6. Bc4 Nf6 7. Qb3 Qe7 8. Nc3 c6 9. Bg5 b5 10. Nxb5 cxb5 11. Bxb5+ Nbd7 12. O-O-O Rd8 13. Rxd7 Rxd7 14. Rd1 Qe6 15. Bxd7+ Nxd7 16. Qb8+ Nxb8 17. Rd8# 1-0",209,209,""," ",41,209,"","","","","","","",{"$f":"IF(pgnNidioma=0,$AD42,SUBSTITUTE(SUBSTITUTE(SUBSTITUTE(SUBSTITUTE(SUBSTITUTE($AD42,\n\"♔\",INDEX(TablaPiezas[],1,pgnNidioma)),\n\"♕\",INDEX(TablaPiezas[],2,pgnNidioma)),\n\"♖\",INDEX(TablaPiezas[],3,pgnNidioma)),\n\"♗\",INDEX(TablaPiezas[],4,pgnNidioma)),\n\"♘\",INDEX(TablaPiezas[],5,pgnNidioma)))","v":""},{"$f":"IF(pgnNidioma=0,$AE42,SUBSTITUTE(SUBSTITUTE(SUBSTITUTE(SUBSTITUTE(SUBSTITUTE($AE42,\n\"♚\",INDEX(TablaPiezas[],1,pgnNidioma)),\n\"♛\",INDEX(TablaPiezas[],2,pgnNidioma)),\n\"♜\",INDEX(TablaPiezas[],3,pgnNidioma)),\n\"♝\",INDEX(TablaPiezas[],4,pgnNidioma)),\n\"♞\",INDEX(TablaPiezas[],5,pgnNidioma)))","v":""},""]
[43,{"$f":"IFERROR(IF(INDEX(PGN[0],A43-1)=pgnPartida,INDEX(PGN[PGN],A43-1),\"\"),\"\")","v":""}," ","1. e4 e5 2. Nf3 d6 3. d4 Bg4 4. dxe5 Bxf3 5. Qxf3 dxe5 6. Bc4 Nf6 7. Qb3 Qe7 8. Nc3 c6 9. Bg5 b5 10. Nxb5 cxb5 11. Bxb5+ Nbd7 12. O-O-O Rd8 13. Rxd7 Rxd7 14. Rd1 Qe6 15. Bxd7+ Nxd7 16. Qb8+ Nxb8 17. Rd8# 1-0                               ",238,"","",{"$f":"IF(OR(E43=0,LEN(F43)<100),0,MATCH(\" \",CONCATENATE(MID(RIGHT(F43,15),{15;14;13;12;11;10;9;8;7;6;5;4;3;2;1},1)),0)-1)","v":0},"1. e4 e5 2. Nf3 d6 3. d4 Bg4 4. dxe5 Bxf3 5. Qxf3 dxe5 6. Bc4 Nf6 7. Qb3 Qe7 8. Nc3 c6 9. Bg5 b5 10. Nxb5 cxb5 11. Bxb5+ Nbd7 12. O-O-O Rd8 13. Rxd7 Rxd7 14. Rd1 Qe6 15. Bxd7+ Nxd7 16. Qb8+ Nxb8 17. Rd8# 1-0",209,209,""," ","1. e4 e5 2. Nf3 d6 3. d4 Bg4 4. dxe5 Bxf3 5. Qxf3 dxe5 6. Bc4 Nf6 7. Qb3 Qe7 8. Nc3 c6 9. Bg5 b5 10. Nxb5 cxb5 11. Bxb5+ Nbd7 12. O-O-O Rd8 13. Rxd7 Rxd7 14. Rd1 Qe6 15. Bxd7+ Nxd7 16. Qb8+ Nxb8 17. Rd8# 1-0",209,209,""," ","1. e4 e5 2. Nf3 d6 3. d4 Bg4 4. dxe5 Bxf3 5. Qxf3 dxe5 6. Bc4 Nf6 7. Qb3 Qe7 8. Nc3 c6 9. Bg5 b5 10. Nxb5 cxb5 11. Bxb5+ Nbd7 12. O-O-O Rd8 13. Rxd7 Rxd7 14. Rd1 Qe6 15. Bxd7+ Nxd7 16. Qb8+ Nxb8 17. Rd8# 1-0",209,209,""," ",42,209,"","","","","","","",{"$f":"IF(pgnNidioma=0,$AD43,SUBSTITUTE(SUBSTITUTE(SUBSTITUTE(SUBSTITUTE(SUBSTITUTE($AD43,\n\"♔\",INDEX(TablaPiezas[],1,pgnNidioma)),\n\"♕\",INDEX(TablaPiezas[],2,pgnNidioma)),\n\"♖\",INDEX(TablaPiezas[],3,pgnNidioma)),\n\"♗\",INDEX(TablaPiezas[],4,pgnNidioma)),\n\"♘\",INDEX(TablaPiezas[],5,pgnNidioma)))","v":""},{"$f":"IF(pgnNidioma=0,$AE43,SUBSTITUTE(SUBSTITUTE(SUBSTITUTE(SUBSTITUTE(SUBSTITUTE($AE43,\n\"♚\",INDEX(TablaPiezas[],1,pgnNidioma)),\n\"♛\",INDEX(TablaPiezas[],2,pgnNidioma)),\n\"♜\",INDEX(TablaPiezas[],3,pgnNidioma)),\n\"♝\",INDEX(TablaPiezas[],4,pgnNidioma)),\n\"♞\",INDEX(TablaPiezas[],5,pgnNidioma)))","v":""},""]
[44,{"$f":"IFERROR(IF(INDEX(PGN[0],A44-1)=pgnPartida,INDEX(PGN[PGN],A44-1),\"\"),\"\")","v":""}," ","1. e4 e5 2. Nf3 d6 3. d4 Bg4 4. dxe5 Bxf3 5. Qxf3 dxe5 6. Bc4 Nf6 7. Qb3 Qe7 8. Nc3 c6 9. Bg5 b5 10. Nxb5 cxb5 11. Bxb5+ Nbd7 12. O-O-O Rd8 13. Rxd7 Rxd7 14. Rd1 Qe6 15. Bxd7+ Nxd7 16. Qb8+ Nxb8 17. Rd8# 1-0                                ",239,"","",{"$f":"IF(OR(E44=0,LEN(F44)<100),0,MATCH(\" \",CONCATENATE(MID(RIGHT(F44,15),{15;14;13;12;11;10;9;8;7;6;5;4;3;2;1},1)),0)-1)","v":0},"1. e4 e5 2. Nf3 d6 3. d4 Bg4 4. dxe5 Bxf3 5. Qxf3 dxe5 6. Bc4 Nf6 7. Qb3 Qe7 8. Nc3 c6 9. Bg5 b5 10. Nxb5 cxb5 11. Bxb5+ Nbd7 12. O-O-O Rd8 13. Rxd7 Rxd7 14. Rd1 Qe6 15. Bxd7+ Nxd7 16. Qb8+ Nxb8 17. Rd8# 1-0",209,209,""," ","1. e4 e5 2. Nf3 d6 3. d4 Bg4 4. dxe5 Bxf3 5. Qxf3 dxe5 6. Bc4 Nf6 7. Qb3 Qe7 8. Nc3 c6 9. Bg5 b5 10. Nxb5 cxb5 11. Bxb5+ Nbd7 12. O-O-O Rd8 13. Rxd7 Rxd7 14. Rd1 Qe6 15. Bxd7+ Nxd7 16. Qb8+ Nxb8 17. Rd8# 1-0",209,209,""," ","1. e4 e5 2. Nf3 d6 3. d4 Bg4 4. dxe5 Bxf3 5. Qxf3 dxe5 6. Bc4 Nf6 7. Qb3 Qe7 8. Nc3 c6 9. Bg5 b5 10. Nxb5 cxb5 11. Bxb5+ Nbd7 12. O-O-O Rd8 13. Rxd7 Rxd7 14. Rd1 Qe6 15. Bxd7+ Nxd7 16. Qb8+ Nxb8 17. Rd8# 1-0",209,209,""," ",43,209,"","","","","","","",{"$f":"IF(pgnNidioma=0,$AD44,SUBSTITUTE(SUBSTITUTE(SUBSTITUTE(SUBSTITUTE(SUBSTITUTE($AD44,\n\"♔\",INDEX(TablaPiezas[],1,pgnNidioma)),\n\"♕\",INDEX(TablaPiezas[],2,pgnNidioma)),\n\"♖\",INDEX(TablaPiezas[],3,pgnNidioma)),\n\"♗\",INDEX(TablaPiezas[],4,pgnNidioma)),\n\"♘\",INDEX(TablaPiezas[],5,pgnNidioma)))","v":""},{"$f":"IF(pgnNidioma=0,$AE44,SUBSTITUTE(SUBSTITUTE(SUBSTITUTE(SUBSTITUTE(SUBSTITUTE($AE44,\n\"♚\",INDEX(TablaPiezas[],1,pgnNidioma)),\n\"♛\",INDEX(TablaPiezas[],2,pgnNidioma)),\n\"♜\",INDEX(TablaPiezas[],3,pgnNidioma)),\n\"♝\",INDEX(TablaPiezas[],4,pgnNidioma)),\n\"♞\",INDEX(TablaPiezas[],5,pgnNidioma)))","v":""},""]
[45,{"$f":"IFERROR(IF(INDEX(PGN[0],A45-1)=pgnPartida,INDEX(PGN[PGN],A45-1),\"\"),\"\")","v":""}," ","1. e4 e5 2. Nf3 d6 3. d4 Bg4 4. dxe5 Bxf3 5. Qxf3 dxe5 6. Bc4 Nf6 7. Qb3 Qe7 8. Nc3 c6 9. Bg5 b5 10. Nxb5 cxb5 11. Bxb5+ Nbd7 12. O-O-O Rd8 13. Rxd7 Rxd7 14. Rd1 Qe6 15. Bxd7+ Nxd7 16. Qb8+ Nxb8 17. Rd8# 1-0                                 ",240,"","",{"$f":"IF(OR(E45=0,LEN(F45)<100),0,MATCH(\" \",CONCATENATE(MID(RIGHT(F45,15),{15;14;13;12;11;10;9;8;7;6;5;4;3;2;1},1)),0)-1)","v":0},"1. e4 e5 2. Nf3 d6 3. d4 Bg4 4. dxe5 Bxf3 5. Qxf3 dxe5 6. Bc4 Nf6 7. Qb3 Qe7 8. Nc3 c6 9. Bg5 b5 10. Nxb5 cxb5 11. Bxb5+ Nbd7 12. O-O-O Rd8 13. Rxd7 Rxd7 14. Rd1 Qe6 15. Bxd7+ Nxd7 16. Qb8+ Nxb8 17. Rd8# 1-0",209,209,""," ","1. e4 e5 2. Nf3 d6 3. d4 Bg4 4. dxe5 Bxf3 5. Qxf3 dxe5 6. Bc4 Nf6 7. Qb3 Qe7 8. Nc3 c6 9. Bg5 b5 10. Nxb5 cxb5 11. Bxb5+ Nbd7 12. O-O-O Rd8 13. Rxd7 Rxd7 14. Rd1 Qe6 15. Bxd7+ Nxd7 16. Qb8+ Nxb8 17. Rd8# 1-0",209,209,""," ","1. e4 e5 2. Nf3 d6 3. d4 Bg4 4. dxe5 Bxf3 5. Qxf3 dxe5 6. Bc4 Nf6 7. Qb3 Qe7 8. Nc3 c6 9. Bg5 b5 10. Nxb5 cxb5 11. Bxb5+ Nbd7 12. O-O-O Rd8 13. Rxd7 Rxd7 14. Rd1 Qe6 15. Bxd7+ Nxd7 16. Qb8+ Nxb8 17. Rd8# 1-0",209,209,""," ",44,209,"","","","","","","",{"$f":"IF(pgnNidioma=0,$AD45,SUBSTITUTE(SUBSTITUTE(SUBSTITUTE(SUBSTITUTE(SUBSTITUTE($AD45,\n\"♔\",INDEX(TablaPiezas[],1,pgnNidioma)),\n\"♕\",INDEX(TablaPiezas[],2,pgnNidioma)),\n\"♖\",INDEX(TablaPiezas[],3,pgnNidioma)),\n\"♗\",INDEX(TablaPiezas[],4,pgnNidioma)),\n\"♘\",INDEX(TablaPiezas[],5,pgnNidioma)))","v":""},{"$f":"IF(pgnNidioma=0,$AE45,SUBSTITUTE(SUBSTITUTE(SUBSTITUTE(SUBSTITUTE(SUBSTITUTE($AE45,\n\"♚\",INDEX(TablaPiezas[],1,pgnNidioma)),\n\"♛\",INDEX(TablaPiezas[],2,pgnNidioma)),\n\"♜\",INDEX(TablaPiezas[],3,pgnNidioma)),\n\"♝\",INDEX(TablaPiezas[],4,pgnNidioma)),\n\"♞\",INDEX(TablaPiezas[],5,pgnNidioma)))","v":""},""]
[46,{"$f":"IFERROR(IF(INDEX(PGN[0],A46-1)=pgnPartida,INDEX(PGN[PGN],A46-1),\"\"),\"\")","v":""}," ","1. e4 e5 2. Nf3 d6 3. d4 Bg4 4. dxe5 Bxf3 5. Qxf3 dxe5 6. Bc4 Nf6 7. Qb3 Qe7 8. Nc3 c6 9. Bg5 b5 10. Nxb5 cxb5 11. Bxb5+ Nbd7 12. O-O-O Rd8 13. Rxd7 Rxd7 14. Rd1 Qe6 15. Bxd7+ Nxd7 16. Qb8+ Nxb8 17. Rd8# 1-0                                  ",241,"","",{"$f":"IF(OR(E46=0,LEN(F46)<100),0,MATCH(\" \",CONCATENATE(MID(RIGHT(F46,15),{15;14;13;12;11;10;9;8;7;6;5;4;3;2;1},1)),0)-1)","v":0},"1. e4 e5 2. Nf3 d6 3. d4 Bg4 4. dxe5 Bxf3 5. Qxf3 dxe5 6. Bc4 Nf6 7. Qb3 Qe7 8. Nc3 c6 9. Bg5 b5 10. Nxb5 cxb5 11. Bxb5+ Nbd7 12. O-O-O Rd8 13. Rxd7 Rxd7 14. Rd1 Qe6 15. Bxd7+ Nxd7 16. Qb8+ Nxb8 17. Rd8# 1-0",209,209,""," ","1. e4 e5 2. Nf3 d6 3. d4 Bg4 4. dxe5 Bxf3 5. Qxf3 dxe5 6. Bc4 Nf6 7. Qb3 Qe7 8. Nc3 c6 9. Bg5 b5 10. Nxb5 cxb5 11. Bxb5+ Nbd7 12. O-O-O Rd8 13. Rxd7 Rxd7 14. Rd1 Qe6 15. Bxd7+ Nxd7 16. Qb8+ Nxb8 17. Rd8# 1-0",209,209,""," ","1. e4 e5 2. Nf3 d6 3. d4 Bg4 4. dxe5 Bxf3 5. Qxf3 dxe5 6. Bc4 Nf6 7. Qb3 Qe7 8. Nc3 c6 9. Bg5 b5 10. Nxb5 cxb5 11. Bxb5+ Nbd7 12. O-O-O Rd8 13. Rxd7 Rxd7 14. Rd1 Qe6 15. Bxd7+ Nxd7 16. Qb8+ Nxb8 17. Rd8# 1-0",209,209,""," ",45,209,"","","","","","","",{"$f":"IF(pgnNidioma=0,$AD46,SUBSTITUTE(SUBSTITUTE(SUBSTITUTE(SUBSTITUTE(SUBSTITUTE($AD46,\n\"♔\",INDEX(TablaPiezas[],1,pgnNidioma)),\n\"♕\",INDEX(TablaPiezas[],2,pgnNidioma)),\n\"♖\",INDEX(TablaPiezas[],3,pgnNidioma)),\n\"♗\",INDEX(TablaPiezas[],4,pgnNidioma)),\n\"♘\",INDEX(TablaPiezas[],5,pgnNidioma)))","v":""},{"$f":"IF(pgnNidioma=0,$AE46,SUBSTITUTE(SUBSTITUTE(SUBSTITUTE(SUBSTITUTE(SUBSTITUTE($AE46,\n\"♚\",INDEX(TablaPiezas[],1,pgnNidioma)),\n\"♛\",INDEX(TablaPiezas[],2,pgnNidioma)),\n\"♜\",INDEX(TablaPiezas[],3,pgnNidioma)),\n\"♝\",INDEX(TablaPiezas[],4,pgnNidioma)),\n\"♞\",INDEX(TablaPiezas[],5,pgnNidioma)))","v":""},""]
[47,{"$f":"IFERROR(IF(INDEX(PGN[0],A47-1)=pgnPartida,INDEX(PGN[PGN],A47-1),\"\"),\"\")","v":""}," ","1. e4 e5 2. Nf3 d6 3. d4 Bg4 4. dxe5 Bxf3 5. Qxf3 dxe5 6. Bc4 Nf6 7. Qb3 Qe7 8. Nc3 c6 9. Bg5 b5 10. Nxb5 cxb5 11. Bxb5+ Nbd7 12. O-O-O Rd8 13. Rxd7 Rxd7 14. Rd1 Qe6 15. Bxd7+ Nxd7 16. Qb8+ Nxb8 17. Rd8# 1-0                                   ",242,"","",{"$f":"IF(OR(E47=0,LEN(F47)<100),0,MATCH(\" \",CONCATENATE(MID(RIGHT(F47,15),{15;14;13;12;11;10;9;8;7;6;5;4;3;2;1},1)),0)-1)","v":0},"1. e4 e5 2. Nf3 d6 3. d4 Bg4 4. dxe5 Bxf3 5. Qxf3 dxe5 6. Bc4 Nf6 7. Qb3 Qe7 8. Nc3 c6 9. Bg5 b5 10. Nxb5 cxb5 11. Bxb5+ Nbd7 12. O-O-O Rd8 13. Rxd7 Rxd7 14. Rd1 Qe6 15. Bxd7+ Nxd7 16. Qb8+ Nxb8 17. Rd8# 1-0",209,209,""," ","1. e4 e5 2. Nf3 d6 3. d4 Bg4 4. dxe5 Bxf3 5. Qxf3 dxe5 6. Bc4 Nf6 7. Qb3 Qe7 8. Nc3 c6 9. Bg5 b5 10. Nxb5 cxb5 11. Bxb5+ Nbd7 12. O-O-O Rd8 13. Rxd7 Rxd7 14. Rd1 Qe6 15. Bxd7+ Nxd7 16. Qb8+ Nxb8 17. Rd8# 1-0",209,209,""," ","1. e4 e5 2. Nf3 d6 3. d4 Bg4 4. dxe5 Bxf3 5. Qxf3 dxe5 6. Bc4 Nf6 7. Qb3 Qe7 8. Nc3 c6 9. Bg5 b5 10. Nxb5 cxb5 11. Bxb5+ Nbd7 12. O-O-O Rd8 13. Rxd7 Rxd7 14. Rd1 Qe6 15. Bxd7+ Nxd7 16. Qb8+ Nxb8 17. Rd8# 1-0",209,209,""," ",46,209,"","","","","","","",{"$f":"IF(pgnNidioma=0,$AD47,SUBSTITUTE(SUBSTITUTE(SUBSTITUTE(SUBSTITUTE(SUBSTITUTE($AD47,\n\"♔\",INDEX(TablaPiezas[],1,pgnNidioma)),\n\"♕\",INDEX(TablaPiezas[],2,pgnNidioma)),\n\"♖\",INDEX(TablaPiezas[],3,pgnNidioma)),\n\"♗\",INDEX(TablaPiezas[],4,pgnNidioma)),\n\"♘\",INDEX(TablaPiezas[],5,pgnNidioma)))","v":""},{"$f":"IF(pgnNidioma=0,$AE47,SUBSTITUTE(SUBSTITUTE(SUBSTITUTE(SUBSTITUTE(SUBSTITUTE($AE47,\n\"♚\",INDEX(TablaPiezas[],1,pgnNidioma)),\n\"♛\",INDEX(TablaPiezas[],2,pgnNidioma)),\n\"♜\",INDEX(TablaPiezas[],3,pgnNidioma)),\n\"♝\",INDEX(TablaPiezas[],4,pgnNidioma)),\n\"♞\",INDEX(TablaPiezas[],5,pgnNidioma)))","v":""},""]
[48,{"$f":"IFERROR(IF(INDEX(PGN[0],A48-1)=pgnPartida,INDEX(PGN[PGN],A48-1),\"\"),\"\")","v":""}," ","1. e4 e5 2. Nf3 d6 3. d4 Bg4 4. dxe5 Bxf3 5. Qxf3 dxe5 6. Bc4 Nf6 7. Qb3 Qe7 8. Nc3 c6 9. Bg5 b5 10. Nxb5 cxb5 11. Bxb5+ Nbd7 12. O-O-O Rd8 13. Rxd7 Rxd7 14. Rd1 Qe6 15. Bxd7+ Nxd7 16. Qb8+ Nxb8 17. Rd8# 1-0                                    ",243,"","",{"$f":"IF(OR(E48=0,LEN(F48)<100),0,MATCH(\" \",CONCATENATE(MID(RIGHT(F48,15),{15;14;13;12;11;10;9;8;7;6;5;4;3;2;1},1)),0)-1)","v":0},"1. e4 e5 2. Nf3 d6 3. d4 Bg4 4. dxe5 Bxf3 5. Qxf3 dxe5 6. Bc4 Nf6 7. Qb3 Qe7 8. Nc3 c6 9. Bg5 b5 10. Nxb5 cxb5 11. Bxb5+ Nbd7 12. O-O-O Rd8 13. Rxd7 Rxd7 14. Rd1 Qe6 15. Bxd7+ Nxd7 16. Qb8+ Nxb8 17. Rd8# 1-0",209,209,""," ","1. e4 e5 2. Nf3 d6 3. d4 Bg4 4. dxe5 Bxf3 5. Qxf3 dxe5 6. Bc4 Nf6 7. Qb3 Qe7 8. Nc3 c6 9. Bg5 b5 10. Nxb5 cxb5 11. Bxb5+ Nbd7 12. O-O-O Rd8 13. Rxd7 Rxd7 14. Rd1 Qe6 15. Bxd7+ Nxd7 16. Qb8+ Nxb8 17. Rd8# 1-0",209,209,""," ","1. e4 e5 2. Nf3 d6 3. d4 Bg4 4. dxe5 Bxf3 5. Qxf3 dxe5 6. Bc4 Nf6 7. Qb3 Qe7 8. Nc3 c6 9. Bg5 b5 10. Nxb5 cxb5 11. Bxb5+ Nbd7 12. O-O-O Rd8 13. Rxd7 Rxd7 14. Rd1 Qe6 15. Bxd7+ Nxd7 16. Qb8+ Nxb8 17. Rd8# 1-0",209,209,""," ",47,209,"","","","","","","",{"$f":"IF(pgnNidioma=0,$AD48,SUBSTITUTE(SUBSTITUTE(SUBSTITUTE(SUBSTITUTE(SUBSTITUTE($AD48,\n\"♔\",INDEX(TablaPiezas[],1,pgnNidioma)),\n\"♕\",INDEX(TablaPiezas[],2,pgnNidioma)),\n\"♖\",INDEX(TablaPiezas[],3,pgnNidioma)),\n\"♗\",INDEX(TablaPiezas[],4,pgnNidioma)),\n\"♘\",INDEX(TablaPiezas[],5,pgnNidioma)))","v":""},{"$f":"IF(pgnNidioma=0,$AE48,SUBSTITUTE(SUBSTITUTE(SUBSTITUTE(SUBSTITUTE(SUBSTITUTE($AE48,\n\"♚\",INDEX(TablaPiezas[],1,pgnNidioma)),\n\"♛\",INDEX(TablaPiezas[],2,pgnNidioma)),\n\"♜\",INDEX(TablaPiezas[],3,pgnNidioma)),\n\"♝\",INDEX(TablaPiezas[],4,pgnNidioma)),\n\"♞\",INDEX(TablaPiezas[],5,pgnNidioma)))","v":""},""]
[49,{"$f":"IFERROR(IF(INDEX(PGN[0],A49-1)=pgnPartida,INDEX(PGN[PGN],A49-1),\"\"),\"\")","v":""}," ","1. e4 e5 2. Nf3 d6 3. d4 Bg4 4. dxe5 Bxf3 5. Qxf3 dxe5 6. Bc4 Nf6 7. Qb3 Qe7 8. Nc3 c6 9. Bg5 b5 10. Nxb5 cxb5 11. Bxb5+ Nbd7 12. O-O-O Rd8 13. Rxd7 Rxd7 14. Rd1 Qe6 15. Bxd7+ Nxd7 16. Qb8+ Nxb8 17. Rd8# 1-0                                     ",244,"","",{"$f":"IF(OR(E49=0,LEN(F49)<100),0,MATCH(\" \",CONCATENATE(MID(RIGHT(F49,15),{15;14;13;12;11;10;9;8;7;6;5;4;3;2;1},1)),0)-1)","v":0},"1. e4 e5 2. Nf3 d6 3. d4 Bg4 4. dxe5 Bxf3 5. Qxf3 dxe5 6. Bc4 Nf6 7. Qb3 Qe7 8. Nc3 c6 9. Bg5 b5 10. Nxb5 cxb5 11. Bxb5+ Nbd7 12. O-O-O Rd8 13. Rxd7 Rxd7 14. Rd1 Qe6 15. Bxd7+ Nxd7 16. Qb8+ Nxb8 17. Rd8# 1-0",209,209,""," ","1. e4 e5 2. Nf3 d6 3. d4 Bg4 4. dxe5 Bxf3 5. Qxf3 dxe5 6. Bc4 Nf6 7. Qb3 Qe7 8. Nc3 c6 9. Bg5 b5 10. Nxb5 cxb5 11. Bxb5+ Nbd7 12. O-O-O Rd8 13. Rxd7 Rxd7 14. Rd1 Qe6 15. Bxd7+ Nxd7 16. Qb8+ Nxb8 17. Rd8# 1-0",209,209,""," ","1. e4 e5 2. Nf3 d6 3. d4 Bg4 4. dxe5 Bxf3 5. Qxf3 dxe5 6. Bc4 Nf6 7. Qb3 Qe7 8. Nc3 c6 9. Bg5 b5 10. Nxb5 cxb5 11. Bxb5+ Nbd7 12. O-O-O Rd8 13. Rxd7 Rxd7 14. Rd1 Qe6 15. Bxd7+ Nxd7 16. Qb8+ Nxb8 17. Rd8# 1-0",209,209,""," ",48,209,"","","","","","","",{"$f":"IF(pgnNidioma=0,$AD49,SUBSTITUTE(SUBSTITUTE(SUBSTITUTE(SUBSTITUTE(SUBSTITUTE($AD49,\n\"♔\",INDEX(TablaPiezas[],1,pgnNidioma)),\n\"♕\",INDEX(TablaPiezas[],2,pgnNidioma)),\n\"♖\",INDEX(TablaPiezas[],3,pgnNidioma)),\n\"♗\",INDEX(TablaPiezas[],4,pgnNidioma)),\n\"♘\",INDEX(TablaPiezas[],5,pgnNidioma)))","v":""},{"$f":"IF(pgnNidioma=0,$AE49,SUBSTITUTE(SUBSTITUTE(SUBSTITUTE(SUBSTITUTE(SUBSTITUTE($AE49,\n\"♚\",INDEX(TablaPiezas[],1,pgnNidioma)),\n\"♛\",INDEX(TablaPiezas[],2,pgnNidioma)),\n\"♜\",INDEX(TablaPiezas[],3,pgnNidioma)),\n\"♝\",INDEX(TablaPiezas[],4,pgnNidioma)),\n\"♞\",INDEX(TablaPiezas[],5,pgnNidioma)))","v":""},""]
[50,{"$f":"IFERROR(IF(INDEX(PGN[0],A50-1)=pgnPartida,INDEX(PGN[PGN],A50-1),\"\"),\"\")","v":""}," ","1. e4 e5 2. Nf3 d6 3. d4 Bg4 4. dxe5 Bxf3 5. Qxf3 dxe5 6. Bc4 Nf6 7. Qb3 Qe7 8. Nc3 c6 9. Bg5 b5 10. Nxb5 cxb5 11. Bxb5+ Nbd7 12. O-O-O Rd8 13. Rxd7 Rxd7 14. Rd1 Qe6 15. Bxd7+ Nxd7 16. Qb8+ Nxb8 17. Rd8# 1-0                                      ",245,"","",{"$f":"IF(OR(E50=0,LEN(F50)<100),0,MATCH(\" \",CONCATENATE(MID(RIGHT(F50,15),{15;14;13;12;11;10;9;8;7;6;5;4;3;2;1},1)),0)-1)","v":0},"1. e4 e5 2. Nf3 d6 3. d4 Bg4 4. dxe5 Bxf3 5. Qxf3 dxe5 6. Bc4 Nf6 7. Qb3 Qe7 8. Nc3 c6 9. Bg5 b5 10. Nxb5 cxb5 11. Bxb5+ Nbd7 12. O-O-O Rd8 13. Rxd7 Rxd7 14. Rd1 Qe6 15. Bxd7+ Nxd7 16. Qb8+ Nxb8 17. Rd8# 1-0",209,209,""," ","1. e4 e5 2. Nf3 d6 3. d4 Bg4 4. dxe5 Bxf3 5. Qxf3 dxe5 6. Bc4 Nf6 7. Qb3 Qe7 8. Nc3 c6 9. Bg5 b5 10. Nxb5 cxb5 11. Bxb5+ Nbd7 12. O-O-O Rd8 13. Rxd7 Rxd7 14. Rd1 Qe6 15. Bxd7+ Nxd7 16. Qb8+ Nxb8 17. Rd8# 1-0",209,209,""," ","1. e4 e5 2. Nf3 d6 3. d4 Bg4 4. dxe5 Bxf3 5. Qxf3 dxe5 6. Bc4 Nf6 7. Qb3 Qe7 8. Nc3 c6 9. Bg5 b5 10. Nxb5 cxb5 11. Bxb5+ Nbd7 12. O-O-O Rd8 13. Rxd7 Rxd7 14. Rd1 Qe6 15. Bxd7+ Nxd7 16. Qb8+ Nxb8 17. Rd8# 1-0",209,209,""," ",49,209,"","","","","","","",{"$f":"IF(pgnNidioma=0,$AD50,SUBSTITUTE(SUBSTITUTE(SUBSTITUTE(SUBSTITUTE(SUBSTITUTE($AD50,\n\"♔\",INDEX(TablaPiezas[],1,pgnNidioma)),\n\"♕\",INDEX(TablaPiezas[],2,pgnNidioma)),\n\"♖\",INDEX(TablaPiezas[],3,pgnNidioma)),\n\"♗\",INDEX(TablaPiezas[],4,pgnNidioma)),\n\"♘\",INDEX(TablaPiezas[],5,pgnNidioma)))","v":""},{"$f":"IF(pgnNidioma=0,$AE50,SUBSTITUTE(SUBSTITUTE(SUBSTITUTE(SUBSTITUTE(SUBSTITUTE($AE50,\n\"♚\",INDEX(TablaPiezas[],1,pgnNidioma)),\n\"♛\",INDEX(TablaPiezas[],2,pgnNidioma)),\n\"♜\",INDEX(TablaPiezas[],3,pgnNidioma)),\n\"♝\",INDEX(TablaPiezas[],4,pgnNidioma)),\n\"♞\",INDEX(TablaPiezas[],5,pgnNidioma)))","v":""},""]
[51,{"$f":"IFERROR(IF(INDEX(PGN[0],A51-1)=pgnPartida,INDEX(PGN[PGN],A51-1),\"\"),\"\")","v":""},null,"1. e4 e5 2. Nf3 d6 3. d4 Bg4 4. dxe5 Bxf3 5. Qxf3 dxe5 6. Bc4 Nf6 7. Qb3 Qe7 8. Nc3 c6 9. Bg5 b5 10. Nxb5 cxb5 11. Bxb5+ Nbd7 12. O-O-O Rd8 13. Rxd7 Rxd7 14. Rd1 Qe6 15. Bxd7+ Nxd7 16. Qb8+ Nxb8 17. Rd8# 1-0                                       ",246,"","",{"$f":"IF(OR(E51=0,LEN(F51)<100),0,MATCH(\" \",CONCATENATE(MID(RIGHT(F51,15),{15;14;13;12;11;10;9;8;7;6;5;4;3;2;1},1)),0)-1)","v":0},{"$f":"SUBSTITUTE(I50,L50,\"\")","v":"1. e4 e5 2. Nf3 d6 3. d4 Bg4 4. dxe5 Bxf3 5. Qxf3 dxe5 6. Bc4 Nf6 7. Qb3 Qe7 8. Nc3 c6 9. Bg5 b5 10. Nxb5 cxb5 11. Bxb5+ Nbd7 12. O-O-O Rd8 13. Rxd7 Rxd7 14. Rd1 Qe6 15. Bxd7+ Nxd7 16. Qb8+ Nxb8 17. Rd8# 1-0"},{"$f":"IFERROR(FIND(\"{\",I51),LEN(I51)+2)","v":209},{"$f":"IFERROR(FIND(\"}\",I51,J51),LEN(I51)+2)","v":209},{"$f":"IFERROR(MID(I51,J51,K51-J51+1),\"\")","v":""}," ",null,null,null,null," ",null,null,null,null," ",50,209,"","","","","","","",{"$f":"IF(pgnNidioma=0,$AD51,SUBSTITUTE(SUBSTITUTE(SUBSTITUTE(SUBSTITUTE(SUBSTITUTE($AD51,\n\"♔\",INDEX(TablaPiezas[],1,pgnNidioma)),\n\"♕\",INDEX(TablaPiezas[],2,pgnNidioma)),\n\"♖\",INDEX(TablaPiezas[],3,pgnNidioma)),\n\"♗\",INDEX(TablaPiezas[],4,pgnNidioma)),\n\"♘\",INDEX(TablaPiezas[],5,pgnNidioma)))","v":""},{"$f":"IF(pgnNidioma=0,$AE51,SUBSTITUTE(SUBSTITUTE(SUBSTITUTE(SUBSTITUTE(SUBSTITUTE($AE51,\n\"♚\",INDEX(TablaPiezas[],1,pgnNidioma)),\n\"♛\",INDEX(TablaPiezas[],2,pgnNidioma)),\n\"♜\",INDEX(TablaPiezas[],3,pgnNidioma)),\n\"♝\",INDEX(TablaPiezas[],4,pgnNidioma)),\n\"♞\",INDEX(TablaPiezas[],5,pgnNidioma)))","v":""},""]
[52,{"$f":"IFERROR(IF(INDEX(PGN[0],A52-1)=pgnPartida,INDEX(PGN[PGN],A52-1),\"\"),\"\")","v":""},null,"1. e4 e5 2. Nf3 d6 3. d4 Bg4 4. dxe5 Bxf3 5. Qxf3 dxe5 6. Bc4 Nf6 7. Qb3 Qe7 8. Nc3 c6 9. Bg5 b5 10. Nxb5 cxb5 11. Bxb5+ Nbd7 12. O-O-O Rd8 13. Rxd7 Rxd7 14. Rd1 Qe6 15. Bxd7+ Nxd7 16. Qb8+ Nxb8 17. Rd8# 1-0                                        ",247,"","",{"$f":"IF(OR(E52=0,LEN(F52)<100),0,MATCH(\" \",CONCATENATE(MID(RIGHT(F52,15),{15;14;13;12;11;10;9;8;7;6;5;4;3;2;1},1)),0)-1)","v":0},"1. e4 e5 2. Nf3 d6 3. d4 Bg4 4. dxe5 Bxf3 5. Qxf3 dxe5 6. Bc4 Nf6 7. Qb3 Qe7 8. Nc3 c6 9. Bg5 b5 10. Nxb5 cxb5 11. Bxb5+ Nbd7 12. O-O-O Rd8 13. Rxd7 Rxd7 14. Rd1 Qe6 15. Bxd7+ Nxd7 16. Qb8+ Nxb8 17. Rd8# 1-0",209,209,""," ",null,null,null,null," ",null,null,null,null," ",51,209,"","","","","","","",{"$f":"IF(pgnNidioma=0,$AD52,SUBSTITUTE(SUBSTITUTE(SUBSTITUTE(SUBSTITUTE(SUBSTITUTE($AD52,\n\"♔\",INDEX(TablaPiezas[],1,pgnNidioma)),\n\"♕\",INDEX(TablaPiezas[],2,pgnNidioma)),\n\"♖\",INDEX(TablaPiezas[],3,pgnNidioma)),\n\"♗\",INDEX(TablaPiezas[],4,pgnNidioma)),\n\"♘\",INDEX(TablaPiezas[],5,pgnNidioma)))","v":""},{"$f":"IF(pgnNidioma=0,$AE52,SUBSTITUTE(SUBSTITUTE(SUBSTITUTE(SUBSTITUTE(SUBSTITUTE($AE52,\n\"♚\",INDEX(TablaPiezas[],1,pgnNidioma)),\n\"♛\",INDEX(TablaPiezas[],2,pgnNidioma)),\n\"♜\",INDEX(TablaPiezas[],3,pgnNidioma)),\n\"♝\",INDEX(TablaPiezas[],4,pgnNidioma)),\n\"♞\",INDEX(TablaPiezas[],5,pgnNidioma)))","v":""},""]
[53,{"$f":"IFERROR(IF(INDEX(PGN[0],A53-1)=pgnPartida,INDEX(PGN[PGN],A53-1),\"\"),\"\")","v":""},null,"1. e4 e5 2. Nf3 d6 3. d4 Bg4 4. dxe5 Bxf3 5. Qxf3 dxe5 6. Bc4 Nf6 7. Qb3 Qe7 8. Nc3 c6 9. Bg5 b5 10. Nxb5 cxb5 11. Bxb5+ Nbd7 12. O-O-O Rd8 13. Rxd7 Rxd7 14. Rd1 Qe6 15. Bxd7+ Nxd7 16. Qb8+ Nxb8 17. Rd8# 1-0                                         ",248,"","",{"$f":"IF(OR(E53=0,LEN(F53)<100),0,MATCH(\" \",CONCATENATE(MID(RIGHT(F53,15),{15;14;13;12;11;10;9;8;7;6;5;4;3;2;1},1)),0)-1)","v":0},"1. e4 e5 2. Nf3 d6 3. d4 Bg4 4. dxe5 Bxf3 5. Qxf3 dxe5 6. Bc4 Nf6 7. Qb3 Qe7 8. Nc3 c6 9. Bg5 b5 10. Nxb5 cxb5 11. Bxb5+ Nbd7 12. O-O-O Rd8 13. Rxd7 Rxd7 14. Rd1 Qe6 15. Bxd7+ Nxd7 16. Qb8+ Nxb8 17. Rd8# 1-0",209,209,""," ",null,null,null,null," ",null,null,null,null," ",52,209,"","","","","","","",{"$f":"IF(pgnNidioma=0,$AD53,SUBSTITUTE(SUBSTITUTE(SUBSTITUTE(SUBSTITUTE(SUBSTITUTE($AD53,\n\"♔\",INDEX(TablaPiezas[],1,pgnNidioma)),\n\"♕\",INDEX(TablaPiezas[],2,pgnNidioma)),\n\"♖\",INDEX(TablaPiezas[],3,pgnNidioma)),\n\"♗\",INDEX(TablaPiezas[],4,pgnNidioma)),\n\"♘\",INDEX(TablaPiezas[],5,pgnNidioma)))","v":""},{"$f":"IF(pgnNidioma=0,$AE53,SUBSTITUTE(SUBSTITUTE(SUBSTITUTE(SUBSTITUTE(SUBSTITUTE($AE53,\n\"♚\",INDEX(TablaPiezas[],1,pgnNidioma)),\n\"♛\",INDEX(TablaPiezas[],2,pgnNidioma)),\n\"♜\",INDEX(TablaPiezas[],3,pgnNidioma)),\n\"♝\",INDEX(TablaPiezas[],4,pgnNidioma)),\n\"♞\",INDEX(TablaPiezas[],5,pgnNidioma)))","v":""},""]
[54,{"$f":"IFERROR(IF(INDEX(PGN[0],A54-1)=pgnPartida,INDEX(PGN[PGN],A54-1),\"\"),\"\")","v":""},null,"1. e4 e5 2. Nf3 d6 3. d4 Bg4 4. dxe5 Bxf3 5. Qxf3 dxe5 6. Bc4 Nf6 7. Qb3 Qe7 8. Nc3 c6 9. Bg5 b5 10. Nxb5 cxb5 11. Bxb5+ Nbd7 12. O-O-O Rd8 13. Rxd7 Rxd7 14. Rd1 Qe6 15. Bxd7+ Nxd7 16. Qb8+ Nxb8 17. Rd8# 1-0                                          ",249,"","",{"$f":"IF(OR(E54=0,LEN(F54)<100),0,MATCH(\" \",CONCATENATE(MID(RIGHT(F54,15),{15;14;13;12;11;10;9;8;7;6;5;4;3;2;1},1)),0)-1)","v":0},"1. e4 e5 2. Nf3 d6 3. d4 Bg4 4. dxe5 Bxf3 5. Qxf3 dxe5 6. Bc4 Nf6 7. Qb3 Qe7 8. Nc3 c6 9. Bg5 b5 10. Nxb5 cxb5 11. Bxb5+ Nbd7 12. O-O-O Rd8 13. Rxd7 Rxd7 14. Rd1 Qe6 15. Bxd7+ Nxd7 16. Qb8+ Nxb8 17. Rd8# 1-0",209,209,""," ",null,null,null,null," ",null,null,null,null," ",53,209,"","","","","","","",{"$f":"IF(pgnNidioma=0,$AD54,SUBSTITUTE(SUBSTITUTE(SUBSTITUTE(SUBSTITUTE(SUBSTITUTE($AD54,\n\"♔\",INDEX(TablaPiezas[],1,pgnNidioma)),\n\"♕\",INDEX(TablaPiezas[],2,pgnNidioma)),\n\"♖\",INDEX(TablaPiezas[],3,pgnNidioma)),\n\"♗\",INDEX(TablaPiezas[],4,pgnNidioma)),\n\"♘\",INDEX(TablaPiezas[],5,pgnNidioma)))","v":""},{"$f":"IF(pgnNidioma=0,$AE54,SUBSTITUTE(SUBSTITUTE(SUBSTITUTE(SUBSTITUTE(SUBSTITUTE($AE54,\n\"♚\",INDEX(TablaPiezas[],1,pgnNidioma)),\n\"♛\",INDEX(TablaPiezas[],2,pgnNidioma)),\n\"♜\",INDEX(TablaPiezas[],3,pgnNidioma)),\n\"♝\",INDEX(TablaPiezas[],4,pgnNidioma)),\n\"♞\",INDEX(TablaPiezas[],5,pgnNidioma)))","v":""},""]
[55,{"$f":"IFERROR(IF(INDEX(PGN[0],A55-1)=pgnPartida,INDEX(PGN[PGN],A55-1),\"\"),\"\")","v":""},null,"1. e4 e5 2. Nf3 d6 3. d4 Bg4 4. dxe5 Bxf3 5. Qxf3 dxe5 6. Bc4 Nf6 7. Qb3 Qe7 8. Nc3 c6 9. Bg5 b5 10. Nxb5 cxb5 11. Bxb5+ Nbd7 12. O-O-O Rd8 13. Rxd7 Rxd7 14. Rd1 Qe6 15. Bxd7+ Nxd7 16. Qb8+ Nxb8 17. Rd8# 1-0                                           ",250,"","",{"$f":"IF(OR(E55=0,LEN(F55)<100),0,MATCH(\" \",CONCATENATE(MID(RIGHT(F55,15),{15;14;13;12;11;10;9;8;7;6;5;4;3;2;1},1)),0)-1)","v":0},"1. e4 e5 2. Nf3 d6 3. d4 Bg4 4. dxe5 Bxf3 5. Qxf3 dxe5 6. Bc4 Nf6 7. Qb3 Qe7 8. Nc3 c6 9. Bg5 b5 10. Nxb5 cxb5 11. Bxb5+ Nbd7 12. O-O-O Rd8 13. Rxd7 Rxd7 14. Rd1 Qe6 15. Bxd7+ Nxd7 16. Qb8+ Nxb8 17. Rd8# 1-0",209,209,""," ",null,null,null,null," ",null,null,null,null," ",54,209,"","","","","","","",{"$f":"IF(pgnNidioma=0,$AD55,SUBSTITUTE(SUBSTITUTE(SUBSTITUTE(SUBSTITUTE(SUBSTITUTE($AD55,\n\"♔\",INDEX(TablaPiezas[],1,pgnNidioma)),\n\"♕\",INDEX(TablaPiezas[],2,pgnNidioma)),\n\"♖\",INDEX(TablaPiezas[],3,pgnNidioma)),\n\"♗\",INDEX(TablaPiezas[],4,pgnNidioma)),\n\"♘\",INDEX(TablaPiezas[],5,pgnNidioma)))","v":""},{"$f":"IF(pgnNidioma=0,$AE55,SUBSTITUTE(SUBSTITUTE(SUBSTITUTE(SUBSTITUTE(SUBSTITUTE($AE55,\n\"♚\",INDEX(TablaPiezas[],1,pgnNidioma)),\n\"♛\",INDEX(TablaPiezas[],2,pgnNidioma)),\n\"♜\",INDEX(TablaPiezas[],3,pgnNidioma)),\n\"♝\",INDEX(TablaPiezas[],4,pgnNidioma)),\n\"♞\",INDEX(TablaPiezas[],5,pgnNidioma)))","v":""},""]
[56,{"$f":"IFERROR(IF(INDEX(PGN[0],A56-1)=pgnPartida,INDEX(PGN[PGN],A56-1),\"\"),\"\")","v":""},null,"1. e4 e5 2. Nf3 d6 3. d4 Bg4 4. dxe5 Bxf3 5. Qxf3 dxe5 6. Bc4 Nf6 7. Qb3 Qe7 8. Nc3 c6 9. Bg5 b5 10. Nxb5 cxb5 11. Bxb5+ Nbd7 12. O-O-O Rd8 13. Rxd7 Rxd7 14. Rd1 Qe6 15. Bxd7+ Nxd7 16. Qb8+ Nxb8 17. Rd8# 1-0                                            ",251,"","",{"$f":"IF(OR(E56=0,LEN(F56)<100),0,MATCH(\" \",CONCATENATE(MID(RIGHT(F56,15),{15;14;13;12;11;10;9;8;7;6;5;4;3;2;1},1)),0)-1)","v":0},"1. e4 e5 2. Nf3 d6 3. d4 Bg4 4. dxe5 Bxf3 5. Qxf3 dxe5 6. Bc4 Nf6 7. Qb3 Qe7 8. Nc3 c6 9. Bg5 b5 10. Nxb5 cxb5 11. Bxb5+ Nbd7 12. O-O-O Rd8 13. Rxd7 Rxd7 14. Rd1 Qe6 15. Bxd7+ Nxd7 16. Qb8+ Nxb8 17. Rd8# 1-0",209,209,""," ",null,null,null,null," ",null,null,null,null," ",55,209,"","","","","","","",{"$f":"IF(pgnNidioma=0,$AD56,SUBSTITUTE(SUBSTITUTE(SUBSTITUTE(SUBSTITUTE(SUBSTITUTE($AD56,\n\"♔\",INDEX(TablaPiezas[],1,pgnNidioma)),\n\"♕\",INDEX(TablaPiezas[],2,pgnNidioma)),\n\"♖\",INDEX(TablaPiezas[],3,pgnNidioma)),\n\"♗\",INDEX(TablaPiezas[],4,pgnNidioma)),\n\"♘\",INDEX(TablaPiezas[],5,pgnNidioma)))","v":""},{"$f":"IF(pgnNidioma=0,$AE56,SUBSTITUTE(SUBSTITUTE(SUBSTITUTE(SUBSTITUTE(SUBSTITUTE($AE56,\n\"♚\",INDEX(TablaPiezas[],1,pgnNidioma)),\n\"♛\",INDEX(TablaPiezas[],2,pgnNidioma)),\n\"♜\",INDEX(TablaPiezas[],3,pgnNidioma)),\n\"♝\",INDEX(TablaPiezas[],4,pgnNidioma)),\n\"♞\",INDEX(TablaPiezas[],5,pgnNidioma)))","v":""},""]
[57,{"$f":"IFERROR(IF(INDEX(PGN[0],A57-1)=pgnPartida,INDEX(PGN[PGN],A57-1),\"\"),\"\")","v":""},null,"1. e4 e5 2. Nf3 d6 3. d4 Bg4 4. dxe5 Bxf3 5. Qxf3 dxe5 6. Bc4 Nf6 7. Qb3 Qe7 8. Nc3 c6 9. Bg5 b5 10. Nxb5 cxb5 11. Bxb5+ Nbd7 12. O-O-O Rd8 13. Rxd7 Rxd7 14. Rd1 Qe6 15. Bxd7+ Nxd7 16. Qb8+ Nxb8 17. Rd8# 1-0                                             ",252,"","",{"$f":"IF(OR(E57=0,LEN(F57)<100),0,MATCH(\" \",CONCATENATE(MID(RIGHT(F57,15),{15;14;13;12;11;10;9;8;7;6;5;4;3;2;1},1)),0)-1)","v":0},"1. e4 e5 2. Nf3 d6 3. d4 Bg4 4. dxe5 Bxf3 5. Qxf3 dxe5 6. Bc4 Nf6 7. Qb3 Qe7 8. Nc3 c6 9. Bg5 b5 10. Nxb5 cxb5 11. Bxb5+ Nbd7 12. O-O-O Rd8 13. Rxd7 Rxd7 14. Rd1 Qe6 15. Bxd7+ Nxd7 16. Qb8+ Nxb8 17. Rd8# 1-0",209,209,""," ",null,null,null,null," ",null,null,null,null," ",56,209,"","","","","","","",{"$f":"IF(pgnNidioma=0,$AD57,SUBSTITUTE(SUBSTITUTE(SUBSTITUTE(SUBSTITUTE(SUBSTITUTE($AD57,\n\"♔\",INDEX(TablaPiezas[],1,pgnNidioma)),\n\"♕\",INDEX(TablaPiezas[],2,pgnNidioma)),\n\"♖\",INDEX(TablaPiezas[],3,pgnNidioma)),\n\"♗\",INDEX(TablaPiezas[],4,pgnNidioma)),\n\"♘\",INDEX(TablaPiezas[],5,pgnNidioma)))","v":""},{"$f":"IF(pgnNidioma=0,$AE57,SUBSTITUTE(SUBSTITUTE(SUBSTITUTE(SUBSTITUTE(SUBSTITUTE($AE57,\n\"♚\",INDEX(TablaPiezas[],1,pgnNidioma)),\n\"♛\",INDEX(TablaPiezas[],2,pgnNidioma)),\n\"♜\",INDEX(TablaPiezas[],3,pgnNidioma)),\n\"♝\",INDEX(TablaPiezas[],4,pgnNidioma)),\n\"♞\",INDEX(TablaPiezas[],5,pgnNidioma)))","v":""},""]
[58,{"$f":"IFERROR(IF(INDEX(PGN[0],A58-1)=pgnPartida,INDEX(PGN[PGN],A58-1),\"\"),\"\")","v":""},null,"1. e4 e5 2. Nf3 d6 3. d4 Bg4 4. dxe5 Bxf3 5. Qxf3 dxe5 6. Bc4 Nf6 7. Qb3 Qe7 8. Nc3 c6 9. Bg5 b5 10. Nxb5 cxb5 11. Bxb5+ Nbd7 12. O-O-O Rd8 13. Rxd7 Rxd7 14. Rd1 Qe6 15. Bxd7+ Nxd7 16. Qb8+ Nxb8 17. Rd8# 1-0                                              ",253,"","",{"$f":"IF(OR(E58=0,LEN(F58)<100),0,MATCH(\" \",CONCATENATE(MID(RIGHT(F58,15),{15;14;13;12;11;10;9;8;7;6;5;4;3;2;1},1)),0)-1)","v":0},"1. e4 e5 2. Nf3 d6 3. d4 Bg4 4. dxe5 Bxf3 5. Qxf3 dxe5 6. Bc4 Nf6 7. Qb3 Qe7 8. Nc3 c6 9. Bg5 b5 10. Nxb5 cxb5 11. Bxb5+ Nbd7 12. O-O-O Rd8 13. Rxd7 Rxd7 14. Rd1 Qe6 15. Bxd7+ Nxd7 16. Qb8+ Nxb8 17. Rd8# 1-0",209,209,""," ",null,null,null,null," ",null,null,null,null," ",57,209,"","","","","","","",{"$f":"IF(pgnNidioma=0,$AD58,SUBSTITUTE(SUBSTITUTE(SUBSTITUTE(SUBSTITUTE(SUBSTITUTE($AD58,\n\"♔\",INDEX(TablaPiezas[],1,pgnNidioma)),\n\"♕\",INDEX(TablaPiezas[],2,pgnNidioma)),\n\"♖\",INDEX(TablaPiezas[],3,pgnNidioma)),\n\"♗\",INDEX(TablaPiezas[],4,pgnNidioma)),\n\"♘\",INDEX(TablaPiezas[],5,pgnNidioma)))","v":""},{"$f":"IF(pgnNidioma=0,$AE58,SUBSTITUTE(SUBSTITUTE(SUBSTITUTE(SUBSTITUTE(SUBSTITUTE($AE58,\n\"♚\",INDEX(TablaPiezas[],1,pgnNidioma)),\n\"♛\",INDEX(TablaPiezas[],2,pgnNidioma)),\n\"♜\",INDEX(TablaPiezas[],3,pgnNidioma)),\n\"♝\",INDEX(TablaPiezas[],4,pgnNidioma)),\n\"♞\",INDEX(TablaPiezas[],5,pgnNidioma)))","v":""},""]
[59,{"$f":"IFERROR(IF(INDEX(PGN[0],A59-1)=pgnPartida,INDEX(PGN[PGN],A59-1),\"\"),\"\")","v":""},null,"1. e4 e5 2. Nf3 d6 3. d4 Bg4 4. dxe5 Bxf3 5. Qxf3 dxe5 6. Bc4 Nf6 7. Qb3 Qe7 8. Nc3 c6 9. Bg5 b5 10. Nxb5 cxb5 11. Bxb5+ Nbd7 12. O-O-O Rd8 13. Rxd7 Rxd7 14. Rd1 Qe6 15. Bxd7+ Nxd7 16. Qb8+ Nxb8 17. Rd8# 1-0                                               ",254,"","",{"$f":"IF(OR(E59=0,LEN(F59)<100),0,MATCH(\" \",CONCATENATE(MID(RIGHT(F59,15),{15;14;13;12;11;10;9;8;7;6;5;4;3;2;1},1)),0)-1)","v":0},{"$f":"SUBSTITUTE(I58,L58,\"\")","v":"1. e4 e5 2. Nf3 d6 3. d4 Bg4 4. dxe5 Bxf3 5. Qxf3 dxe5 6. Bc4 Nf6 7. Qb3 Qe7 8. Nc3 c6 9. Bg5 b5 10. Nxb5 cxb5 11. Bxb5+ Nbd7 12. O-O-O Rd8 13. Rxd7 Rxd7 14. Rd1 Qe6 15. Bxd7+ Nxd7 16. Qb8+ Nxb8 17. Rd8# 1-0"},{"$f":"IFERROR(FIND(\"{\",I59),LEN(I59)+2)","v":209},{"$f":"IFERROR(FIND(\"}\",I59,J59),LEN(I59)+2)","v":209},{"$f":"IFERROR(MID(I59,J59,K59-J59+1),\"\")","v":""}," ",null,null,null,null," ",null,null,null,null," ",58,209,"","","","","","","",{"$f":"IF(pgnNidioma=0,$AD59,SUBSTITUTE(SUBSTITUTE(SUBSTITUTE(SUBSTITUTE(SUBSTITUTE($AD59,\n\"♔\",INDEX(TablaPiezas[],1,pgnNidioma)),\n\"♕\",INDEX(TablaPiezas[],2,pgnNidioma)),\n\"♖\",INDEX(TablaPiezas[],3,pgnNidioma)),\n\"♗\",INDEX(TablaPiezas[],4,pgnNidioma)),\n\"♘\",INDEX(TablaPiezas[],5,pgnNidioma)))","v":""},{"$f":"IF(pgnNidioma=0,$AE59,SUBSTITUTE(SUBSTITUTE(SUBSTITUTE(SUBSTITUTE(SUBSTITUTE($AE59,\n\"♚\",INDEX(TablaPiezas[],1,pgnNidioma)),\n\"♛\",INDEX(TablaPiezas[],2,pgnNidioma)),\n\"♜\",INDEX(TablaPiezas[],3,pgnNidioma)),\n\"♝\",INDEX(TablaPiezas[],4,pgnNidioma)),\n\"♞\",INDEX(TablaPiezas[],5,pgnNidioma)))","v":""},""]
[60,{"$f":"IFERROR(IF(INDEX(PGN[0],A60-1)=pgnPartida,INDEX(PGN[PGN],A60-1),\"\"),\"\")","v":""},null,"1. e4 e5 2. Nf3 d6 3. d4 Bg4 4. dxe5 Bxf3 5. Qxf3 dxe5 6. Bc4 Nf6 7. Qb3 Qe7 8. Nc3 c6 9. Bg5 b5 10. Nxb5 cxb5 11. Bxb5+ Nbd7 12. O-O-O Rd8 13. Rxd7 Rxd7 14. Rd1 Qe6 15. Bxd7+ Nxd7 16. Qb8+ Nxb8 17. Rd8# 1-0                                                ",255,"","",{"$f":"IF(OR(E60=0,LEN(F60)<100),0,MATCH(\" \",CONCATENATE(MID(RIGHT(F60,15),{15;14;13;12;11;10;9;8;7;6;5;4;3;2;1},1)),0)-1)","v":0},"1. e4 e5 2. Nf3 d6 3. d4 Bg4 4. dxe5 Bxf3 5. Qxf3 dxe5 6. Bc4 Nf6 7. Qb3 Qe7 8. Nc3 c6 9. Bg5 b5 10. Nxb5 cxb5 11. Bxb5+ Nbd7 12. O-O-O Rd8 13. Rxd7 Rxd7 14. Rd1 Qe6 15. Bxd7+ Nxd7 16. Qb8+ Nxb8 17. Rd8# 1-0",209,209,""," ",null,null,null,null," ",null,null,null,null," ",59,209,"","","","","","","",{"$f":"IF(pgnNidioma=0,$AD60,SUBSTITUTE(SUBSTITUTE(SUBSTITUTE(SUBSTITUTE(SUBSTITUTE($AD60,\n\"♔\",INDEX(TablaPiezas[],1,pgnNidioma)),\n\"♕\",INDEX(TablaPiezas[],2,pgnNidioma)),\n\"♖\",INDEX(TablaPiezas[],3,pgnNidioma)),\n\"♗\",INDEX(TablaPiezas[],4,pgnNidioma)),\n\"♘\",INDEX(TablaPiezas[],5,pgnNidioma)))","v":""},{"$f":"IF(pgnNidioma=0,$AE60,SUBSTITUTE(SUBSTITUTE(SUBSTITUTE(SUBSTITUTE(SUBSTITUTE($AE60,\n\"♚\",INDEX(TablaPiezas[],1,pgnNidioma)),\n\"♛\",INDEX(TablaPiezas[],2,pgnNidioma)),\n\"♜\",INDEX(TablaPiezas[],3,pgnNidioma)),\n\"♝\",INDEX(TablaPiezas[],4,pgnNidioma)),\n\"♞\",INDEX(TablaPiezas[],5,pgnNidioma)))","v":""},""]
[61,{"$f":"IFERROR(IF(INDEX(PGN[0],A61-1)=pgnPartida,INDEX(PGN[PGN],A61-1),\"\"),\"\")","v":""},null,"1. e4 e5 2. Nf3 d6 3. d4 Bg4 4. dxe5 Bxf3 5. Qxf3 dxe5 6. Bc4 Nf6 7. Qb3 Qe7 8. Nc3 c6 9. Bg5 b5 10. Nxb5 cxb5 11. Bxb5+ Nbd7 12. O-O-O Rd8 13. Rxd7 Rxd7 14. Rd1 Qe6 15. Bxd7+ Nxd7 16. Qb8+ Nxb8 17. Rd8# 1-0                                                 ",256,"","",{"$f":"IF(OR(E61=0,LEN(F61)<100),0,MATCH(\" \",CONCATENATE(MID(RIGHT(F61,15),{15;14;13;12;11;10;9;8;7;6;5;4;3;2;1},1)),0)-1)","v":0},"1. e4 e5 2. Nf3 d6 3. d4 Bg4 4. dxe5 Bxf3 5. Qxf3 dxe5 6. Bc4 Nf6 7. Qb3 Qe7 8. Nc3 c6 9. Bg5 b5 10. Nxb5 cxb5 11. Bxb5+ Nbd7 12. O-O-O Rd8 13. Rxd7 Rxd7 14. Rd1 Qe6 15. Bxd7+ Nxd7 16. Qb8+ Nxb8 17. Rd8# 1-0",209,209,""," ",null,null,null,null," ",null,null,null,null," ",60,209,"","","","","","","",{"$f":"IF(pgnNidioma=0,$AD61,SUBSTITUTE(SUBSTITUTE(SUBSTITUTE(SUBSTITUTE(SUBSTITUTE($AD61,\n\"♔\",INDEX(TablaPiezas[],1,pgnNidioma)),\n\"♕\",INDEX(TablaPiezas[],2,pgnNidioma)),\n\"♖\",INDEX(TablaPiezas[],3,pgnNidioma)),\n\"♗\",INDEX(TablaPiezas[],4,pgnNidioma)),\n\"♘\",INDEX(TablaPiezas[],5,pgnNidioma)))","v":""},{"$f":"IF(pgnNidioma=0,$AE61,SUBSTITUTE(SUBSTITUTE(SUBSTITUTE(SUBSTITUTE(SUBSTITUTE($AE61,\n\"♚\",INDEX(TablaPiezas[],1,pgnNidioma)),\n\"♛\",INDEX(TablaPiezas[],2,pgnNidioma)),\n\"♜\",INDEX(TablaPiezas[],3,pgnNidioma)),\n\"♝\",INDEX(TablaPiezas[],4,pgnNidioma)),\n\"♞\",INDEX(TablaPiezas[],5,pgnNidioma)))","v":""},""]
[62,{"$f":"IFERROR(IF(INDEX(PGN[0],A62-1)=pgnPartida,INDEX(PGN[PGN],A62-1),\"\"),\"\")","v":""},null,"1. e4 e5 2. Nf3 d6 3. d4 Bg4 4. dxe5 Bxf3 5. Qxf3 dxe5 6. Bc4 Nf6 7. Qb3 Qe7 8. Nc3 c6 9. Bg5 b5 10. Nxb5 cxb5 11. Bxb5+ Nbd7 12. O-O-O Rd8 13. Rxd7 Rxd7 14. Rd1 Qe6 15. Bxd7+ Nxd7 16. Qb8+ Nxb8 17. Rd8# 1-0                                                  ",257,"","",{"$f":"IF(OR(E62=0,LEN(F62)<100),0,MATCH(\" \",CONCATENATE(MID(RIGHT(F62,15),{15;14;13;12;11;10;9;8;7;6;5;4;3;2;1},1)),0)-1)","v":0},"1. e4 e5 2. Nf3 d6 3. d4 Bg4 4. dxe5 Bxf3 5. Qxf3 dxe5 6. Bc4 Nf6 7. Qb3 Qe7 8. Nc3 c6 9. Bg5 b5 10. Nxb5 cxb5 11. Bxb5+ Nbd7 12. O-O-O Rd8 13. Rxd7 Rxd7 14. Rd1 Qe6 15. Bxd7+ Nxd7 16. Qb8+ Nxb8 17. Rd8# 1-0",209,209,""," ",null,null,null,null," ",null,null,null,null," ",61,209,"","","","","","","",{"$f":"IF(pgnNidioma=0,$AD62,SUBSTITUTE(SUBSTITUTE(SUBSTITUTE(SUBSTITUTE(SUBSTITUTE($AD62,\n\"♔\",INDEX(TablaPiezas[],1,pgnNidioma)),\n\"♕\",INDEX(TablaPiezas[],2,pgnNidioma)),\n\"♖\",INDEX(TablaPiezas[],3,pgnNidioma)),\n\"♗\",INDEX(TablaPiezas[],4,pgnNidioma)),\n\"♘\",INDEX(TablaPiezas[],5,pgnNidioma)))","v":""},{"$f":"IF(pgnNidioma=0,$AE62,SUBSTITUTE(SUBSTITUTE(SUBSTITUTE(SUBSTITUTE(SUBSTITUTE($AE62,\n\"♚\",INDEX(TablaPiezas[],1,pgnNidioma)),\n\"♛\",INDEX(TablaPiezas[],2,pgnNidioma)),\n\"♜\",INDEX(TablaPiezas[],3,pgnNidioma)),\n\"♝\",INDEX(TablaPiezas[],4,pgnNidioma)),\n\"♞\",INDEX(TablaPiezas[],5,pgnNidioma)))","v":""},""]
[63,{"$f":"IFERROR(IF(INDEX(PGN[0],A63-1)=pgnPartida,INDEX(PGN[PGN],A63-1),\"\"),\"\")","v":""},null,"1. e4 e5 2. Nf3 d6 3. d4 Bg4 4. dxe5 Bxf3 5. Qxf3 dxe5 6. Bc4 Nf6 7. Qb3 Qe7 8. Nc3 c6 9. Bg5 b5 10. Nxb5 cxb5 11. Bxb5+ Nbd7 12. O-O-O Rd8 13. Rxd7 Rxd7 14. Rd1 Qe6 15. Bxd7+ Nxd7 16. Qb8+ Nxb8 17. Rd8# 1-0                                                   ",258,"","",{"$f":"IF(OR(E63=0,LEN(F63)<100),0,MATCH(\" \",CONCATENATE(MID(RIGHT(F63,15),{15;14;13;12;11;10;9;8;7;6;5;4;3;2;1},1)),0)-1)","v":0},"1. e4 e5 2. Nf3 d6 3. d4 Bg4 4. dxe5 Bxf3 5. Qxf3 dxe5 6. Bc4 Nf6 7. Qb3 Qe7 8. Nc3 c6 9. Bg5 b5 10. Nxb5 cxb5 11. Bxb5+ Nbd7 12. O-O-O Rd8 13. Rxd7 Rxd7 14. Rd1 Qe6 15. Bxd7+ Nxd7 16. Qb8+ Nxb8 17. Rd8# 1-0",209,209,""," ",null,null,null,null," ",null,null,null,null," ",62,209,"","","","","","","",{"$f":"IF(pgnNidioma=0,$AD63,SUBSTITUTE(SUBSTITUTE(SUBSTITUTE(SUBSTITUTE(SUBSTITUTE($AD63,\n\"♔\",INDEX(TablaPiezas[],1,pgnNidioma)),\n\"♕\",INDEX(TablaPiezas[],2,pgnNidioma)),\n\"♖\",INDEX(TablaPiezas[],3,pgnNidioma)),\n\"♗\",INDEX(TablaPiezas[],4,pgnNidioma)),\n\"♘\",INDEX(TablaPiezas[],5,pgnNidioma)))","v":""},{"$f":"IF(pgnNidioma=0,$AE63,SUBSTITUTE(SUBSTITUTE(SUBSTITUTE(SUBSTITUTE(SUBSTITUTE($AE63,\n\"♚\",INDEX(TablaPiezas[],1,pgnNidioma)),\n\"♛\",INDEX(TablaPiezas[],2,pgnNidioma)),\n\"♜\",INDEX(TablaPiezas[],3,pgnNidioma)),\n\"♝\",INDEX(TablaPiezas[],4,pgnNidioma)),\n\"♞\",INDEX(TablaPiezas[],5,pgnNidioma)))","v":""},""]
[64,{"$f":"IFERROR(IF(INDEX(PGN[0],A64-1)=pgnPartida,INDEX(PGN[PGN],A64-1),\"\"),\"\")","v":""},null,"1. e4 e5 2. Nf3 d6 3. d4 Bg4 4. dxe5 Bxf3 5. Qxf3 dxe5 6. Bc4 Nf6 7. Qb3 Qe7 8. Nc3 c6 9. Bg5 b5 10. Nxb5 cxb5 11. Bxb5+ Nbd7 12. O-O-O Rd8 13. Rxd7 Rxd7 14. Rd1 Qe6 15. Bxd7+ Nxd7 16. Qb8+ Nxb8 17. Rd8# 1-0                                                    ",259,"","",{"$f":"IF(OR(E64=0,LEN(F64)<100),0,MATCH(\" \",CONCATENATE(MID(RIGHT(F64,15),{15;14;13;12;11;10;9;8;7;6;5;4;3;2;1},1)),0)-1)","v":0},"1. e4 e5 2. Nf3 d6 3. d4 Bg4 4. dxe5 Bxf3 5. Qxf3 dxe5 6. Bc4 Nf6 7. Qb3 Qe7 8. Nc3 c6 9. Bg5 b5 10. Nxb5 cxb5 11. Bxb5+ Nbd7 12. O-O-O Rd8 13. Rxd7 Rxd7 14. Rd1 Qe6 15. Bxd7+ Nxd7 16. Qb8+ Nxb8 17. Rd8# 1-0",209,209,""," ",null,null,null,null," ",null,null,null,null," ",63,209,"","","","","","","",{"$f":"IF(pgnNidioma=0,$AD64,SUBSTITUTE(SUBSTITUTE(SUBSTITUTE(SUBSTITUTE(SUBSTITUTE($AD64,\n\"♔\",INDEX(TablaPiezas[],1,pgnNidioma)),\n\"♕\",INDEX(TablaPiezas[],2,pgnNidioma)),\n\"♖\",INDEX(TablaPiezas[],3,pgnNidioma)),\n\"♗\",INDEX(TablaPiezas[],4,pgnNidioma)),\n\"♘\",INDEX(TablaPiezas[],5,pgnNidioma)))","v":""},{"$f":"IF(pgnNidioma=0,$AE64,SUBSTITUTE(SUBSTITUTE(SUBSTITUTE(SUBSTITUTE(SUBSTITUTE($AE64,\n\"♚\",INDEX(TablaPiezas[],1,pgnNidioma)),\n\"♛\",INDEX(TablaPiezas[],2,pgnNidioma)),\n\"♜\",INDEX(TablaPiezas[],3,pgnNidioma)),\n\"♝\",INDEX(TablaPiezas[],4,pgnNidioma)),\n\"♞\",INDEX(TablaPiezas[],5,pgnNidioma)))","v":""},""]
[65,{"$f":"IFERROR(IF(INDEX(PGN[0],A65-1)=pgnPartida,INDEX(PGN[PGN],A65-1),\"\"),\"\")","v":""},null,"1. e4 e5 2. Nf3 d6 3. d4 Bg4 4. dxe5 Bxf3 5. Qxf3 dxe5 6. Bc4 Nf6 7. Qb3 Qe7 8. Nc3 c6 9. Bg5 b5 10. Nxb5 cxb5 11. Bxb5+ Nbd7 12. O-O-O Rd8 13. Rxd7 Rxd7 14. Rd1 Qe6 15. Bxd7+ Nxd7 16. Qb8+ Nxb8 17. Rd8# 1-0                                                     ",260,"","",{"$f":"IF(OR(E65=0,LEN(F65)<100),0,MATCH(\" \",CONCATENATE(MID(RIGHT(F65,15),{15;14;13;12;11;10;9;8;7;6;5;4;3;2;1},1)),0)-1)","v":0},"1. e4 e5 2. Nf3 d6 3. d4 Bg4 4. dxe5 Bxf3 5. Qxf3 dxe5 6. Bc4 Nf6 7. Qb3 Qe7 8. Nc3 c6 9. Bg5 b5 10. Nxb5 cxb5 11. Bxb5+ Nbd7 12. O-O-O Rd8 13. Rxd7 Rxd7 14. Rd1 Qe6 15. Bxd7+ Nxd7 16. Qb8+ Nxb8 17. Rd8# 1-0",209,209,""," ",null,null,null,null," ",null,null,null,null," ",64,209,"","","","","","","",{"$f":"IF(pgnNidioma=0,$AD65,SUBSTITUTE(SUBSTITUTE(SUBSTITUTE(SUBSTITUTE(SUBSTITUTE($AD65,\n\"♔\",INDEX(TablaPiezas[],1,pgnNidioma)),\n\"♕\",INDEX(TablaPiezas[],2,pgnNidioma)),\n\"♖\",INDEX(TablaPiezas[],3,pgnNidioma)),\n\"♗\",INDEX(TablaPiezas[],4,pgnNidioma)),\n\"♘\",INDEX(TablaPiezas[],5,pgnNidioma)))","v":""},{"$f":"IF(pgnNidioma=0,$AE65,SUBSTITUTE(SUBSTITUTE(SUBSTITUTE(SUBSTITUTE(SUBSTITUTE($AE65,\n\"♚\",INDEX(TablaPiezas[],1,pgnNidioma)),\n\"♛\",INDEX(TablaPiezas[],2,pgnNidioma)),\n\"♜\",INDEX(TablaPiezas[],3,pgnNidioma)),\n\"♝\",INDEX(TablaPiezas[],4,pgnNidioma)),\n\"♞\",INDEX(TablaPiezas[],5,pgnNidioma)))","v":""},""]
[66,{"$f":"IFERROR(IF(INDEX(PGN[0],A66-1)=pgnPartida,INDEX(PGN[PGN],A66-1),\"\"),\"\")","v":""},null,"1. e4 e5 2. Nf3 d6 3. d4 Bg4 4. dxe5 Bxf3 5. Qxf3 dxe5 6. Bc4 Nf6 7. Qb3 Qe7 8. Nc3 c6 9. Bg5 b5 10. Nxb5 cxb5 11. Bxb5+ Nbd7 12. O-O-O Rd8 13. Rxd7 Rxd7 14. Rd1 Qe6 15. Bxd7+ Nxd7 16. Qb8+ Nxb8 17. Rd8# 1-0                                                      ",261,{"$f":"IFERROR(MID($D$153,E66,100),\"\")","v":""},"",{"$f":"IF(OR(E66=0,LEN(F66)<100),0,MATCH(\" \",CONCATENATE(MID(RIGHT(F66,15),{15;14;13;12;11;10;9;8;7;6;5;4;3;2;1},1)),0)-1)","v":0},"1. e4 e5 2. Nf3 d6 3. d4 Bg4 4. dxe5 Bxf3 5. Qxf3 dxe5 6. Bc4 Nf6 7. Qb3 Qe7 8. Nc3 c6 9. Bg5 b5 10. Nxb5 cxb5 11. Bxb5+ Nbd7 12. O-O-O Rd8 13. Rxd7 Rxd7 14. Rd1 Qe6 15. Bxd7+ Nxd7 16. Qb8+ Nxb8 17. Rd8# 1-0",209,209,""," ",null,null,null,null," ",null,null,null,null," ",65,{"$f":"IFERROR(FIND($X66&\".\",$V$153),LEN($V$153)+2)","v":209},{"$f":"IFERROR(TRIM(MID(pgnAlgebraica,$Y66,$Y67-$Y66-1)),\"\")","v":""},{"$f":"IFERROR(SUBSTITUTE(SUBSTITUTE(Z66,LEFT(Z66,FIND(\" \",Z66)-1)&\".. \",\"\"),LEFT(Z66,FIND(\" \",Z66)-1)&\" . . \",\"\"),\"\")","v":""},"","","","","",{"$f":"IF(pgnNidioma=0,$AD66,SUBSTITUTE(SUBSTITUTE(SUBSTITUTE(SUBSTITUTE(SUBSTITUTE($AD66,\n\"♔\",INDEX(TablaPiezas[],1,pgnNidioma)),\n\"♕\",INDEX(TablaPiezas[],2,pgnNidioma)),\n\"♖\",INDEX(TablaPiezas[],3,pgnNidioma)),\n\"♗\",INDEX(TablaPiezas[],4,pgnNidioma)),\n\"♘\",INDEX(TablaPiezas[],5,pgnNidioma)))","v":""},{"$f":"IF(pgnNidioma=0,$AE66,SUBSTITUTE(SUBSTITUTE(SUBSTITUTE(SUBSTITUTE(SUBSTITUTE($AE66,\n\"♚\",INDEX(TablaPiezas[],1,pgnNidioma)),\n\"♛\",INDEX(TablaPiezas[],2,pgnNidioma)),\n\"♜\",INDEX(TablaPiezas[],3,pgnNidioma)),\n\"♝\",INDEX(TablaPiezas[],4,pgnNidioma)),\n\"♞\",INDEX(TablaPiezas[],5,pgnNidioma)))","v":""},""]
[67,{"$f":"IFERROR(IF(INDEX(PGN[0],A67-1)=pgnPartida,INDEX(PGN[PGN],A67-1),\"\"),\"\")","v":""},null,"1. e4 e5 2. Nf3 d6 3. d4 Bg4 4. dxe5 Bxf3 5. Qxf3 dxe5 6. Bc4 Nf6 7. Qb3 Qe7 8. Nc3 c6 9. Bg5 b5 10. Nxb5 cxb5 11. Bxb5+ Nbd7 12. O-O-O Rd8 13. Rxd7 Rxd7 14. Rd1 Qe6 15. Bxd7+ Nxd7 16. Qb8+ Nxb8 17. Rd8# 1-0                                                       ",{"$f":"IF(D67=\"\",0,E66+LEN(G66)+IF(G66=\"\",1,0))","v":262},"","",{"$f":"IF(OR(E67=0,LEN(F67)<100),0,MATCH(\" \",CONCATENATE(MID(RIGHT(F67,15),{15;14;13;12;11;10;9;8;7;6;5;4;3;2;1},1)),0)-1)","v":0},"1. e4 e5 2. Nf3 d6 3. d4 Bg4 4. dxe5 Bxf3 5. Qxf3 dxe5 6. Bc4 Nf6 7. Qb3 Qe7 8. Nc3 c6 9. Bg5 b5 10. Nxb5 cxb5 11. Bxb5+ Nbd7 12. O-O-O Rd8 13. Rxd7 Rxd7 14. Rd1 Qe6 15. Bxd7+ Nxd7 16. Qb8+ Nxb8 17. Rd8# 1-0",209,209,""," ",null,null,null,null," ",null,null,null,null," ",66,209,"","",{"$f":"SUBSTITUTE(SUBSTITUTE(AA67,X67&\". \",\"\"),\" \"&AC67,\"\")","v":""},{"$f":"IFERROR(RIGHT(SUBSTITUTE(AA67,X67&\". \",\"\"),LEN(SUBSTITUTE(AA67,X67&\". \",\"\"))-FIND(\" \",SUBSTITUTE(AA67,X67&\". \",\"\"))),\"\")","v":""},{"$f":"SUBSTITUTE(SUBSTITUTE(SUBSTITUTE(SUBSTITUTE(SUBSTITUTE($AB67,\"R\",\"♖\"),\"N\",\"♘\"),\"B\",\"♗\"),\"Q\",\"♕\"),\"K\",\"♔\")","v":""},{"$f":"SUBSTITUTE(SUBSTITUTE(SUBSTITUTE(SUBSTITUTE(SUBSTITUTE($AC67,\"R\",\"♜\"),\"N\",\"♞\"),\"B\",\"♝\"),\"Q\",\"♛\"),\"K\",\"♚\")","v":""},{"$f":"IF($AD67=\"\",\"\",$X67 & \". \" & $AD67 & \" \" & $AE67)","v":""},{"$f":"IF(pgnNidioma=0,$AD67,SUBSTITUTE(SUBSTITUTE(SUBSTITUTE(SUBSTITUTE(SUBSTITUTE($AD67,\n\"♔\",INDEX(TablaPiezas[],1,pgnNidioma)),\n\"♕\",INDEX(TablaPiezas[],2,pgnNidioma)),\n\"♖\",INDEX(TablaPiezas[],3,pgnNidioma)),\n\"♗\",INDEX(TablaPiezas[],4,pgnNidioma)),\n\"♘\",INDEX(TablaPiezas[],5,pgnNidioma)))","v":""},{"$f":"IF(pgnNidioma=0,$AE67,SUBSTITUTE(SUBSTITUTE(SUBSTITUTE(SUBSTITUTE(SUBSTITUTE($AE67,\n\"♚\",INDEX(TablaPiezas[],1,pgnNidioma)),\n\"♛\",INDEX(TablaPiezas[],2,pgnNidioma)),\n\"♜\",INDEX(TablaPiezas[],3,pgnNidioma)),\n\"♝\",INDEX(TablaPiezas[],4,pgnNidioma)),\n\"♞\",INDEX(TablaPiezas[],5,pgnNidioma)))","v":""},{"$f":"IF($AG67=\"\",\"\",$X67 & \". \" & $AG67 & \" \" & $AH67)","v":""}]
[68,{"$f":"IFERROR(IF(INDEX(PGN[0],A68-1)=pgnPartida,INDEX(PGN[PGN],A68-1),\"\"),\"\")","v":""},null,"1. e4 e5 2. Nf3 d6 3. d4 Bg4 4. dxe5 Bxf3 5. Qxf3 dxe5 6. Bc4 Nf6 7. Qb3 Qe7 8. Nc3 c6 9. Bg5 b5 10. Nxb5 cxb5 11. Bxb5+ Nbd7 12. O-O-O Rd8 13. Rxd7 Rxd7 14. Rd1 Qe6 15. Bxd7+ Nxd7 16. Qb8+ Nxb8 17. Rd8# 1-0                                                        ",263,"","",{"$f":"IF(OR(E68=0,LEN(F68)<100),0,MATCH(\" \",CONCATENATE(MID(RIGHT(F68,15),{15;14;13;12;11;10;9;8;7;6;5;4;3;2;1},1)),0)-1)","v":0},"1. e4 e5 2. Nf3 d6 3. d4 Bg4 4. dxe5 Bxf3 5. Qxf3 dxe5 6. Bc4 Nf6 7. Qb3 Qe7 8. Nc3 c6 9. Bg5 b5 10. Nxb5 cxb5 11. Bxb5+ Nbd7 12. O-O-O Rd8 13. Rxd7 Rxd7 14. Rd1 Qe6 15. Bxd7+ Nxd7 16. Qb8+ Nxb8 17. Rd8# 1-0",209,209,""," ",null,null,null,null," ",null,null,null,null," ",67,209,"","","","","","","",{"$f":"IF(pgnNidioma=0,$AD68,SUBSTITUTE(SUBSTITUTE(SUBSTITUTE(SUBSTITUTE(SUBSTITUTE($AD68,\n\"♔\",INDEX(TablaPiezas[],1,pgnNidioma)),\n\"♕\",INDEX(TablaPiezas[],2,pgnNidioma)),\n\"♖\",INDEX(TablaPiezas[],3,pgnNidioma)),\n\"♗\",INDEX(TablaPiezas[],4,pgnNidioma)),\n\"♘\",INDEX(TablaPiezas[],5,pgnNidioma)))","v":""},{"$f":"IF(pgnNidioma=0,$AE68,SUBSTITUTE(SUBSTITUTE(SUBSTITUTE(SUBSTITUTE(SUBSTITUTE($AE68,\n\"♚\",INDEX(TablaPiezas[],1,pgnNidioma)),\n\"♛\",INDEX(TablaPiezas[],2,pgnNidioma)),\n\"♜\",INDEX(TablaPiezas[],3,pgnNidioma)),\n\"♝\",INDEX(TablaPiezas[],4,pgnNidioma)),\n\"♞\",INDEX(TablaPiezas[],5,pgnNidioma)))","v":""},""]
[69,{"$f":"IFERROR(IF(INDEX(PGN[0],A69-1)=pgnPartida,INDEX(PGN[PGN],A69-1),\"\"),\"\")","v":""},null,"1. e4 e5 2. Nf3 d6 3. d4 Bg4 4. dxe5 Bxf3 5. Qxf3 dxe5 6. Bc4 Nf6 7. Qb3 Qe7 8. Nc3 c6 9. Bg5 b5 10. Nxb5 cxb5 11. Bxb5+ Nbd7 12. O-O-O Rd8 13. Rxd7 Rxd7 14. Rd1 Qe6 15. Bxd7+ Nxd7 16. Qb8+ Nxb8 17. Rd8# 1-0                                                         ",264,"","",{"$f":"IF(OR(E69=0,LEN(F69)<100),0,MATCH(\" \",CONCATENATE(MID(RIGHT(F69,15),{15;14;13;12;11;10;9;8;7;6;5;4;3;2;1},1)),0)-1)","v":0},"1. e4 e5 2. Nf3 d6 3. d4 Bg4 4. dxe5 Bxf3 5. Qxf3 dxe5 6. Bc4 Nf6 7. Qb3 Qe7 8. Nc3 c6 9. Bg5 b5 10. Nxb5 cxb5 11. Bxb5+ Nbd7 12. O-O-O Rd8 13. Rxd7 Rxd7 14. Rd1 Qe6 15. Bxd7+ Nxd7 16. Qb8+ Nxb8 17. Rd8# 1-0",209,209,""," ",null,null,null,null," ",null,null,null,null," ",68,209,"","","","","","","",{"$f":"IF(pgnNidioma=0,$AD69,SUBSTITUTE(SUBSTITUTE(SUBSTITUTE(SUBSTITUTE(SUBSTITUTE($AD69,\n\"♔\",INDEX(TablaPiezas[],1,pgnNidioma)),\n\"♕\",INDEX(TablaPiezas[],2,pgnNidioma)),\n\"♖\",INDEX(TablaPiezas[],3,pgnNidioma)),\n\"♗\",INDEX(TablaPiezas[],4,pgnNidioma)),\n\"♘\",INDEX(TablaPiezas[],5,pgnNidioma)))","v":""},{"$f":"IF(pgnNidioma=0,$AE69,SUBSTITUTE(SUBSTITUTE(SUBSTITUTE(SUBSTITUTE(SUBSTITUTE($AE69,\n\"♚\",INDEX(TablaPiezas[],1,pgnNidioma)),\n\"♛\",INDEX(TablaPiezas[],2,pgnNidioma)),\n\"♜\",INDEX(TablaPiezas[],3,pgnNidioma)),\n\"♝\",INDEX(TablaPiezas[],4,pgnNidioma)),\n\"♞\",INDEX(TablaPiezas[],5,pgnNidioma)))","v":""},""]
[70,{"$f":"IFERROR(IF(INDEX(PGN[0],A70-1)=pgnPartida,INDEX(PGN[PGN],A70-1),\"\"),\"\")","v":""},null,"1. e4 e5 2. Nf3 d6 3. d4 Bg4 4. dxe5 Bxf3 5. Qxf3 dxe5 6. Bc4 Nf6 7. Qb3 Qe7 8. Nc3 c6 9. Bg5 b5 10. Nxb5 cxb5 11. Bxb5+ Nbd7 12. O-O-O Rd8 13. Rxd7 Rxd7 14. Rd1 Qe6 15. Bxd7+ Nxd7 16. Qb8+ Nxb8 17. Rd8# 1-0                                                          ",265,"","",{"$f":"IF(OR(E70=0,LEN(F70)<100),0,MATCH(\" \",CONCATENATE(MID(RIGHT(F70,15),{15;14;13;12;11;10;9;8;7;6;5;4;3;2;1},1)),0)-1)","v":0},"1. e4 e5 2. Nf3 d6 3. d4 Bg4 4. dxe5 Bxf3 5. Qxf3 dxe5 6. Bc4 Nf6 7. Qb3 Qe7 8. Nc3 c6 9. Bg5 b5 10. Nxb5 cxb5 11. Bxb5+ Nbd7 12. O-O-O Rd8 13. Rxd7 Rxd7 14. Rd1 Qe6 15. Bxd7+ Nxd7 16. Qb8+ Nxb8 17. Rd8# 1-0",209,209,""," ",null,null,null,null," ",null,null,null,null," ",69,209,"","","","","","","",{"$f":"IF(pgnNidioma=0,$AD70,SUBSTITUTE(SUBSTITUTE(SUBSTITUTE(SUBSTITUTE(SUBSTITUTE($AD70,\n\"♔\",INDEX(TablaPiezas[],1,pgnNidioma)),\n\"♕\",INDEX(TablaPiezas[],2,pgnNidioma)),\n\"♖\",INDEX(TablaPiezas[],3,pgnNidioma)),\n\"♗\",INDEX(TablaPiezas[],4,pgnNidioma)),\n\"♘\",INDEX(TablaPiezas[],5,pgnNidioma)))","v":""},{"$f":"IF(pgnNidioma=0,$AE70,SUBSTITUTE(SUBSTITUTE(SUBSTITUTE(SUBSTITUTE(SUBSTITUTE($AE70,\n\"♚\",INDEX(TablaPiezas[],1,pgnNidioma)),\n\"♛\",INDEX(TablaPiezas[],2,pgnNidioma)),\n\"♜\",INDEX(TablaPiezas[],3,pgnNidioma)),\n\"♝\",INDEX(TablaPiezas[],4,pgnNidioma)),\n\"♞\",INDEX(TablaPiezas[],5,pgnNidioma)))","v":""},""]
[71,{"$f":"IFERROR(IF(INDEX(PGN[0],A71-1)=pgnPartida,INDEX(PGN[PGN],A71-1),\"\"),\"\")","v":""},null,"1. e4 e5 2. Nf3 d6 3. d4 Bg4 4. dxe5 Bxf3 5. Qxf3 dxe5 6. Bc4 Nf6 7. Qb3 Qe7 8. Nc3 c6 9. Bg5 b5 10. Nxb5 cxb5 11. Bxb5+ Nbd7 12. O-O-O Rd8 13. Rxd7 Rxd7 14. Rd1 Qe6 15. Bxd7+ Nxd7 16. Qb8+ Nxb8 17. Rd8# 1-0                                                           ",266,"","",{"$f":"IF(OR(E71=0,LEN(F71)<100),0,MATCH(\" \",CONCATENATE(MID(RIGHT(F71,15),{15;14;13;12;11;10;9;8;7;6;5;4;3;2;1},1)),0)-1)","v":0},"1. e4 e5 2. Nf3 d6 3. d4 Bg4 4. dxe5 Bxf3 5. Qxf3 dxe5 6. Bc4 Nf6 7. Qb3 Qe7 8. Nc3 c6 9. Bg5 b5 10. Nxb5 cxb5 11. Bxb5+ Nbd7 12. O-O-O Rd8 13. Rxd7 Rxd7 14. Rd1 Qe6 15. Bxd7+ Nxd7 16. Qb8+ Nxb8 17. Rd8# 1-0",209,209,""," ",null,null,null,null," ",null,null,null,null," ",70,209,"","","","","","","",{"$f":"IF(pgnNidioma=0,$AD71,SUBSTITUTE(SUBSTITUTE(SUBSTITUTE(SUBSTITUTE(SUBSTITUTE($AD71,\n\"♔\",INDEX(TablaPiezas[],1,pgnNidioma)),\n\"♕\",INDEX(TablaPiezas[],2,pgnNidioma)),\n\"♖\",INDEX(TablaPiezas[],3,pgnNidioma)),\n\"♗\",INDEX(TablaPiezas[],4,pgnNidioma)),\n\"♘\",INDEX(TablaPiezas[],5,pgnNidioma)))","v":""},{"$f":"IF(pgnNidioma=0,$AE71,SUBSTITUTE(SUBSTITUTE(SUBSTITUTE(SUBSTITUTE(SUBSTITUTE($AE71,\n\"♚\",INDEX(TablaPiezas[],1,pgnNidioma)),\n\"♛\",INDEX(TablaPiezas[],2,pgnNidioma)),\n\"♜\",INDEX(TablaPiezas[],3,pgnNidioma)),\n\"♝\",INDEX(TablaPiezas[],4,pgnNidioma)),\n\"♞\",INDEX(TablaPiezas[],5,pgnNidioma)))","v":""},""]
[72,{"$f":"IFERROR(IF(INDEX(PGN[0],A72-1)=pgnPartida,INDEX(PGN[PGN],A72-1),\"\"),\"\")","v":""},null,"1. e4 e5 2. Nf3 d6 3. d4 Bg4 4. dxe5 Bxf3 5. Qxf3 dxe5 6. Bc4 Nf6 7. Qb3 Qe7 8. Nc3 c6 9. Bg5 b5 10. Nxb5 cxb5 11. Bxb5+ Nbd7 12. O-O-O Rd8 13. Rxd7 Rxd7 14. Rd1 Qe6 15. Bxd7+ Nxd7 16. Qb8+ Nxb8 17. Rd8# 1-0                                                            ",267,"","",{"$f":"IF(OR(E72=0,LEN(F72)<100),0,MATCH(\" \",CONCATENATE(MID(RIGHT(F72,15),{15;14;13;12;11;10;9;8;7;6;5;4;3;2;1},1)),0)-1)","v":0},"1. e4 e5 2. Nf3 d6 3. d4 Bg4 4. dxe5 Bxf3 5. Qxf3 dxe5 6. Bc4 Nf6 7. Qb3 Qe7 8. Nc3 c6 9. Bg5 b5 10. Nxb5 cxb5 11. Bxb5+ Nbd7 12. O-O-O Rd8 13. Rxd7 Rxd7 14. Rd1 Qe6 15. Bxd7+ Nxd7 16. Qb8+ Nxb8 17. Rd8# 1-0",209,209,""," ",null,null,null,null," ",null,null,null,null," ",71,209,"","","","","","","",{"$f":"IF(pgnNidioma=0,$AD72,SUBSTITUTE(SUBSTITUTE(SUBSTITUTE(SUBSTITUTE(SUBSTITUTE($AD72,\n\"♔\",INDEX(TablaPiezas[],1,pgnNidioma)),\n\"♕\",INDEX(TablaPiezas[],2,pgnNidioma)),\n\"♖\",INDEX(TablaPiezas[],3,pgnNidioma)),\n\"♗\",INDEX(TablaPiezas[],4,pgnNidioma)),\n\"♘\",INDEX(TablaPiezas[],5,pgnNidioma)))","v":""},{"$f":"IF(pgnNidioma=0,$AE72,SUBSTITUTE(SUBSTITUTE(SUBSTITUTE(SUBSTITUTE(SUBSTITUTE($AE72,\n\"♚\",INDEX(TablaPiezas[],1,pgnNidioma)),\n\"♛\",INDEX(TablaPiezas[],2,pgnNidioma)),\n\"♜\",INDEX(TablaPiezas[],3,pgnNidioma)),\n\"♝\",INDEX(TablaPiezas[],4,pgnNidioma)),\n\"♞\",INDEX(TablaPiezas[],5,pgnNidioma)))","v":""},""]
[73,{"$f":"IFERROR(IF(INDEX(PGN[0],A73-1)=pgnPartida,INDEX(PGN[PGN],A73-1),\"\"),\"\")","v":""},null,"1. e4 e5 2. Nf3 d6 3. d4 Bg4 4. dxe5 Bxf3 5. Qxf3 dxe5 6. Bc4 Nf6 7. Qb3 Qe7 8. Nc3 c6 9. Bg5 b5 10. Nxb5 cxb5 11. Bxb5+ Nbd7 12. O-O-O Rd8 13. Rxd7 Rxd7 14. Rd1 Qe6 15. Bxd7+ Nxd7 16. Qb8+ Nxb8 17. Rd8# 1-0                                                             ",268,"","",{"$f":"IF(OR(E73=0,LEN(F73)<100),0,MATCH(\" \",CONCATENATE(MID(RIGHT(F73,15),{15;14;13;12;11;10;9;8;7;6;5;4;3;2;1},1)),0)-1)","v":0},"1. e4 e5 2. Nf3 d6 3. d4 Bg4 4. dxe5 Bxf3 5. Qxf3 dxe5 6. Bc4 Nf6 7. Qb3 Qe7 8. Nc3 c6 9. Bg5 b5 10. Nxb5 cxb5 11. Bxb5+ Nbd7 12. O-O-O Rd8 13. Rxd7 Rxd7 14. Rd1 Qe6 15. Bxd7+ Nxd7 16. Qb8+ Nxb8 17. Rd8# 1-0",209,209,""," ",null,null,null,null," ",null,null,null,null," ",72,209,"","","","","","","",{"$f":"IF(pgnNidioma=0,$AD73,SUBSTITUTE(SUBSTITUTE(SUBSTITUTE(SUBSTITUTE(SUBSTITUTE($AD73,\n\"♔\",INDEX(TablaPiezas[],1,pgnNidioma)),\n\"♕\",INDEX(TablaPiezas[],2,pgnNidioma)),\n\"♖\",INDEX(TablaPiezas[],3,pgnNidioma)),\n\"♗\",INDEX(TablaPiezas[],4,pgnNidioma)),\n\"♘\",INDEX(TablaPiezas[],5,pgnNidioma)))","v":""},{"$f":"IF(pgnNidioma=0,$AE73,SUBSTITUTE(SUBSTITUTE(SUBSTITUTE(SUBSTITUTE(SUBSTITUTE($AE73,\n\"♚\",INDEX(TablaPiezas[],1,pgnNidioma)),\n\"♛\",INDEX(TablaPiezas[],2,pgnNidioma)),\n\"♜\",INDEX(TablaPiezas[],3,pgnNidioma)),\n\"♝\",INDEX(TablaPiezas[],4,pgnNidioma)),\n\"♞\",INDEX(TablaPiezas[],5,pgnNidioma)))","v":""},""]
[74,{"$f":"IFERROR(IF(INDEX(PGN[0],A74-1)=pgnPartida,INDEX(PGN[PGN],A74-1),\"\"),\"\")","v":""},null,"1. e4 e5 2. Nf3 d6 3. d4 Bg4 4. dxe5 Bxf3 5. Qxf3 dxe5 6. Bc4 Nf6 7. Qb3 Qe7 8. Nc3 c6 9. Bg5 b5 10. Nxb5 cxb5 11. Bxb5+ Nbd7 12. O-O-O Rd8 13. Rxd7 Rxd7 14. Rd1 Qe6 15. Bxd7+ Nxd7 16. Qb8+ Nxb8 17. Rd8# 1-0                                                              ",269,"","",{"$f":"IF(OR(E74=0,LEN(F74)<100),0,MATCH(\" \",CONCATENATE(MID(RIGHT(F74,15),{15;14;13;12;11;10;9;8;7;6;5;4;3;2;1},1)),0)-1)","v":0},"1. e4 e5 2. Nf3 d6 3. d4 Bg4 4. dxe5 Bxf3 5. Qxf3 dxe5 6. Bc4 Nf6 7. Qb3 Qe7 8. Nc3 c6 9. Bg5 b5 10. Nxb5 cxb5 11. Bxb5+ Nbd7 12. O-O-O Rd8 13. Rxd7 Rxd7 14. Rd1 Qe6 15. Bxd7+ Nxd7 16. Qb8+ Nxb8 17. Rd8# 1-0",209,209,""," ",null,null,null,null," ",null,null,null,null," ",73,209,"","","","","","","",{"$f":"IF(pgnNidioma=0,$AD74,SUBSTITUTE(SUBSTITUTE(SUBSTITUTE(SUBSTITUTE(SUBSTITUTE($AD74,\n\"♔\",INDEX(TablaPiezas[],1,pgnNidioma)),\n\"♕\",INDEX(TablaPiezas[],2,pgnNidioma)),\n\"♖\",INDEX(TablaPiezas[],3,pgnNidioma)),\n\"♗\",INDEX(TablaPiezas[],4,pgnNidioma)),\n\"♘\",INDEX(TablaPiezas[],5,pgnNidioma)))","v":""},{"$f":"IF(pgnNidioma=0,$AE74,SUBSTITUTE(SUBSTITUTE(SUBSTITUTE(SUBSTITUTE(SUBSTITUTE($AE74,\n\"♚\",INDEX(TablaPiezas[],1,pgnNidioma)),\n\"♛\",INDEX(TablaPiezas[],2,pgnNidioma)),\n\"♜\",INDEX(TablaPiezas[],3,pgnNidioma)),\n\"♝\",INDEX(TablaPiezas[],4,pgnNidioma)),\n\"♞\",INDEX(TablaPiezas[],5,pgnNidioma)))","v":""},""]
[75,{"$f":"IFERROR(IF(INDEX(PGN[0],A75-1)=pgnPartida,INDEX(PGN[PGN],A75-1),\"\"),\"\")","v":""},null,"1. e4 e5 2. Nf3 d6 3. d4 Bg4 4. dxe5 Bxf3 5. Qxf3 dxe5 6. Bc4 Nf6 7. Qb3 Qe7 8. Nc3 c6 9. Bg5 b5 10. Nxb5 cxb5 11. Bxb5+ Nbd7 12. O-O-O Rd8 13. Rxd7 Rxd7 14. Rd1 Qe6 15. Bxd7+ Nxd7 16. Qb8+ Nxb8 17. Rd8# 1-0                                                               ",270,"","",{"$f":"IF(OR(E75=0,LEN(F75)<100),0,MATCH(\" \",CONCATENATE(MID(RIGHT(F75,15),{15;14;13;12;11;10;9;8;7;6;5;4;3;2;1},1)),0)-1)","v":0},"1. e4 e5 2. Nf3 d6 3. d4 Bg4 4. dxe5 Bxf3 5. Qxf3 dxe5 6. Bc4 Nf6 7. Qb3 Qe7 8. Nc3 c6 9. Bg5 b5 10. Nxb5 cxb5 11. Bxb5+ Nbd7 12. O-O-O Rd8 13. Rxd7 Rxd7 14. Rd1 Qe6 15. Bxd7+ Nxd7 16. Qb8+ Nxb8 17. Rd8# 1-0",209,209,""," ",null,null,null,null," ",null,null,null,null," ",74,209,"","","","","","","",{"$f":"IF(pgnNidioma=0,$AD75,SUBSTITUTE(SUBSTITUTE(SUBSTITUTE(SUBSTITUTE(SUBSTITUTE($AD75,\n\"♔\",INDEX(TablaPiezas[],1,pgnNidioma)),\n\"♕\",INDEX(TablaPiezas[],2,pgnNidioma)),\n\"♖\",INDEX(TablaPiezas[],3,pgnNidioma)),\n\"♗\",INDEX(TablaPiezas[],4,pgnNidioma)),\n\"♘\",INDEX(TablaPiezas[],5,pgnNidioma)))","v":""},{"$f":"IF(pgnNidioma=0,$AE75,SUBSTITUTE(SUBSTITUTE(SUBSTITUTE(SUBSTITUTE(SUBSTITUTE($AE75,\n\"♚\",INDEX(TablaPiezas[],1,pgnNidioma)),\n\"♛\",INDEX(TablaPiezas[],2,pgnNidioma)),\n\"♜\",INDEX(TablaPiezas[],3,pgnNidioma)),\n\"♝\",INDEX(TablaPiezas[],4,pgnNidioma)),\n\"♞\",INDEX(TablaPiezas[],5,pgnNidioma)))","v":""},""]
[76,{"$f":"IFERROR(IF(INDEX(PGN[0],A76-1)=pgnPartida,INDEX(PGN[PGN],A76-1),\"\"),\"\")","v":""},null,"1. e4 e5 2. Nf3 d6 3. d4 Bg4 4. dxe5 Bxf3 5. Qxf3 dxe5 6. Bc4 Nf6 7. Qb3 Qe7 8. Nc3 c6 9. Bg5 b5 10. Nxb5 cxb5 11. Bxb5+ Nbd7 12. O-O-O Rd8 13. Rxd7 Rxd7 14. Rd1 Qe6 15. Bxd7+ Nxd7 16. Qb8+ Nxb8 17. Rd8# 1-0                                                                ",271,"","",{"$f":"IF(OR(E76=0,LEN(F76)<100),0,MATCH(\" \",CONCATENATE(MID(RIGHT(F76,15),{15;14;13;12;11;10;9;8;7;6;5;4;3;2;1},1)),0)-1)","v":0},null,null,null,null," ",null,null,null,null," ",null,null,null,null," ",75,209,"","","","","","","",{"$f":"IF(pgnNidioma=0,$AD76,SUBSTITUTE(SUBSTITUTE(SUBSTITUTE(SUBSTITUTE(SUBSTITUTE($AD76,\n\"♔\",INDEX(TablaPiezas[],1,pgnNidioma)),\n\"♕\",INDEX(TablaPiezas[],2,pgnNidioma)),\n\"♖\",INDEX(TablaPiezas[],3,pgnNidioma)),\n\"♗\",INDEX(TablaPiezas[],4,pgnNidioma)),\n\"♘\",INDEX(TablaPiezas[],5,pgnNidioma)))","v":""},{"$f":"IF(pgnNidioma=0,$AE76,SUBSTITUTE(SUBSTITUTE(SUBSTITUTE(SUBSTITUTE(SUBSTITUTE($AE76,\n\"♚\",INDEX(TablaPiezas[],1,pgnNidioma)),\n\"♛\",INDEX(TablaPiezas[],2,pgnNidioma)),\n\"♜\",INDEX(TablaPiezas[],3,pgnNidioma)),\n\"♝\",INDEX(TablaPiezas[],4,pgnNidioma)),\n\"♞\",INDEX(TablaPiezas[],5,pgnNidioma)))","v":""},""]
[77,{"$f":"IFERROR(IF(INDEX(PGN[0],A77-1)=pgnPartida,INDEX(PGN[PGN],A77-1),\"\"),\"\")","v":""},null,"1. e4 e5 2. Nf3 d6 3. d4 Bg4 4. dxe5 Bxf3 5. Qxf3 dxe5 6. Bc4 Nf6 7. Qb3 Qe7 8. Nc3 c6 9. Bg5 b5 10. Nxb5 cxb5 11. Bxb5+ Nbd7 12. O-O-O Rd8 13. Rxd7 Rxd7 14. Rd1 Qe6 15. Bxd7+ Nxd7 16. Qb8+ Nxb8 17. Rd8# 1-0                                                                 ",272,"","",{"$f":"IF(OR(E77=0,LEN(F77)<100),0,MATCH(\" \",CONCATENATE(MID(RIGHT(F77,15),{15;14;13;12;11;10;9;8;7;6;5;4;3;2;1},1)),0)-1)","v":0},null,null,null,null," ",null,null,null,null," ",null,null,null,null," ",76,209,"","","","","","","",{"$f":"IF(pgnNidioma=0,$AD77,SUBSTITUTE(SUBSTITUTE(SUBSTITUTE(SUBSTITUTE(SUBSTITUTE($AD77,\n\"♔\",INDEX(TablaPiezas[],1,pgnNidioma)),\n\"♕\",INDEX(TablaPiezas[],2,pgnNidioma)),\n\"♖\",INDEX(TablaPiezas[],3,pgnNidioma)),\n\"♗\",INDEX(TablaPiezas[],4,pgnNidioma)),\n\"♘\",INDEX(TablaPiezas[],5,pgnNidioma)))","v":""},{"$f":"IF(pgnNidioma=0,$AE77,SUBSTITUTE(SUBSTITUTE(SUBSTITUTE(SUBSTITUTE(SUBSTITUTE($AE77,\n\"♚\",INDEX(TablaPiezas[],1,pgnNidioma)),\n\"♛\",INDEX(TablaPiezas[],2,pgnNidioma)),\n\"♜\",INDEX(TablaPiezas[],3,pgnNidioma)),\n\"♝\",INDEX(TablaPiezas[],4,pgnNidioma)),\n\"♞\",INDEX(TablaPiezas[],5,pgnNidioma)))","v":""},""]
[78,{"$f":"IFERROR(IF(INDEX(PGN[0],A78-1)=pgnPartida,INDEX(PGN[PGN],A78-1),\"\"),\"\")","v":""},null,"1. e4 e5 2. Nf3 d6 3. d4 Bg4 4. dxe5 Bxf3 5. Qxf3 dxe5 6. Bc4 Nf6 7. Qb3 Qe7 8. Nc3 c6 9. Bg5 b5 10. Nxb5 cxb5 11. Bxb5+ Nbd7 12. O-O-O Rd8 13. Rxd7 Rxd7 14. Rd1 Qe6 15. Bxd7+ Nxd7 16. Qb8+ Nxb8 17. Rd8# 1-0                                                                  ",273,"","",{"$f":"IF(OR(E78=0,LEN(F78)<100),0,MATCH(\" \",CONCATENATE(MID(RIGHT(F78,15),{15;14;13;12;11;10;9;8;7;6;5;4;3;2;1},1)),0)-1)","v":0},null,null,null,null," ",null,null,null,null," ",null,null,null,null," ",77,209,"","","","","","","",{"$f":"IF(pgnNidioma=0,$AD78,SUBSTITUTE(SUBSTITUTE(SUBSTITUTE(SUBSTITUTE(SUBSTITUTE($AD78,\n\"♔\",INDEX(TablaPiezas[],1,pgnNidioma)),\n\"♕\",INDEX(TablaPiezas[],2,pgnNidioma)),\n\"♖\",INDEX(TablaPiezas[],3,pgnNidioma)),\n\"♗\",INDEX(TablaPiezas[],4,pgnNidioma)),\n\"♘\",INDEX(TablaPiezas[],5,pgnNidioma)))","v":""},{"$f":"IF(pgnNidioma=0,$AE78,SUBSTITUTE(SUBSTITUTE(SUBSTITUTE(SUBSTITUTE(SUBSTITUTE($AE78,\n\"♚\",INDEX(TablaPiezas[],1,pgnNidioma)),\n\"♛\",INDEX(TablaPiezas[],2,pgnNidioma)),\n\"♜\",INDEX(TablaPiezas[],3,pgnNidioma)),\n\"♝\",INDEX(TablaPiezas[],4,pgnNidioma)),\n\"♞\",INDEX(TablaPiezas[],5,pgnNidioma)))","v":""},""]
[79,{"$f":"IFERROR(IF(INDEX(PGN[0],A79-1)=pgnPartida,INDEX(PGN[PGN],A79-1),\"\"),\"\")","v":""},null,"1. e4 e5 2. Nf3 d6 3. d4 Bg4 4. dxe5 Bxf3 5. Qxf3 dxe5 6. Bc4 Nf6 7. Qb3 Qe7 8. Nc3 c6 9. Bg5 b5 10. Nxb5 cxb5 11. Bxb5+ Nbd7 12. O-O-O Rd8 13. Rxd7 Rxd7 14. Rd1 Qe6 15. Bxd7+ Nxd7 16. Qb8+ Nxb8 17. Rd8# 1-0                                                                   ",274,"","",{"$f":"IF(OR(E79=0,LEN(F79)<100),0,MATCH(\" \",CONCATENATE(MID(RIGHT(F79,15),{15;14;13;12;11;10;9;8;7;6;5;4;3;2;1},1)),0)-1)","v":0},null,null,null,null," ",null,null,null,null," ",null,null,null,null," ",78,209,"","","","","","","",{"$f":"IF(pgnNidioma=0,$AD79,SUBSTITUTE(SUBSTITUTE(SUBSTITUTE(SUBSTITUTE(SUBSTITUTE($AD79,\n\"♔\",INDEX(TablaPiezas[],1,pgnNidioma)),\n\"♕\",INDEX(TablaPiezas[],2,pgnNidioma)),\n\"♖\",INDEX(TablaPiezas[],3,pgnNidioma)),\n\"♗\",INDEX(TablaPiezas[],4,pgnNidioma)),\n\"♘\",INDEX(TablaPiezas[],5,pgnNidioma)))","v":""},{"$f":"IF(pgnNidioma=0,$AE79,SUBSTITUTE(SUBSTITUTE(SUBSTITUTE(SUBSTITUTE(SUBSTITUTE($AE79,\n\"♚\",INDEX(TablaPiezas[],1,pgnNidioma)),\n\"♛\",INDEX(TablaPiezas[],2,pgnNidioma)),\n\"♜\",INDEX(TablaPiezas[],3,pgnNidioma)),\n\"♝\",INDEX(TablaPiezas[],4,pgnNidioma)),\n\"♞\",INDEX(TablaPiezas[],5,pgnNidioma)))","v":""},""]
[80,{"$f":"IFERROR(IF(INDEX(PGN[0],A80-1)=pgnPartida,INDEX(PGN[PGN],A80-1),\"\"),\"\")","v":""},null,"1. e4 e5 2. Nf3 d6 3. d4 Bg4 4. dxe5 Bxf3 5. Qxf3 dxe5 6. Bc4 Nf6 7. Qb3 Qe7 8. Nc3 c6 9. Bg5 b5 10. Nxb5 cxb5 11. Bxb5+ Nbd7 12. O-O-O Rd8 13. Rxd7 Rxd7 14. Rd1 Qe6 15. Bxd7+ Nxd7 16. Qb8+ Nxb8 17. Rd8# 1-0                                                                    ",275,"","",{"$f":"IF(OR(E80=0,LEN(F80)<100),0,MATCH(\" \",CONCATENATE(MID(RIGHT(F80,15),{15;14;13;12;11;10;9;8;7;6;5;4;3;2;1},1)),0)-1)","v":0},null,null,null,null," ",null,null,null,null," ",null,null,null,null," ",79,209,"","","","","","","",{"$f":"IF(pgnNidioma=0,$AD80,SUBSTITUTE(SUBSTITUTE(SUBSTITUTE(SUBSTITUTE(SUBSTITUTE($AD80,\n\"♔\",INDEX(TablaPiezas[],1,pgnNidioma)),\n\"♕\",INDEX(TablaPiezas[],2,pgnNidioma)),\n\"♖\",INDEX(TablaPiezas[],3,pgnNidioma)),\n\"♗\",INDEX(TablaPiezas[],4,pgnNidioma)),\n\"♘\",INDEX(TablaPiezas[],5,pgnNidioma)))","v":""},{"$f":"IF(pgnNidioma=0,$AE80,SUBSTITUTE(SUBSTITUTE(SUBSTITUTE(SUBSTITUTE(SUBSTITUTE($AE80,\n\"♚\",INDEX(TablaPiezas[],1,pgnNidioma)),\n\"♛\",INDEX(TablaPiezas[],2,pgnNidioma)),\n\"♜\",INDEX(TablaPiezas[],3,pgnNidioma)),\n\"♝\",INDEX(TablaPiezas[],4,pgnNidioma)),\n\"♞\",INDEX(TablaPiezas[],5,pgnNidioma)))","v":""},""]
[81,{"$f":"IFERROR(IF(INDEX(PGN[0],A81-1)=pgnPartida,INDEX(PGN[PGN],A81-1),\"\"),\"\")","v":""},null,"1. e4 e5 2. Nf3 d6 3. d4 Bg4 4. dxe5 Bxf3 5. Qxf3 dxe5 6. Bc4 Nf6 7. Qb3 Qe7 8. Nc3 c6 9. Bg5 b5 10. Nxb5 cxb5 11. Bxb5+ Nbd7 12. O-O-O Rd8 13. Rxd7 Rxd7 14. Rd1 Qe6 15. Bxd7+ Nxd7 16. Qb8+ Nxb8 17. Rd8# 1-0                                                                     ",276,"",{"$f":"IF(E81=0,B81,IFERROR(MID($D$153,E81,MIN(100,LEN(F81))-H81),\"\"))","v":""},{"$f":"IF(OR(E81=0,LEN(F81)<100),0,MATCH(\" \",CONCATENATE(MID(RIGHT(F81,15),{15;14;13;12;11;10;9;8;7;6;5;4;3;2;1},1)),0)-1)","v":0},null,null,null,null," ",null,null,null,null," ",null,null,null,null," ",80,209,"","","","","","","",{"$f":"IF(pgnNidioma=0,$AD81,SUBSTITUTE(SUBSTITUTE(SUBSTITUTE(SUBSTITUTE(SUBSTITUTE($AD81,\n\"♔\",INDEX(TablaPiezas[],1,pgnNidioma)),\n\"♕\",INDEX(TablaPiezas[],2,pgnNidioma)),\n\"♖\",INDEX(TablaPiezas[],3,pgnNidioma)),\n\"♗\",INDEX(TablaPiezas[],4,pgnNidioma)),\n\"♘\",INDEX(TablaPiezas[],5,pgnNidioma)))","v":""},{"$f":"IF(pgnNidioma=0,$AE81,SUBSTITUTE(SUBSTITUTE(SUBSTITUTE(SUBSTITUTE(SUBSTITUTE($AE81,\n\"♚\",INDEX(TablaPiezas[],1,pgnNidioma)),\n\"♛\",INDEX(TablaPiezas[],2,pgnNidioma)),\n\"♜\",INDEX(TablaPiezas[],3,pgnNidioma)),\n\"♝\",INDEX(TablaPiezas[],4,pgnNidioma)),\n\"♞\",INDEX(TablaPiezas[],5,pgnNidioma)))","v":""},""]
[82,{"$f":"IFERROR(IF(INDEX(PGN[0],A82-1)=pgnPartida,INDEX(PGN[PGN],A82-1),\"\"),\"\")","v":""},null,"1. e4 e5 2. Nf3 d6 3. d4 Bg4 4. dxe5 Bxf3 5. Qxf3 dxe5 6. Bc4 Nf6 7. Qb3 Qe7 8. Nc3 c6 9. Bg5 b5 10. Nxb5 cxb5 11. Bxb5+ Nbd7 12. O-O-O Rd8 13. Rxd7 Rxd7 14. Rd1 Qe6 15. Bxd7+ Nxd7 16. Qb8+ Nxb8 17. Rd8# 1-0                                                                      ",277,"","",{"$f":"IF(OR(E82=0,LEN(F82)<100),0,MATCH(\" \",CONCATENATE(MID(RIGHT(F82,15),{15;14;13;12;11;10;9;8;7;6;5;4;3;2;1},1)),0)-1)","v":0},null,null,null,null," ",null,null,null,null," ",null,null,null,null," ",81,209,"","","","","","","",{"$f":"IF(pgnNidioma=0,$AD82,SUBSTITUTE(SUBSTITUTE(SUBSTITUTE(SUBSTITUTE(SUBSTITUTE($AD82,\n\"♔\",INDEX(TablaPiezas[],1,pgnNidioma)),\n\"♕\",INDEX(TablaPiezas[],2,pgnNidioma)),\n\"♖\",INDEX(TablaPiezas[],3,pgnNidioma)),\n\"♗\",INDEX(TablaPiezas[],4,pgnNidioma)),\n\"♘\",INDEX(TablaPiezas[],5,pgnNidioma)))","v":""},{"$f":"IF(pgnNidioma=0,$AE82,SUBSTITUTE(SUBSTITUTE(SUBSTITUTE(SUBSTITUTE(SUBSTITUTE($AE82,\n\"♚\",INDEX(TablaPiezas[],1,pgnNidioma)),\n\"♛\",INDEX(TablaPiezas[],2,pgnNidioma)),\n\"♜\",INDEX(TablaPiezas[],3,pgnNidioma)),\n\"♝\",INDEX(TablaPiezas[],4,pgnNidioma)),\n\"♞\",INDEX(TablaPiezas[],5,pgnNidioma)))","v":""},""]
[83,{"$f":"IFERROR(IF(INDEX(PGN[0],A83-1)=pgnPartida,INDEX(PGN[PGN],A83-1),\"\"),\"\")","v":""},null,"1. e4 e5 2. Nf3 d6 3. d4 Bg4 4. dxe5 Bxf3 5. Qxf3 dxe5 6. Bc4 Nf6 7. Qb3 Qe7 8. Nc3 c6 9. Bg5 b5 10. Nxb5 cxb5 11. Bxb5+ Nbd7 12. O-O-O Rd8 13. Rxd7 Rxd7 14. Rd1 Qe6 15. Bxd7+ Nxd7 16. Qb8+ Nxb8 17. Rd8# 1-0                                                                       ",278,"","",{"$f":"IF(OR(E83=0,LEN(F83)<100),0,MATCH(\" \",CONCATENATE(MID(RIGHT(F83,15),{15;14;13;12;11;10;9;8;7;6;5;4;3;2;1},1)),0)-1)","v":0},null,null,null,null," ",null,null,null,null," ",null,null,null,null," ",82,209,"","","","","","","",{"$f":"IF(pgnNidioma=0,$AD83,SUBSTITUTE(SUBSTITUTE(SUBSTITUTE(SUBSTITUTE(SUBSTITUTE($AD83,\n\"♔\",INDEX(TablaPiezas[],1,pgnNidioma)),\n\"♕\",INDEX(TablaPiezas[],2,pgnNidioma)),\n\"♖\",INDEX(TablaPiezas[],3,pgnNidioma)),\n\"♗\",INDEX(TablaPiezas[],4,pgnNidioma)),\n\"♘\",INDEX(TablaPiezas[],5,pgnNidioma)))","v":""},{"$f":"IF(pgnNidioma=0,$AE83,SUBSTITUTE(SUBSTITUTE(SUBSTITUTE(SUBSTITUTE(SUBSTITUTE($AE83,\n\"♚\",INDEX(TablaPiezas[],1,pgnNidioma)),\n\"♛\",INDEX(TablaPiezas[],2,pgnNidioma)),\n\"♜\",INDEX(TablaPiezas[],3,pgnNidioma)),\n\"♝\",INDEX(TablaPiezas[],4,pgnNidioma)),\n\"♞\",INDEX(TablaPiezas[],5,pgnNidioma)))","v":""},""]
[84,{"$f":"IFERROR(IF(INDEX(PGN[0],A84-1)=pgnPartida,INDEX(PGN[PGN],A84-1),\"\"),\"\")","v":""},null,"1. e4 e5 2. Nf3 d6 3. d4 Bg4 4. dxe5 Bxf3 5. Qxf3 dxe5 6. Bc4 Nf6 7. Qb3 Qe7 8. Nc3 c6 9. Bg5 b5 10. Nxb5 cxb5 11. Bxb5+ Nbd7 12. O-O-O Rd8 13. Rxd7 Rxd7 14. Rd1 Qe6 15. Bxd7+ Nxd7 16. Qb8+ Nxb8 17. Rd8# 1-0                                                                        ",279,"","",{"$f":"IF(OR(E84=0,LEN(F84)<100),0,MATCH(\" \",CONCATENATE(MID(RIGHT(F84,15),{15;14;13;12;11;10;9;8;7;6;5;4;3;2;1},1)),0)-1)","v":0},null,null,null,null," ",null,null,null,null," ",null,null,null,null," ",83,209,"","","","","","","",{"$f":"IF(pgnNidioma=0,$AD84,SUBSTITUTE(SUBSTITUTE(SUBSTITUTE(SUBSTITUTE(SUBSTITUTE($AD84,\n\"♔\",INDEX(TablaPiezas[],1,pgnNidioma)),\n\"♕\",INDEX(TablaPiezas[],2,pgnNidioma)),\n\"♖\",INDEX(TablaPiezas[],3,pgnNidioma)),\n\"♗\",INDEX(TablaPiezas[],4,pgnNidioma)),\n\"♘\",INDEX(TablaPiezas[],5,pgnNidioma)))","v":""},{"$f":"IF(pgnNidioma=0,$AE84,SUBSTITUTE(SUBSTITUTE(SUBSTITUTE(SUBSTITUTE(SUBSTITUTE($AE84,\n\"♚\",INDEX(TablaPiezas[],1,pgnNidioma)),\n\"♛\",INDEX(TablaPiezas[],2,pgnNidioma)),\n\"♜\",INDEX(TablaPiezas[],3,pgnNidioma)),\n\"♝\",INDEX(TablaPiezas[],4,pgnNidioma)),\n\"♞\",INDEX(TablaPiezas[],5,pgnNidioma)))","v":""},""]
[85,{"$f":"IFERROR(IF(INDEX(PGN[0],A85-1)=pgnPartida,INDEX(PGN[PGN],A85-1),\"\"),\"\")","v":""},null,{"$f":"D84&\" \"&B85","v":"1. e4 e5 2. Nf3 d6 3. d4 Bg4 4. dxe5 Bxf3 5. Qxf3 dxe5 6. Bc4 Nf6 7. Qb3 Qe7 8. Nc3 c6 9. Bg5 b5 10. Nxb5 cxb5 11. Bxb5+ Nbd7 12. O-O-O Rd8 13. Rxd7 Rxd7 14. Rd1 Qe6 15. Bxd7+ Nxd7 16. Qb8+ Nxb8 17. Rd8# 1-0                                                                         "},280,"","",{"$f":"IF(OR(E85=0,LEN(F85)<100),0,MATCH(\" \",CONCATENATE(MID(RIGHT(F85,15),{15;14;13;12;11;10;9;8;7;6;5;4;3;2;1},1)),0)-1)","v":0},null,null,null,null," ",null,null,null,null," ",null,null,null,null," ",84,209,"","","","","","","",{"$f":"IF(pgnNidioma=0,$AD85,SUBSTITUTE(SUBSTITUTE(SUBSTITUTE(SUBSTITUTE(SUBSTITUTE($AD85,\n\"♔\",INDEX(TablaPiezas[],1,pgnNidioma)),\n\"♕\",INDEX(TablaPiezas[],2,pgnNidioma)),\n\"♖\",INDEX(TablaPiezas[],3,pgnNidioma)),\n\"♗\",INDEX(TablaPiezas[],4,pgnNidioma)),\n\"♘\",INDEX(TablaPiezas[],5,pgnNidioma)))","v":""},{"$f":"IF(pgnNidioma=0,$AE85,SUBSTITUTE(SUBSTITUTE(SUBSTITUTE(SUBSTITUTE(SUBSTITUTE($AE85,\n\"♚\",INDEX(TablaPiezas[],1,pgnNidioma)),\n\"♛\",INDEX(TablaPiezas[],2,pgnNidioma)),\n\"♜\",INDEX(TablaPiezas[],3,pgnNidioma)),\n\"♝\",INDEX(TablaPiezas[],4,pgnNidioma)),\n\"♞\",INDEX(TablaPiezas[],5,pgnNidioma)))","v":""},""]
[86,{"$f":"IFERROR(IF(INDEX(PGN[0],A86-1)=pgnPartida,INDEX(PGN[PGN],A86-1),\"\"),\"\")","v":""},null,"1. e4 e5 2. Nf3 d6 3. d4 Bg4 4. dxe5 Bxf3 5. Qxf3 dxe5 6. Bc4 Nf6 7. Qb3 Qe7 8. Nc3 c6 9. Bg5 b5 10. Nxb5 cxb5 11. Bxb5+ Nbd7 12. O-O-O Rd8 13. Rxd7 Rxd7 14. Rd1 Qe6 15. Bxd7+ Nxd7 16. Qb8+ Nxb8 17. Rd8# 1-0                                                                          ",281,"","",{"$f":"IF(OR(E86=0,LEN(F86)<100),0,MATCH(\" \",CONCATENATE(MID(RIGHT(F86,15),{15;14;13;12;11;10;9;8;7;6;5;4;3;2;1},1)),0)-1)","v":0},null,null,null,null," ",null,null,null,null," ",null,null,null,null," ",85,209,"","","","","","","",{"$f":"IF(pgnNidioma=0,$AD86,SUBSTITUTE(SUBSTITUTE(SUBSTITUTE(SUBSTITUTE(SUBSTITUTE($AD86,\n\"♔\",INDEX(TablaPiezas[],1,pgnNidioma)),\n\"♕\",INDEX(TablaPiezas[],2,pgnNidioma)),\n\"♖\",INDEX(TablaPiezas[],3,pgnNidioma)),\n\"♗\",INDEX(TablaPiezas[],4,pgnNidioma)),\n\"♘\",INDEX(TablaPiezas[],5,pgnNidioma)))","v":""},{"$f":"IF(pgnNidioma=0,$AE86,SUBSTITUTE(SUBSTITUTE(SUBSTITUTE(SUBSTITUTE(SUBSTITUTE($AE86,\n\"♚\",INDEX(TablaPiezas[],1,pgnNidioma)),\n\"♛\",INDEX(TablaPiezas[],2,pgnNidioma)),\n\"♜\",INDEX(TablaPiezas[],3,pgnNidioma)),\n\"♝\",INDEX(TablaPiezas[],4,pgnNidioma)),\n\"♞\",INDEX(TablaPiezas[],5,pgnNidioma)))","v":""},""]
[87,{"$f":"IFERROR(IF(INDEX(PGN[0],A87-1)=pgnPartida,INDEX(PGN[PGN],A87-1),\"\"),\"\")","v":""},null,"1. e4 e5 2. Nf3 d6 3. d4 Bg4 4. dxe5 Bxf3 5. Qxf3 dxe5 6. Bc4 Nf6 7. Qb3 Qe7 8. Nc3 c6 9. Bg5 b5 10. Nxb5 cxb5 11. Bxb5+ Nbd7 12. O-O-O Rd8 13. Rxd7 Rxd7 14. Rd1 Qe6 15. Bxd7+ Nxd7 16. Qb8+ Nxb8 17. Rd8# 1-0                                                                           ",282,"","",{"$f":"IF(OR(E87=0,LEN(F87)<100),0,MATCH(\" \",CONCATENATE(MID(RIGHT(F87,15),{15;14;13;12;11;10;9;8;7;6;5;4;3;2;1},1)),0)-1)","v":0},null,null,null,null," ",null,null,null,null," ",null,null,null,null," ",86,209,"","","","","","","",{"$f":"IF(pgnNidioma=0,$AD87,SUBSTITUTE(SUBSTITUTE(SUBSTITUTE(SUBSTITUTE(SUBSTITUTE($AD87,\n\"♔\",INDEX(TablaPiezas[],1,pgnNidioma)),\n\"♕\",INDEX(TablaPiezas[],2,pgnNidioma)),\n\"♖\",INDEX(TablaPiezas[],3,pgnNidioma)),\n\"♗\",INDEX(TablaPiezas[],4,pgnNidioma)),\n\"♘\",INDEX(TablaPiezas[],5,pgnNidioma)))","v":""},{"$f":"IF(pgnNidioma=0,$AE87,SUBSTITUTE(SUBSTITUTE(SUBSTITUTE(SUBSTITUTE(SUBSTITUTE($AE87,\n\"♚\",INDEX(TablaPiezas[],1,pgnNidioma)),\n\"♛\",INDEX(TablaPiezas[],2,pgnNidioma)),\n\"♜\",INDEX(TablaPiezas[],3,pgnNidioma)),\n\"♝\",INDEX(TablaPiezas[],4,pgnNidioma)),\n\"♞\",INDEX(TablaPiezas[],5,pgnNidioma)))","v":""},""]
[88,{"$f":"IFERROR(IF(INDEX(PGN[0],A88-1)=pgnPartida,INDEX(PGN[PGN],A88-1),\"\"),\"\")","v":""},null,"1. e4 e5 2. Nf3 d6 3. d4 Bg4 4. dxe5 Bxf3 5. Qxf3 dxe5 6. Bc4 Nf6 7. Qb3 Qe7 8. Nc3 c6 9. Bg5 b5 10. Nxb5 cxb5 11. Bxb5+ Nbd7 12. O-O-O Rd8 13. Rxd7 Rxd7 14. Rd1 Qe6 15. Bxd7+ Nxd7 16. Qb8+ Nxb8 17. Rd8# 1-0                                                                            ",283,"","",{"$f":"IF(OR(E88=0,LEN(F88)<100),0,MATCH(\" \",CONCATENATE(MID(RIGHT(F88,15),{15;14;13;12;11;10;9;8;7;6;5;4;3;2;1},1)),0)-1)","v":0},null,null,null,null," ",null,null,null,null," ",null,null,null,null," ",87,209,"","","","","","","",{"$f":"IF(pgnNidioma=0,$AD88,SUBSTITUTE(SUBSTITUTE(SUBSTITUTE(SUBSTITUTE(SUBSTITUTE($AD88,\n\"♔\",INDEX(TablaPiezas[],1,pgnNidioma)),\n\"♕\",INDEX(TablaPiezas[],2,pgnNidioma)),\n\"♖\",INDEX(TablaPiezas[],3,pgnNidioma)),\n\"♗\",INDEX(TablaPiezas[],4,pgnNidioma)),\n\"♘\",INDEX(TablaPiezas[],5,pgnNidioma)))","v":""},{"$f":"IF(pgnNidioma=0,$AE88,SUBSTITUTE(SUBSTITUTE(SUBSTITUTE(SUBSTITUTE(SUBSTITUTE($AE88,\n\"♚\",INDEX(TablaPiezas[],1,pgnNidioma)),\n\"♛\",INDEX(TablaPiezas[],2,pgnNidioma)),\n\"♜\",INDEX(TablaPiezas[],3,pgnNidioma)),\n\"♝\",INDEX(TablaPiezas[],4,pgnNidioma)),\n\"♞\",INDEX(TablaPiezas[],5,pgnNidioma)))","v":""},""]
[89,{"$f":"IFERROR(IF(INDEX(PGN[0],A89-1)=pgnPartida,INDEX(PGN[PGN],A89-1),\"\"),\"\")","v":""},null,"1. e4 e5 2. Nf3 d6 3. d4 Bg4 4. dxe5 Bxf3 5. Qxf3 dxe5 6. Bc4 Nf6 7. Qb3 Qe7 8. Nc3 c6 9. Bg5 b5 10. Nxb5 cxb5 11. Bxb5+ Nbd7 12. O-O-O Rd8 13. Rxd7 Rxd7 14. Rd1 Qe6 15. Bxd7+ Nxd7 16. Qb8+ Nxb8 17. Rd8# 1-0                                                                             ",284,"","",{"$f":"IF(OR(E89=0,LEN(F89)<100),0,MATCH(\" \",CONCATENATE(MID(RIGHT(F89,15),{15;14;13;12;11;10;9;8;7;6;5;4;3;2;1},1)),0)-1)","v":0},null,null,null,null," ",null,null,null,null," ",null,null,null,null," ",88,209,"","","","","","","",{"$f":"IF(pgnNidioma=0,$AD89,SUBSTITUTE(SUBSTITUTE(SUBSTITUTE(SUBSTITUTE(SUBSTITUTE($AD89,\n\"♔\",INDEX(TablaPiezas[],1,pgnNidioma)),\n\"♕\",INDEX(TablaPiezas[],2,pgnNidioma)),\n\"♖\",INDEX(TablaPiezas[],3,pgnNidioma)),\n\"♗\",INDEX(TablaPiezas[],4,pgnNidioma)),\n\"♘\",INDEX(TablaPiezas[],5,pgnNidioma)))","v":""},{"$f":"IF(pgnNidioma=0,$AE89,SUBSTITUTE(SUBSTITUTE(SUBSTITUTE(SUBSTITUTE(SUBSTITUTE($AE89,\n\"♚\",INDEX(TablaPiezas[],1,pgnNidioma)),\n\"♛\",INDEX(TablaPiezas[],2,pgnNidioma)),\n\"♜\",INDEX(TablaPiezas[],3,pgnNidioma)),\n\"♝\",INDEX(TablaPiezas[],4,pgnNidioma)),\n\"♞\",INDEX(TablaPiezas[],5,pgnNidioma)))","v":""},""]
[90,{"$f":"IFERROR(IF(INDEX(PGN[0],A90-1)=pgnPartida,INDEX(PGN[PGN],A90-1),\"\"),\"\")","v":""},null,"1. e4 e5 2. Nf3 d6 3. d4 Bg4 4. dxe5 Bxf3 5. Qxf3 dxe5 6. Bc4 Nf6 7. Qb3 Qe7 8. Nc3 c6 9. Bg5 b5 10. Nxb5 cxb5 11. Bxb5+ Nbd7 12. O-O-O Rd8 13. Rxd7 Rxd7 14. Rd1 Qe6 15. Bxd7+ Nxd7 16. Qb8+ Nxb8 17. Rd8# 1-0                                                                              ",285,"","",{"$f":"IF(OR(E90=0,LEN(F90)<100),0,MATCH(\" \",CONCATENATE(MID(RIGHT(F90,15),{15;14;13;12;11;10;9;8;7;6;5;4;3;2;1},1)),0)-1)","v":0},null,null,null,null," ",null,null,null,null," ",null,null,null,null," ",89,209,"","","","","","","",{"$f":"IF(pgnNidioma=0,$AD90,SUBSTITUTE(SUBSTITUTE(SUBSTITUTE(SUBSTITUTE(SUBSTITUTE($AD90,\n\"♔\",INDEX(TablaPiezas[],1,pgnNidioma)),\n\"♕\",INDEX(TablaPiezas[],2,pgnNidioma)),\n\"♖\",INDEX(TablaPiezas[],3,pgnNidioma)),\n\"♗\",INDEX(TablaPiezas[],4,pgnNidioma)),\n\"♘\",INDEX(TablaPiezas[],5,pgnNidioma)))","v":""},{"$f":"IF(pgnNidioma=0,$AE90,SUBSTITUTE(SUBSTITUTE(SUBSTITUTE(SUBSTITUTE(SUBSTITUTE($AE90,\n\"♚\",INDEX(TablaPiezas[],1,pgnNidioma)),\n\"♛\",INDEX(TablaPiezas[],2,pgnNidioma)),\n\"♜\",INDEX(TablaPiezas[],3,pgnNidioma)),\n\"♝\",INDEX(TablaPiezas[],4,pgnNidioma)),\n\"♞\",INDEX(TablaPiezas[],5,pgnNidioma)))","v":""},""]
[91,{"$f":"IFERROR(IF(INDEX(PGN[0],A91-1)=pgnPartida,INDEX(PGN[PGN],A91-1),\"\"),\"\")","v":""},null,"1. e4 e5 2. Nf3 d6 3. d4 Bg4 4. dxe5 Bxf3 5. Qxf3 dxe5 6. Bc4 Nf6 7. Qb3 Qe7 8. Nc3 c6 9. Bg5 b5 10. Nxb5 cxb5 11. Bxb5+ Nbd7 12. O-O-O Rd8 13. Rxd7 Rxd7 14. Rd1 Qe6 15. Bxd7+ Nxd7 16. Qb8+ Nxb8 17. Rd8# 1-0                                                                               ",286,"","",{"$f":"IF(OR(E91=0,LEN(F91)<100),0,MATCH(\" \",CONCATENATE(MID(RIGHT(F91,15),{15;14;13;12;11;10;9;8;7;6;5;4;3;2;1},1)),0)-1)","v":0},null,null,null,null," ",null,null,null,null," ",null,null,null,null," ",90,209,"","","","","","","",{"$f":"IF(pgnNidioma=0,$AD91,SUBSTITUTE(SUBSTITUTE(SUBSTITUTE(SUBSTITUTE(SUBSTITUTE($AD91,\n\"♔\",INDEX(TablaPiezas[],1,pgnNidioma)),\n\"♕\",INDEX(TablaPiezas[],2,pgnNidioma)),\n\"♖\",INDEX(TablaPiezas[],3,pgnNidioma)),\n\"♗\",INDEX(TablaPiezas[],4,pgnNidioma)),\n\"♘\",INDEX(TablaPiezas[],5,pgnNidioma)))","v":""},{"$f":"IF(pgnNidioma=0,$AE91,SUBSTITUTE(SUBSTITUTE(SUBSTITUTE(SUBSTITUTE(SUBSTITUTE($AE91,\n\"♚\",INDEX(TablaPiezas[],1,pgnNidioma)),\n\"♛\",INDEX(TablaPiezas[],2,pgnNidioma)),\n\"♜\",INDEX(TablaPiezas[],3,pgnNidioma)),\n\"♝\",INDEX(TablaPiezas[],4,pgnNidioma)),\n\"♞\",INDEX(TablaPiezas[],5,pgnNidioma)))","v":""},""]
[92,{"$f":"IFERROR(IF(INDEX(PGN[0],A92-1)=pgnPartida,INDEX(PGN[PGN],A92-1),\"\"),\"\")","v":""},null,"1. e4 e5 2. Nf3 d6 3. d4 Bg4 4. dxe5 Bxf3 5. Qxf3 dxe5 6. Bc4 Nf6 7. Qb3 Qe7 8. Nc3 c6 9. Bg5 b5 10. Nxb5 cxb5 11. Bxb5+ Nbd7 12. O-O-O Rd8 13. Rxd7 Rxd7 14. Rd1 Qe6 15. Bxd7+ Nxd7 16. Qb8+ Nxb8 17. Rd8# 1-0                                                                                ",287,"","",{"$f":"IF(OR(E92=0,LEN(F92)<100),0,MATCH(\" \",CONCATENATE(MID(RIGHT(F92,15),{15;14;13;12;11;10;9;8;7;6;5;4;3;2;1},1)),0)-1)","v":0},null,null,null,null," ",null,null,null,null," ",null,null,null,null," ",91,209,"","","","","","","",{"$f":"IF(pgnNidioma=0,$AD92,SUBSTITUTE(SUBSTITUTE(SUBSTITUTE(SUBSTITUTE(SUBSTITUTE($AD92,\n\"♔\",INDEX(TablaPiezas[],1,pgnNidioma)),\n\"♕\",INDEX(TablaPiezas[],2,pgnNidioma)),\n\"♖\",INDEX(TablaPiezas[],3,pgnNidioma)),\n\"♗\",INDEX(TablaPiezas[],4,pgnNidioma)),\n\"♘\",INDEX(TablaPiezas[],5,pgnNidioma)))","v":""},{"$f":"IF(pgnNidioma=0,$AE92,SUBSTITUTE(SUBSTITUTE(SUBSTITUTE(SUBSTITUTE(SUBSTITUTE($AE92,\n\"♚\",INDEX(TablaPiezas[],1,pgnNidioma)),\n\"♛\",INDEX(TablaPiezas[],2,pgnNidioma)),\n\"♜\",INDEX(TablaPiezas[],3,pgnNidioma)),\n\"♝\",INDEX(TablaPiezas[],4,pgnNidioma)),\n\"♞\",INDEX(TablaPiezas[],5,pgnNidioma)))","v":""},""]
[93,{"$f":"IFERROR(IF(INDEX(PGN[0],A93-1)=pgnPartida,INDEX(PGN[PGN],A93-1),\"\"),\"\")","v":""},null,"1. e4 e5 2. Nf3 d6 3. d4 Bg4 4. dxe5 Bxf3 5. Qxf3 dxe5 6. Bc4 Nf6 7. Qb3 Qe7 8. Nc3 c6 9. Bg5 b5 10. Nxb5 cxb5 11. Bxb5+ Nbd7 12. O-O-O Rd8 13. Rxd7 Rxd7 14. Rd1 Qe6 15. Bxd7+ Nxd7 16. Qb8+ Nxb8 17. Rd8# 1-0                                                                                 ",288,"","",{"$f":"IF(OR(E93=0,LEN(F93)<100),0,MATCH(\" \",CONCATENATE(MID(RIGHT(F93,15),{15;14;13;12;11;10;9;8;7;6;5;4;3;2;1},1)),0)-1)","v":0},null,null,null,null," ",null,null,null,null," ",null,null,null,null," ",92,209,"","","","","","","",{"$f":"IF(pgnNidioma=0,$AD93,SUBSTITUTE(SUBSTITUTE(SUBSTITUTE(SUBSTITUTE(SUBSTITUTE($AD93,\n\"♔\",INDEX(TablaPiezas[],1,pgnNidioma)),\n\"♕\",INDEX(TablaPiezas[],2,pgnNidioma)),\n\"♖\",INDEX(TablaPiezas[],3,pgnNidioma)),\n\"♗\",INDEX(TablaPiezas[],4,pgnNidioma)),\n\"♘\",INDEX(TablaPiezas[],5,pgnNidioma)))","v":""},{"$f":"IF(pgnNidioma=0,$AE93,SUBSTITUTE(SUBSTITUTE(SUBSTITUTE(SUBSTITUTE(SUBSTITUTE($AE93,\n\"♚\",INDEX(TablaPiezas[],1,pgnNidioma)),\n\"♛\",INDEX(TablaPiezas[],2,pgnNidioma)),\n\"♜\",INDEX(TablaPiezas[],3,pgnNidioma)),\n\"♝\",INDEX(TablaPiezas[],4,pgnNidioma)),\n\"♞\",INDEX(TablaPiezas[],5,pgnNidioma)))","v":""},""]
[94,{"$f":"IFERROR(IF(INDEX(PGN[0],A94-1)=pgnPartida,INDEX(PGN[PGN],A94-1),\"\"),\"\")","v":""},null,"1. e4 e5 2. Nf3 d6 3. d4 Bg4 4. dxe5 Bxf3 5. Qxf3 dxe5 6. Bc4 Nf6 7. Qb3 Qe7 8. Nc3 c6 9. Bg5 b5 10. Nxb5 cxb5 11. Bxb5+ Nbd7 12. O-O-O Rd8 13. Rxd7 Rxd7 14. Rd1 Qe6 15. Bxd7+ Nxd7 16. Qb8+ Nxb8 17. Rd8# 1-0                                                                                  ",289,"","",{"$f":"IF(OR(E94=0,LEN(F94)<100),0,MATCH(\" \",CONCATENATE(MID(RIGHT(F94,15),{15;14;13;12;11;10;9;8;7;6;5;4;3;2;1},1)),0)-1)","v":0},null,null,null,null," ",null,null,null,null," ",null,null,null,null," ",93,209,"","","","","","","",{"$f":"IF(pgnNidioma=0,$AD94,SUBSTITUTE(SUBSTITUTE(SUBSTITUTE(SUBSTITUTE(SUBSTITUTE($AD94,\n\"♔\",INDEX(TablaPiezas[],1,pgnNidioma)),\n\"♕\",INDEX(TablaPiezas[],2,pgnNidioma)),\n\"♖\",INDEX(TablaPiezas[],3,pgnNidioma)),\n\"♗\",INDEX(TablaPiezas[],4,pgnNidioma)),\n\"♘\",INDEX(TablaPiezas[],5,pgnNidioma)))","v":""},{"$f":"IF(pgnNidioma=0,$AE94,SUBSTITUTE(SUBSTITUTE(SUBSTITUTE(SUBSTITUTE(SUBSTITUTE($AE94,\n\"♚\",INDEX(TablaPiezas[],1,pgnNidioma)),\n\"♛\",INDEX(TablaPiezas[],2,pgnNidioma)),\n\"♜\",INDEX(TablaPiezas[],3,pgnNidioma)),\n\"♝\",INDEX(TablaPiezas[],4,pgnNidioma)),\n\"♞\",INDEX(TablaPiezas[],5,pgnNidioma)))","v":""},""]
[95,{"$f":"IFERROR(IF(INDEX(PGN[0],A95-1)=pgnPartida,INDEX(PGN[PGN],A95-1),\"\"),\"\")","v":""},null,"1. e4 e5 2. Nf3 d6 3. d4 Bg4 4. dxe5 Bxf3 5. Qxf3 dxe5 6. Bc4 Nf6 7. Qb3 Qe7 8. Nc3 c6 9. Bg5 b5 10. Nxb5 cxb5 11. Bxb5+ Nbd7 12. O-O-O Rd8 13. Rxd7 Rxd7 14. Rd1 Qe6 15. Bxd7+ Nxd7 16. Qb8+ Nxb8 17. Rd8# 1-0                                                                                   ",290,"","",{"$f":"IF(OR(E95=0,LEN(F95)<100),0,MATCH(\" \",CONCATENATE(MID(RIGHT(F95,15),{15;14;13;12;11;10;9;8;7;6;5;4;3;2;1},1)),0)-1)","v":0},null,null,null,null," ",null,null,null,null," ",null,null,null,null," ",94,209,"","","","","","","",{"$f":"IF(pgnNidioma=0,$AD95,SUBSTITUTE(SUBSTITUTE(SUBSTITUTE(SUBSTITUTE(SUBSTITUTE($AD95,\n\"♔\",INDEX(TablaPiezas[],1,pgnNidioma)),\n\"♕\",INDEX(TablaPiezas[],2,pgnNidioma)),\n\"♖\",INDEX(TablaPiezas[],3,pgnNidioma)),\n\"♗\",INDEX(TablaPiezas[],4,pgnNidioma)),\n\"♘\",INDEX(TablaPiezas[],5,pgnNidioma)))","v":""},{"$f":"IF(pgnNidioma=0,$AE95,SUBSTITUTE(SUBSTITUTE(SUBSTITUTE(SUBSTITUTE(SUBSTITUTE($AE95,\n\"♚\",INDEX(TablaPiezas[],1,pgnNidioma)),\n\"♛\",INDEX(TablaPiezas[],2,pgnNidioma)),\n\"♜\",INDEX(TablaPiezas[],3,pgnNidioma)),\n\"♝\",INDEX(TablaPiezas[],4,pgnNidioma)),\n\"♞\",INDEX(TablaPiezas[],5,pgnNidioma)))","v":""},""]
[96,{"$f":"IFERROR(IF(INDEX(PGN[0],A96-1)=pgnPartida,INDEX(PGN[PGN],A96-1),\"\"),\"\")","v":""},null,"1. e4 e5 2. Nf3 d6 3. d4 Bg4 4. dxe5 Bxf3 5. Qxf3 dxe5 6. Bc4 Nf6 7. Qb3 Qe7 8. Nc3 c6 9. Bg5 b5 10. Nxb5 cxb5 11. Bxb5+ Nbd7 12. O-O-O Rd8 13. Rxd7 Rxd7 14. Rd1 Qe6 15. Bxd7+ Nxd7 16. Qb8+ Nxb8 17. Rd8# 1-0                                                                                    ",291,"","",{"$f":"IF(OR(E96=0,LEN(F96)<100),0,MATCH(\" \",CONCATENATE(MID(RIGHT(F96,15),{15;14;13;12;11;10;9;8;7;6;5;4;3;2;1},1)),0)-1)","v":0},null,null,null,null," ",null,null,null,null," ",null,null,null,null," ",95,209,"","","","","","","",{"$f":"IF(pgnNidioma=0,$AD96,SUBSTITUTE(SUBSTITUTE(SUBSTITUTE(SUBSTITUTE(SUBSTITUTE($AD96,\n\"♔\",INDEX(TablaPiezas[],1,pgnNidioma)),\n\"♕\",INDEX(TablaPiezas[],2,pgnNidioma)),\n\"♖\",INDEX(TablaPiezas[],3,pgnNidioma)),\n\"♗\",INDEX(TablaPiezas[],4,pgnNidioma)),\n\"♘\",INDEX(TablaPiezas[],5,pgnNidioma)))","v":""},{"$f":"IF(pgnNidioma=0,$AE96,SUBSTITUTE(SUBSTITUTE(SUBSTITUTE(SUBSTITUTE(SUBSTITUTE($AE96,\n\"♚\",INDEX(TablaPiezas[],1,pgnNidioma)),\n\"♛\",INDEX(TablaPiezas[],2,pgnNidioma)),\n\"♜\",INDEX(TablaPiezas[],3,pgnNidioma)),\n\"♝\",INDEX(TablaPiezas[],4,pgnNidioma)),\n\"♞\",INDEX(TablaPiezas[],5,pgnNidioma)))","v":""},""]
[97,{"$f":"IFERROR(IF(INDEX(PGN[0],A97-1)=pgnPartida,INDEX(PGN[PGN],A97-1),\"\"),\"\")","v":""},null,"1. e4 e5 2. Nf3 d6 3. d4 Bg4 4. dxe5 Bxf3 5. Qxf3 dxe5 6. Bc4 Nf6 7. Qb3 Qe7 8. Nc3 c6 9. Bg5 b5 10. Nxb5 cxb5 11. Bxb5+ Nbd7 12. O-O-O Rd8 13. Rxd7 Rxd7 14. Rd1 Qe6 15. Bxd7+ Nxd7 16. Qb8+ Nxb8 17. Rd8# 1-0                                                                                     ",292,"","",{"$f":"IF(OR(E97=0,LEN(F97)<100),0,MATCH(\" \",CONCATENATE(MID(RIGHT(F97,15),{15;14;13;12;11;10;9;8;7;6;5;4;3;2;1},1)),0)-1)","v":0},null,null,null,null," ",null,null,null,null," ",null,null,null,null," ",96,209,"","","","","","","",{"$f":"IF(pgnNidioma=0,$AD97,SUBSTITUTE(SUBSTITUTE(SUBSTITUTE(SUBSTITUTE(SUBSTITUTE($AD97,\n\"♔\",INDEX(TablaPiezas[],1,pgnNidioma)),\n\"♕\",INDEX(TablaPiezas[],2,pgnNidioma)),\n\"♖\",INDEX(TablaPiezas[],3,pgnNidioma)),\n\"♗\",INDEX(TablaPiezas[],4,pgnNidioma)),\n\"♘\",INDEX(TablaPiezas[],5,pgnNidioma)))","v":""},{"$f":"IF(pgnNidioma=0,$AE97,SUBSTITUTE(SUBSTITUTE(SUBSTITUTE(SUBSTITUTE(SUBSTITUTE($AE97,\n\"♚\",INDEX(TablaPiezas[],1,pgnNidioma)),\n\"♛\",INDEX(TablaPiezas[],2,pgnNidioma)),\n\"♜\",INDEX(TablaPiezas[],3,pgnNidioma)),\n\"♝\",INDEX(TablaPiezas[],4,pgnNidioma)),\n\"♞\",INDEX(TablaPiezas[],5,pgnNidioma)))","v":""},""]
[98,{"$f":"IFERROR(IF(INDEX(PGN[0],A98-1)=pgnPartida,INDEX(PGN[PGN],A98-1),\"\"),\"\")","v":""},null,"1. e4 e5 2. Nf3 d6 3. d4 Bg4 4. dxe5 Bxf3 5. Qxf3 dxe5 6. Bc4 Nf6 7. Qb3 Qe7 8. Nc3 c6 9. Bg5 b5 10. Nxb5 cxb5 11. Bxb5+ Nbd7 12. O-O-O Rd8 13. Rxd7 Rxd7 14. Rd1 Qe6 15. Bxd7+ Nxd7 16. Qb8+ Nxb8 17. Rd8# 1-0                                                                                      ",293,"","",{"$f":"IF(OR(E98=0,LEN(F98)<100),0,MATCH(\" \",CONCATENATE(MID(RIGHT(F98,15),{15;14;13;12;11;10;9;8;7;6;5;4;3;2;1},1)),0)-1)","v":0},null,null,null,null," ",null,null,null,null," ",null,null,null,null," ",97,209,"","","","","","","",{"$f":"IF(pgnNidioma=0,$AD98,SUBSTITUTE(SUBSTITUTE(SUBSTITUTE(SUBSTITUTE(SUBSTITUTE($AD98,\n\"♔\",INDEX(TablaPiezas[],1,pgnNidioma)),\n\"♕\",INDEX(TablaPiezas[],2,pgnNidioma)),\n\"♖\",INDEX(TablaPiezas[],3,pgnNidioma)),\n\"♗\",INDEX(TablaPiezas[],4,pgnNidioma)),\n\"♘\",INDEX(TablaPiezas[],5,pgnNidioma)))","v":""},{"$f":"IF(pgnNidioma=0,$AE98,SUBSTITUTE(SUBSTITUTE(SUBSTITUTE(SUBSTITUTE(SUBSTITUTE($AE98,\n\"♚\",INDEX(TablaPiezas[],1,pgnNidioma)),\n\"♛\",INDEX(TablaPiezas[],2,pgnNidioma)),\n\"♜\",INDEX(TablaPiezas[],3,pgnNidioma)),\n\"♝\",INDEX(TablaPiezas[],4,pgnNidioma)),\n\"♞\",INDEX(TablaPiezas[],5,pgnNidioma)))","v":""},""]
[99,{"$f":"IFERROR(IF(INDEX(PGN[0],A99-1)=pgnPartida,INDEX(PGN[PGN],A99-1),\"\"),\"\")","v":""},null,"1. e4 e5 2. Nf3 d6 3. d4 Bg4 4. dxe5 Bxf3 5. Qxf3 dxe5 6. Bc4 Nf6 7. Qb3 Qe7 8. Nc3 c6 9. Bg5 b5 10. Nxb5 cxb5 11. Bxb5+ Nbd7 12. O-O-O Rd8 13. Rxd7 Rxd7 14. Rd1 Qe6 15. Bxd7+ Nxd7 16. Qb8+ Nxb8 17. Rd8# 1-0                                                                                       ",294,"","",{"$f":"IF(OR(E99=0,LEN(F99)<100),0,MATCH(\" \",CONCATENATE(MID(RIGHT(F99,15),{15;14;13;12;11;10;9;8;7;6;5;4;3;2;1},1)),0)-1)","v":0},null,null,null,null," ",null,null,null,null," ",null,null,null,null," ",98,209,"","","","","","","",{"$f":"IF(pgnNidioma=0,$AD99,SUBSTITUTE(SUBSTITUTE(SUBSTITUTE(SUBSTITUTE(SUBSTITUTE($AD99,\n\"♔\",INDEX(TablaPiezas[],1,pgnNidioma)),\n\"♕\",INDEX(TablaPiezas[],2,pgnNidioma)),\n\"♖\",INDEX(TablaPiezas[],3,pgnNidioma)),\n\"♗\",INDEX(TablaPiezas[],4,pgnNidioma)),\n\"♘\",INDEX(TablaPiezas[],5,pgnNidioma)))","v":""},{"$f":"IF(pgnNidioma=0,$AE99,SUBSTITUTE(SUBSTITUTE(SUBSTITUTE(SUBSTITUTE(SUBSTITUTE($AE99,\n\"♚\",INDEX(TablaPiezas[],1,pgnNidioma)),\n\"♛\",INDEX(TablaPiezas[],2,pgnNidioma)),\n\"♜\",INDEX(TablaPiezas[],3,pgnNidioma)),\n\"♝\",INDEX(TablaPiezas[],4,pgnNidioma)),\n\"♞\",INDEX(TablaPiezas[],5,pgnNidioma)))","v":""},""]
[100,{"$f":"IFERROR(IF(INDEX(PGN[0],A100-1)=pgnPartida,INDEX(PGN[PGN],A100-1),\"\"),\"\")","v":""},null,"1. e4 e5 2. Nf3 d6 3. d4 Bg4 4. dxe5 Bxf3 5. Qxf3 dxe5 6. Bc4 Nf6 7. Qb3 Qe7 8. Nc3 c6 9. Bg5 b5 10. Nxb5 cxb5 11. Bxb5+ Nbd7 12. O-O-O Rd8 13. Rxd7 Rxd7 14. Rd1 Qe6 15. Bxd7+ Nxd7 16. Qb8+ Nxb8 17. Rd8# 1-0                                                                                        ",295,"","",{"$f":"IF(OR(E100=0,LEN(F100)<100),0,MATCH(\" \",CONCATENATE(MID(RIGHT(F100,15),{15;14;13;12;11;10;9;8;7;6;5;4;3;2;1},1)),0)-1)","v":0},null,null,null,null," ",null,null,null,null," ",null,null,null,null," ",99,209,"","","","","","","",{"$f":"IF(pgnNidioma=0,$AD100,SUBSTITUTE(SUBSTITUTE(SUBSTITUTE(SUBSTITUTE(SUBSTITUTE($AD100,\n\"♔\",INDEX(TablaPiezas[],1,pgnNidioma)),\n\"♕\",INDEX(TablaPiezas[],2,pgnNidioma)),\n\"♖\",INDEX(TablaPiezas[],3,pgnNidioma)),\n\"♗\",INDEX(TablaPiezas[],4,pgnNidioma)),\n\"♘\",INDEX(TablaPiezas[],5,pgnNidioma)))","v":""},{"$f":"IF(pgnNidioma=0,$AE100,SUBSTITUTE(SUBSTITUTE(SUBSTITUTE(SUBSTITUTE(SUBSTITUTE($AE100,\n\"♚\",INDEX(TablaPiezas[],1,pgnNidioma)),\n\"♛\",INDEX(TablaPiezas[],2,pgnNidioma)),\n\"♜\",INDEX(TablaPiezas[],3,pgnNidioma)),\n\"♝\",INDEX(TablaPiezas[],4,pgnNidioma)),\n\"♞\",INDEX(TablaPiezas[],5,pgnNidioma)))","v":""},""]
[101,{"$f":"IFERROR(IF(INDEX(PGN[0],A101-1)=pgnPartida,INDEX(PGN[PGN],A101-1),\"\"),\"\")","v":""},null,"1. e4 e5 2. Nf3 d6 3. d4 Bg4 4. dxe5 Bxf3 5. Qxf3 dxe5 6. Bc4 Nf6 7. Qb3 Qe7 8. Nc3 c6 9. Bg5 b5 10. Nxb5 cxb5 11. Bxb5+ Nbd7 12. O-O-O Rd8 13. Rxd7 Rxd7 14. Rd1 Qe6 15. Bxd7+ Nxd7 16. Qb8+ Nxb8 17. Rd8# 1-0                                                                                         ",296,"","",{"$f":"IF(OR(E101=0,LEN(F101)<100),0,MATCH(\" \",CONCATENATE(MID(RIGHT(F101,15),{15;14;13;12;11;10;9;8;7;6;5;4;3;2;1},1)),0)-1)","v":0},null,null,null,null," ",null,null,null,null," ",null,null,null,null," ",100,209,"","","","","","","",{"$f":"IF(pgnNidioma=0,$AD101,SUBSTITUTE(SUBSTITUTE(SUBSTITUTE(SUBSTITUTE(SUBSTITUTE($AD101,\n\"♔\",INDEX(TablaPiezas[],1,pgnNidioma)),\n\"♕\",INDEX(TablaPiezas[],2,pgnNidioma)),\n\"♖\",INDEX(TablaPiezas[],3,pgnNidioma)),\n\"♗\",INDEX(TablaPiezas[],4,pgnNidioma)),\n\"♘\",INDEX(TablaPiezas[],5,pgnNidioma)))","v":""},{"$f":"IF(pgnNidioma=0,$AE101,SUBSTITUTE(SUBSTITUTE(SUBSTITUTE(SUBSTITUTE(SUBSTITUTE($AE101,\n\"♚\",INDEX(TablaPiezas[],1,pgnNidioma)),\n\"♛\",INDEX(TablaPiezas[],2,pgnNidioma)),\n\"♜\",INDEX(TablaPiezas[],3,pgnNidioma)),\n\"♝\",INDEX(TablaPiezas[],4,pgnNidioma)),\n\"♞\",INDEX(TablaPiezas[],5,pgnNidioma)))","v":""},""]
[102,{"$f":"IFERROR(IF(INDEX(PGN[0],A102-1)=pgnPartida,INDEX(PGN[PGN],A102-1),\"\"),\"\")","v":""},null,"1. e4 e5 2. Nf3 d6 3. d4 Bg4 4. dxe5 Bxf3 5. Qxf3 dxe5 6. Bc4 Nf6 7. Qb3 Qe7 8. Nc3 c6 9. Bg5 b5 10. Nxb5 cxb5 11. Bxb5+ Nbd7 12. O-O-O Rd8 13. Rxd7 Rxd7 14. Rd1 Qe6 15. Bxd7+ Nxd7 16. Qb8+ Nxb8 17. Rd8# 1-0                                                                                          ",297,"","",{"$f":"IF(OR(E102=0,LEN(F102)<100),0,MATCH(\" \",CONCATENATE(MID(RIGHT(F102,15),{15;14;13;12;11;10;9;8;7;6;5;4;3;2;1},1)),0)-1)","v":0},null,null,null,null," ",null,null,null,null," ",null,null,null,null," ",101,209,"","","","","","","",{"$f":"IF(pgnNidioma=0,$AD102,SUBSTITUTE(SUBSTITUTE(SUBSTITUTE(SUBSTITUTE(SUBSTITUTE($AD102,\n\"♔\",INDEX(TablaPiezas[],1,pgnNidioma)),\n\"♕\",INDEX(TablaPiezas[],2,pgnNidioma)),\n\"♖\",INDEX(TablaPiezas[],3,pgnNidioma)),\n\"♗\",INDEX(TablaPiezas[],4,pgnNidioma)),\n\"♘\",INDEX(TablaPiezas[],5,pgnNidioma)))","v":""},{"$f":"IF(pgnNidioma=0,$AE102,SUBSTITUTE(SUBSTITUTE(SUBSTITUTE(SUBSTITUTE(SUBSTITUTE($AE102,\n\"♚\",INDEX(TablaPiezas[],1,pgnNidioma)),\n\"♛\",INDEX(TablaPiezas[],2,pgnNidioma)),\n\"♜\",INDEX(TablaPiezas[],3,pgnNidioma)),\n\"♝\",INDEX(TablaPiezas[],4,pgnNidioma)),\n\"♞\",INDEX(TablaPiezas[],5,pgnNidioma)))","v":""},""]
[103,{"$f":"IFERROR(IF(INDEX(PGN[0],A103-1)=pgnPartida,INDEX(PGN[PGN],A103-1),\"\"),\"\")","v":""},null,"1. e4 e5 2. Nf3 d6 3. d4 Bg4 4. dxe5 Bxf3 5. Qxf3 dxe5 6. Bc4 Nf6 7. Qb3 Qe7 8. Nc3 c6 9. Bg5 b5 10. Nxb5 cxb5 11. Bxb5+ Nbd7 12. O-O-O Rd8 13. Rxd7 Rxd7 14. Rd1 Qe6 15. Bxd7+ Nxd7 16. Qb8+ Nxb8 17. Rd8# 1-0                                                                                           ",298,"","",{"$f":"IF(OR(E103=0,LEN(F103)<100),0,MATCH(\" \",CONCATENATE(MID(RIGHT(F103,15),{15;14;13;12;11;10;9;8;7;6;5;4;3;2;1},1)),0)-1)","v":0},null,null,null,null," ",null,null,null,null," ",null,null,null,null," "]
[104,{"$f":"IFERROR(IF(INDEX(PGN[0],A104-1)=pgnPartida,INDEX(PGN[PGN],A104-1),\"\"),\"\")","v":""},null,"1. e4 e5 2. Nf3 d6 3. d4 Bg4 4. dxe5 Bxf3 5. Qxf3 dxe5 6. Bc4 Nf6 7. Qb3 Qe7 8. Nc3 c6 9. Bg5 b5 10. Nxb5 cxb5 11. Bxb5+ Nbd7 12. O-O-O Rd8 13. Rxd7 Rxd7 14. Rd1 Qe6 15. Bxd7+ Nxd7 16. Qb8+ Nxb8 17. Rd8# 1-0                                                                                            ",299,"","",{"$f":"IF(OR(E104=0,LEN(F104)<100),0,MATCH(\" \",CONCATENATE(MID(RIGHT(F104,15),{15;14;13;12;11;10;9;8;7;6;5;4;3;2;1},1)),0)-1)","v":0},null,null,null,null," ",null,null,null,null," ",null,null,null,null," ",null,null,null,null,null,null,null,null,null,null,null,0]
[105,{"$f":"IFERROR(IF(INDEX(PGN[0],A105-1)=pgnPartida,INDEX(PGN[PGN],A105-1),\"\"),\"\")","v":""},null,"1. e4 e5 2. Nf3 d6 3. d4 Bg4 4. dxe5 Bxf3 5. Qxf3 dxe5 6. Bc4 Nf6 7. Qb3 Qe7 8. Nc3 c6 9. Bg5 b5 10. Nxb5 cxb5 11. Bxb5+ Nbd7 12. O-O-O Rd8 13. Rxd7 Rxd7 14. Rd1 Qe6 15. Bxd7+ Nxd7 16. Qb8+ Nxb8 17. Rd8# 1-0                                                                                             ",300,"","",{"$f":"IF(OR(E105=0,LEN(F105)<100),0,MATCH(\" \",CONCATENATE(MID(RIGHT(F105,15),{15;14;13;12;11;10;9;8;7;6;5;4;3;2;1},1)),0)-1)","v":0},null,null,null,null," ",null,null,null,null," ",null,null,null,null," ",null,null,null,null,null,null,null,null,null,null,null,{"$f":"IFERROR(INDEX(pgnJugadasEnglish,pgnJugadaNo),\"\")","v":"1. e4 e5"}]
[106,{"$f":"IFERROR(IF(INDEX(PGN[0],A106-1)=pgnPartida,INDEX(PGN[PGN],A106-1),\"\"),\"\")","v":""},null,"1. e4 e5 2. Nf3 d6 3. d4 Bg4 4. dxe5 Bxf3 5. Qxf3 dxe5 6. Bc4 Nf6 7. Qb3 Qe7 8. Nc3 c6 9. Bg5 b5 10. Nxb5 cxb5 11. Bxb5+ Nbd7 12. O-O-O Rd8 13. Rxd7 Rxd7 14. Rd1 Qe6 15. Bxd7+ Nxd7 16. Qb8+ Nxb8 17. Rd8# 1-0                                                                                              ",301,"","",{"$f":"IF(OR(E106=0,LEN(F106)<100),0,MATCH(\" \",CONCATENATE(MID(RIGHT(F106,15),{15;14;13;12;11;10;9;8;7;6;5;4;3;2;1},1)),0)-1)","v":0},null,null,null,null," ",null,null,null,null," ",null,null,null,null," ",null,null,null,null,null,null,null,null,null,null,null,"2. Nf3 d6"]
[107,{"$f":"IFERROR(IF(INDEX(PGN[0],A107-1)=pgnPartida,INDEX(PGN[PGN],A107-1),\"\"),\"\")","v":""},null,"1. e4 e5 2. Nf3 d6 3. d4 Bg4 4. dxe5 Bxf3 5. Qxf3 dxe5 6. Bc4 Nf6 7. Qb3 Qe7 8. Nc3 c6 9. Bg5 b5 10. Nxb5 cxb5 11. Bxb5+ Nbd7 12. O-O-O Rd8 13. Rxd7 Rxd7 14. Rd1 Qe6 15. Bxd7+ Nxd7 16. Qb8+ Nxb8 17. Rd8# 1-0                                                                                               ",302,"","",{"$f":"IF(OR(E107=0,LEN(F107)<100),0,MATCH(\" \",CONCATENATE(MID(RIGHT(F107,15),{15;14;13;12;11;10;9;8;7;6;5;4;3;2;1},1)),0)-1)","v":0},null,null,null,null," ",null,null,null,null," ",null,null,null,null," ",null,null,null,null,null,null,null,null,null,null,null,"3. d4 Bg4"]
[108,{"$f":"IFERROR(IF(INDEX(PGN[0],A108-1)=pgnPartida,INDEX(PGN[PGN],A108-1),\"\"),\"\")","v":""},null,"1. e4 e5 2. Nf3 d6 3. d4 Bg4 4. dxe5 Bxf3 5. Qxf3 dxe5 6. Bc4 Nf6 7. Qb3 Qe7 8. Nc3 c6 9. Bg5 b5 10. Nxb5 cxb5 11. Bxb5+ Nbd7 12. O-O-O Rd8 13. Rxd7 Rxd7 14. Rd1 Qe6 15. Bxd7+ Nxd7 16. Qb8+ Nxb8 17. Rd8# 1-0                                                                                                ",303,"","",{"$f":"IF(OR(E108=0,LEN(F108)<100),0,MATCH(\" \",CONCATENATE(MID(RIGHT(F108,15),{15;14;13;12;11;10;9;8;7;6;5;4;3;2;1},1)),0)-1)","v":0},null,null,null,null," ",null,null,null,null," ",null,null,null,null," ",null,null,null,null,null,null,null,null,null,null,null,"4. dxe5 Bxf3"]
[109,{"$f":"IFERROR(IF(INDEX(PGN[0],A109-1)=pgnPartida,INDEX(PGN[PGN],A109-1),\"\"),\"\")","v":""},null,"1. e4 e5 2. Nf3 d6 3. d4 Bg4 4. dxe5 Bxf3 5. Qxf3 dxe5 6. Bc4 Nf6 7. Qb3 Qe7 8. Nc3 c6 9. Bg5 b5 10. Nxb5 cxb5 11. Bxb5+ Nbd7 12. O-O-O Rd8 13. Rxd7 Rxd7 14. Rd1 Qe6 15. Bxd7+ Nxd7 16. Qb8+ Nxb8 17. Rd8# 1-0                                                                                                 ",304,"","",{"$f":"IF(OR(E109=0,LEN(F109)<100),0,MATCH(\" \",CONCATENATE(MID(RIGHT(F109,15),{15;14;13;12;11;10;9;8;7;6;5;4;3;2;1},1)),0)-1)","v":0},null,null,null,null," ",null,null,null,null," ",null,null,null,null," ",null,null,null,null,null,null,null,null,null,null,null,"5. Qxf3 dxe5"]
[110,{"$f":"IFERROR(IF(INDEX(PGN[0],A110-1)=pgnPartida,INDEX(PGN[PGN],A110-1),\"\"),\"\")","v":""},null,"1. e4 e5 2. Nf3 d6 3. d4 Bg4 4. dxe5 Bxf3 5. Qxf3 dxe5 6. Bc4 Nf6 7. Qb3 Qe7 8. Nc3 c6 9. Bg5 b5 10. Nxb5 cxb5 11. Bxb5+ Nbd7 12. O-O-O Rd8 13. Rxd7 Rxd7 14. Rd1 Qe6 15. Bxd7+ Nxd7 16. Qb8+ Nxb8 17. Rd8# 1-0                                                                                                  ",305,"","",{"$f":"IF(OR(E110=0,LEN(F110)<100),0,MATCH(\" \",CONCATENATE(MID(RIGHT(F110,15),{15;14;13;12;11;10;9;8;7;6;5;4;3;2;1},1)),0)-1)","v":0},null,null,null,null," ",null,null,null,null," ",null,null,null,null," ",null,null,null,null,null,null,null,null,null,null,null,"6. Bc4 Nf6"]
[111,{"$f":"IFERROR(IF(INDEX(PGN[0],A111-1)=pgnPartida,INDEX(PGN[PGN],A111-1),\"\"),\"\")","v":""},null,"1. e4 e5 2. Nf3 d6 3. d4 Bg4 4. dxe5 Bxf3 5. Qxf3 dxe5 6. Bc4 Nf6 7. Qb3 Qe7 8. Nc3 c6 9. Bg5 b5 10. Nxb5 cxb5 11. Bxb5+ Nbd7 12. O-O-O Rd8 13. Rxd7 Rxd7 14. Rd1 Qe6 15. Bxd7+ Nxd7 16. Qb8+ Nxb8 17. Rd8# 1-0                                                                                                   ",306,"","",{"$f":"IF(OR(E111=0,LEN(F111)<100),0,MATCH(\" \",CONCATENATE(MID(RIGHT(F111,15),{15;14;13;12;11;10;9;8;7;6;5;4;3;2;1},1)),0)-1)","v":0},null,null,null,null," ",null,null,null,null," ",null,null,null,null," ",null,null,null,null,null,null,null,null,null,null,null,"7. Qb3 Qe7"]
[112,{"$f":"IFERROR(IF(INDEX(PGN[0],A112-1)=pgnPartida,INDEX(PGN[PGN],A112-1),\"\"),\"\")","v":""},null,"1. e4 e5 2. Nf3 d6 3. d4 Bg4 4. dxe5 Bxf3 5. Qxf3 dxe5 6. Bc4 Nf6 7. Qb3 Qe7 8. Nc3 c6 9. Bg5 b5 10. Nxb5 cxb5 11. Bxb5+ Nbd7 12. O-O-O Rd8 13. Rxd7 Rxd7 14. Rd1 Qe6 15. Bxd7+ Nxd7 16. Qb8+ Nxb8 17. Rd8# 1-0                                                                                                    ",307,"","",{"$f":"IF(OR(E112=0,LEN(F112)<100),0,MATCH(\" \",CONCATENATE(MID(RIGHT(F112,15),{15;14;13;12;11;10;9;8;7;6;5;4;3;2;1},1)),0)-1)","v":0},null,null,null,null," ",null,null,null,null," ",null,null,null,null," ",null,null,null,null,null,null,null,null,null,null,null,"8. Nc3 c6"]
[113,{"$f":"IFERROR(IF(INDEX(PGN[0],A113-1)=pgnPartida,INDEX(PGN[PGN],A113-1),\"\"),\"\")","v":""},null,"1. e4 e5 2. Nf3 d6 3. d4 Bg4 4. dxe5 Bxf3 5. Qxf3 dxe5 6. Bc4 Nf6 7. Qb3 Qe7 8. Nc3 c6 9. Bg5 b5 10. Nxb5 cxb5 11. Bxb5+ Nbd7 12. O-O-O Rd8 13. Rxd7 Rxd7 14. Rd1 Qe6 15. Bxd7+ Nxd7 16. Qb8+ Nxb8 17. Rd8# 1-0                                                                                                     ",308,"","",{"$f":"IF(OR(E113=0,LEN(F113)<100),0,MATCH(\" \",CONCATENATE(MID(RIGHT(F113,15),{15;14;13;12;11;10;9;8;7;6;5;4;3;2;1},1)),0)-1)","v":0},null,null,null,null," ",null,null,null,null," ",null,null,null,null," ",null,null,null,null,null,null,null,null,null,null,null,"9. Bg5 b5"]
[114,{"$f":"IFERROR(IF(INDEX(PGN[0],A114-1)=pgnPartida,INDEX(PGN[PGN],A114-1),\"\"),\"\")","v":""},null,"1. e4 e5 2. Nf3 d6 3. d4 Bg4 4. dxe5 Bxf3 5. Qxf3 dxe5 6. Bc4 Nf6 7. Qb3 Qe7 8. Nc3 c6 9. Bg5 b5 10. Nxb5 cxb5 11. Bxb5+ Nbd7 12. O-O-O Rd8 13. Rxd7 Rxd7 14. Rd1 Qe6 15. Bxd7+ Nxd7 16. Qb8+ Nxb8 17. Rd8# 1-0                                                                                                      ",309,"","",{"$f":"IF(OR(E114=0,LEN(F114)<100),0,MATCH(\" \",CONCATENATE(MID(RIGHT(F114,15),{15;14;13;12;11;10;9;8;7;6;5;4;3;2;1},1)),0)-1)","v":0},null,null,null,null," ",null,null,null,null," ",null,null,null,null," ",null,null,null,null,null,null,null,null,null,null,null,"10. Nxb5 cxb5"]
[115,{"$f":"IFERROR(IF(INDEX(PGN[0],A115-1)=pgnPartida,INDEX(PGN[PGN],A115-1),\"\"),\"\")","v":""},null,"1. e4 e5 2. Nf3 d6 3. d4 Bg4 4. dxe5 Bxf3 5. Qxf3 dxe5 6. Bc4 Nf6 7. Qb3 Qe7 8. Nc3 c6 9. Bg5 b5 10. Nxb5 cxb5 11. Bxb5+ Nbd7 12. O-O-O Rd8 13. Rxd7 Rxd7 14. Rd1 Qe6 15. Bxd7+ Nxd7 16. Qb8+ Nxb8 17. Rd8# 1-0                                                                                                       ",310,"","",{"$f":"IF(OR(E115=0,LEN(F115)<100),0,MATCH(\" \",CONCATENATE(MID(RIGHT(F115,15),{15;14;13;12;11;10;9;8;7;6;5;4;3;2;1},1)),0)-1)","v":0},null,null,null,null," ",null,null,null,null," ",null,null,null,null," ",null,null,null,null,null,null,null,null,null,null,null,"11. Bxb5+ Nbd7"]
[116,{"$f":"IFERROR(IF(INDEX(PGN[0],A116-1)=pgnPartida,INDEX(PGN[PGN],A116-1),\"\"),\"\")","v":""},null,"1. e4 e5 2. Nf3 d6 3. d4 Bg4 4. dxe5 Bxf3 5. Qxf3 dxe5 6. Bc4 Nf6 7. Qb3 Qe7 8. Nc3 c6 9. Bg5 b5 10. Nxb5 cxb5 11. Bxb5+ Nbd7 12. O-O-O Rd8 13. Rxd7 Rxd7 14. Rd1 Qe6 15. Bxd7+ Nxd7 16. Qb8+ Nxb8 17. Rd8# 1-0                                                                                                        ",311,"","",{"$f":"IF(OR(E116=0,LEN(F116)<100),0,MATCH(\" \",CONCATENATE(MID(RIGHT(F116,15),{15;14;13;12;11;10;9;8;7;6;5;4;3;2;1},1)),0)-1)","v":0},null,null,null,null," ",null,null,null,null," ",null,null,null,null," ",null,null,null,null,null,null,null,null,null,null,null,"12. O-O-O Rd8"]
[117,{"$f":"IFERROR(IF(INDEX(PGN[0],A117-1)=pgnPartida,INDEX(PGN[PGN],A117-1),\"\"),\"\")","v":""},null,"1. e4 e5 2. Nf3 d6 3. d4 Bg4 4. dxe5 Bxf3 5. Qxf3 dxe5 6. Bc4 Nf6 7. Qb3 Qe7 8. Nc3 c6 9. Bg5 b5 10. Nxb5 cxb5 11. Bxb5+ Nbd7 12. O-O-O Rd8 13. Rxd7 Rxd7 14. Rd1 Qe6 15. Bxd7+ Nxd7 16. Qb8+ Nxb8 17. Rd8# 1-0                                                                                                         ",312,"","",{"$f":"IF(OR(E117=0,LEN(F117)<100),0,MATCH(\" \",CONCATENATE(MID(RIGHT(F117,15),{15;14;13;12;11;10;9;8;7;6;5;4;3;2;1},1)),0)-1)","v":0},null,null,null,null," ",null,null,null,null," ",null,null,null,null," ",null,null,null,null,null,null,null,null,null,null,null,"13. Rxd7 Rxd7"]
[118,{"$f":"IFERROR(IF(INDEX(PGN[0],A118-1)=pgnPartida,INDEX(PGN[PGN],A118-1),\"\"),\"\")","v":""},null,"1. e4 e5 2. Nf3 d6 3. d4 Bg4 4. dxe5 Bxf3 5. Qxf3 dxe5 6. Bc4 Nf6 7. Qb3 Qe7 8. Nc3 c6 9. Bg5 b5 10. Nxb5 cxb5 11. Bxb5+ Nbd7 12. O-O-O Rd8 13. Rxd7 Rxd7 14. Rd1 Qe6 15. Bxd7+ Nxd7 16. Qb8+ Nxb8 17. Rd8# 1-0                                                                                                          ",313,"","",{"$f":"IF(OR(E118=0,LEN(F118)<100),0,MATCH(\" \",CONCATENATE(MID(RIGHT(F118,15),{15;14;13;12;11;10;9;8;7;6;5;4;3;2;1},1)),0)-1)","v":0},null,null,null,null," ",null,null,null,null," ",null,null,null,null," ",null,null,null,null,null,null,null,null,null,null,null,"14. Rd1 Qe6"]
[119,{"$f":"IFERROR(IF(INDEX(PGN[0],A119-1)=pgnPartida,INDEX(PGN[PGN],A119-1),\"\"),\"\")","v":""},null,"1. e4 e5 2. Nf3 d6 3. d4 Bg4 4. dxe5 Bxf3 5. Qxf3 dxe5 6. Bc4 Nf6 7. Qb3 Qe7 8. Nc3 c6 9. Bg5 b5 10. Nxb5 cxb5 11. Bxb5+ Nbd7 12. O-O-O Rd8 13. Rxd7 Rxd7 14. Rd1 Qe6 15. Bxd7+ Nxd7 16. Qb8+ Nxb8 17. Rd8# 1-0                                                                                                           ",314,"","",{"$f":"IF(OR(E119=0,LEN(F119)<100),0,MATCH(\" \",CONCATENATE(MID(RIGHT(F119,15),{15;14;13;12;11;10;9;8;7;6;5;4;3;2;1},1)),0)-1)","v":0},null,null,null,null," ",null,null,null,null," ",null,null,null,null," ",null,null,null,null,null,null,null,null,null,null,null,"15. Bxd7+ Nxd7"]
[120,{"$f":"IFERROR(IF(INDEX(PGN[0],A120-1)=pgnPartida,INDEX(PGN[PGN],A120-1),\"\"),\"\")","v":""},null,"1. e4 e5 2. Nf3 d6 3. d4 Bg4 4. dxe5 Bxf3 5. Qxf3 dxe5 6. Bc4 Nf6 7. Qb3 Qe7 8. Nc3 c6 9. Bg5 b5 10. Nxb5 cxb5 11. Bxb5+ Nbd7 12. O-O-O Rd8 13. Rxd7 Rxd7 14. Rd1 Qe6 15. Bxd7+ Nxd7 16. Qb8+ Nxb8 17. Rd8# 1-0                                                                                                            ",315,"","",{"$f":"IF(OR(E120=0,LEN(F120)<100),0,MATCH(\" \",CONCATENATE(MID(RIGHT(F120,15),{15;14;13;12;11;10;9;8;7;6;5;4;3;2;1},1)),0)-1)","v":0},null,null,null,null," ",null,null,null,null," ",null,null,null,null," ",null,null,null,null,null,null,null,null,null,null,null,"16. Qb8+ Nxb8"]
[121,{"$f":"IFERROR(IF(INDEX(PGN[0],A121-1)=pgnPartida,INDEX(PGN[PGN],A121-1),\"\"),\"\")","v":""},null,"1. e4 e5 2. Nf3 d6 3. d4 Bg4 4. dxe5 Bxf3 5. Qxf3 dxe5 6. Bc4 Nf6 7. Qb3 Qe7 8. Nc3 c6 9. Bg5 b5 10. Nxb5 cxb5 11. Bxb5+ Nbd7 12. O-O-O Rd8 13. Rxd7 Rxd7 14. Rd1 Qe6 15. Bxd7+ Nxd7 16. Qb8+ Nxb8 17. Rd8# 1-0                                                                                                             ",316,"","",{"$f":"IF(OR(E121=0,LEN(F121)<100),0,MATCH(\" \",CONCATENATE(MID(RIGHT(F121,15),{15;14;13;12;11;10;9;8;7;6;5;4;3;2;1},1)),0)-1)","v":0},null,null,null,null," ",null,null,null,null," ",null,null,null,null," ",null,null,null,null,null,null,null,null,null,null,null,"17. Rd8# 1-0"]
[122,{"$f":"IFERROR(IF(INDEX(PGN[0],A122-1)=pgnPartida,INDEX(PGN[PGN],A122-1),\"\"),\"\")","v":""},null,"1. e4 e5 2. Nf3 d6 3. d4 Bg4 4. dxe5 Bxf3 5. Qxf3 dxe5 6. Bc4 Nf6 7. Qb3 Qe7 8. Nc3 c6 9. Bg5 b5 10. Nxb5 cxb5 11. Bxb5+ Nbd7 12. O-O-O Rd8 13. Rxd7 Rxd7 14. Rd1 Qe6 15. Bxd7+ Nxd7 16. Qb8+ Nxb8 17. Rd8# 1-0                                                                                                              ",317,"","",{"$f":"IF(OR(E122=0,LEN(F122)<100),0,MATCH(\" \",CONCATENATE(MID(RIGHT(F122,15),{15;14;13;12;11;10;9;8;7;6;5;4;3;2;1},1)),0)-1)","v":0},null,null,null,null," ",null,null,null,null," ",null,null,null,null," ",null,null,null,null,null,null,null,null,null,null,null,""]
[123,{"$f":"IFERROR(IF(INDEX(PGN[0],A123-1)=pgnPartida,INDEX(PGN[PGN],A123-1),\"\"),\"\")","v":""},null,"1. e4 e5 2. Nf3 d6 3. d4 Bg4 4. dxe5 Bxf3 5. Qxf3 dxe5 6. Bc4 Nf6 7. Qb3 Qe7 8. Nc3 c6 9. Bg5 b5 10. Nxb5 cxb5 11. Bxb5+ Nbd7 12. O-O-O Rd8 13. Rxd7 Rxd7 14. Rd1 Qe6 15. Bxd7+ Nxd7 16. Qb8+ Nxb8 17. Rd8# 1-0                                                                                                               ",318,"","",{"$f":"IF(OR(E123=0,LEN(F123)<100),0,MATCH(\" \",CONCATENATE(MID(RIGHT(F123,15),{15;14;13;12;11;10;9;8;7;6;5;4;3;2;1},1)),0)-1)","v":0},null,null,null,null," ",null,null,null,null," ",null,null,null,null," ",null,null,null,null,null,null,null,null,null,null,null,""]
[124,{"$f":"IFERROR(IF(INDEX(PGN[0],A124-1)=pgnPartida,INDEX(PGN[PGN],A124-1),\"\"),\"\")","v":""},null,"1. e4 e5 2. Nf3 d6 3. d4 Bg4 4. dxe5 Bxf3 5. Qxf3 dxe5 6. Bc4 Nf6 7. Qb3 Qe7 8. Nc3 c6 9. Bg5 b5 10. Nxb5 cxb5 11. Bxb5+ Nbd7 12. O-O-O Rd8 13. Rxd7 Rxd7 14. Rd1 Qe6 15. Bxd7+ Nxd7 16. Qb8+ Nxb8 17. Rd8# 1-0                                                                                                                ",319,"","",{"$f":"IF(OR(E124=0,LEN(F124)<100),0,MATCH(\" \",CONCATENATE(MID(RIGHT(F124,15),{15;14;13;12;11;10;9;8;7;6;5;4;3;2;1},1)),0)-1)","v":0},null,null,null,null," ",null,null,null,null," ",null,null,null,null," ",null,null,null,null,null,null,null,null,null,null,null,""]
[125,{"$f":"IFERROR(IF(INDEX(PGN[0],A125-1)=pgnPartida,INDEX(PGN[PGN],A125-1),\"\"),\"\")","v":""},null,"1. e4 e5 2. Nf3 d6 3. d4 Bg4 4. dxe5 Bxf3 5. Qxf3 dxe5 6. Bc4 Nf6 7. Qb3 Qe7 8. Nc3 c6 9. Bg5 b5 10. Nxb5 cxb5 11. Bxb5+ Nbd7 12. O-O-O Rd8 13. Rxd7 Rxd7 14. Rd1 Qe6 15. Bxd7+ Nxd7 16. Qb8+ Nxb8 17. Rd8# 1-0                                                                                                                 ",320,"","",{"$f":"IF(OR(E125=0,LEN(F125)<100),0,MATCH(\" \",CONCATENATE(MID(RIGHT(F125,15),{15;14;13;12;11;10;9;8;7;6;5;4;3;2;1},1)),0)-1)","v":0},null,null,null,null," ",null,null,null,null," ",null,null,null,null," ",null,null,null,null,null,null,null,null,null,null,null,""]
[126,{"$f":"IFERROR(IF(INDEX(PGN[0],A126-1)=pgnPartida,INDEX(PGN[PGN],A126-1),\"\"),\"\")","v":""},null,"1. e4 e5 2. Nf3 d6 3. d4 Bg4 4. dxe5 Bxf3 5. Qxf3 dxe5 6. Bc4 Nf6 7. Qb3 Qe7 8. Nc3 c6 9. Bg5 b5 10. Nxb5 cxb5 11. Bxb5+ Nbd7 12. O-O-O Rd8 13. Rxd7 Rxd7 14. Rd1 Qe6 15. Bxd7+ Nxd7 16. Qb8+ Nxb8 17. Rd8# 1-0                                                                                                                  ",321,"","",{"$f":"IF(OR(E126=0,LEN(F126)<100),0,MATCH(\" \",CONCATENATE(MID(RIGHT(F126,15),{15;14;13;12;11;10;9;8;7;6;5;4;3;2;1},1)),0)-1)","v":0},null,null,null,null," ",null,null,null,null," ",null,null,null,null," ",null,null,null,null,null,null,null,null,null,null,null,""]
[127,{"$f":"IFERROR(IF(INDEX(PGN[0],A127-1)=pgnPartida,INDEX(PGN[PGN],A127-1),\"\"),\"\")","v":""},null,"1. e4 e5 2. Nf3 d6 3. d4 Bg4 4. dxe5 Bxf3 5. Qxf3 dxe5 6. Bc4 Nf6 7. Qb3 Qe7 8. Nc3 c6 9. Bg5 b5 10. Nxb5 cxb5 11. Bxb5+ Nbd7 12. O-O-O Rd8 13. Rxd7 Rxd7 14. Rd1 Qe6 15. Bxd7+ Nxd7 16. Qb8+ Nxb8 17. Rd8# 1-0                                                                                                                   ",322,"","",{"$f":"IF(OR(E127=0,LEN(F127)<100),0,MATCH(\" \",CONCATENATE(MID(RIGHT(F127,15),{15;14;13;12;11;10;9;8;7;6;5;4;3;2;1},1)),0)-1)","v":0},null,null,null,null," ",null,null,null,null," ",null,null,null,null," ",null,null,null,null,null,null,null,null,null,null,null,""]
[128,{"$f":"IFERROR(IF(INDEX(PGN[0],A128-1)=pgnPartida,INDEX(PGN[PGN],A128-1),\"\"),\"\")","v":""},null,"1. e4 e5 2. Nf3 d6 3. d4 Bg4 4. dxe5 Bxf3 5. Qxf3 dxe5 6. Bc4 Nf6 7. Qb3 Qe7 8. Nc3 c6 9. Bg5 b5 10. Nxb5 cxb5 11. Bxb5+ Nbd7 12. O-O-O Rd8 13. Rxd7 Rxd7 14. Rd1 Qe6 15. Bxd7+ Nxd7 16. Qb8+ Nxb8 17. Rd8# 1-0                                                                                                                    ",323,"","",{"$f":"IF(OR(E128=0,LEN(F128)<100),0,MATCH(\" \",CONCATENATE(MID(RIGHT(F128,15),{15;14;13;12;11;10;9;8;7;6;5;4;3;2;1},1)),0)-1)","v":0},null,null,null,null," ",null,null,null,null," ",null,null,null,null," ",null,null,null,null,null,null,null,null,null,null,null,""]
[129,{"$f":"IFERROR(IF(INDEX(PGN[0],A129-1)=pgnPartida,INDEX(PGN[PGN],A129-1),\"\"),\"\")","v":""},null,"1. e4 e5 2. Nf3 d6 3. d4 Bg4 4. dxe5 Bxf3 5. Qxf3 dxe5 6. Bc4 Nf6 7. Qb3 Qe7 8. Nc3 c6 9. Bg5 b5 10. Nxb5 cxb5 11. Bxb5+ Nbd7 12. O-O-O Rd8 13. Rxd7 Rxd7 14. Rd1 Qe6 15. Bxd7+ Nxd7 16. Qb8+ Nxb8 17. Rd8# 1-0                                                                                                                     ",324,"","",{"$f":"IF(OR(E129=0,LEN(F129)<100),0,MATCH(\" \",CONCATENATE(MID(RIGHT(F129,15),{15;14;13;12;11;10;9;8;7;6;5;4;3;2;1},1)),0)-1)","v":0},null,null,null,null," ",null,null,null,null," ",null,null,null,null," ",null,null,null,null,null,null,null,null,null,null,null,""]
[130,{"$f":"IFERROR(IF(INDEX(PGN[0],A130-1)=pgnPartida,INDEX(PGN[PGN],A130-1),\"\"),\"\")","v":""},null,"1. e4 e5 2. Nf3 d6 3. d4 Bg4 4. dxe5 Bxf3 5. Qxf3 dxe5 6. Bc4 Nf6 7. Qb3 Qe7 8. Nc3 c6 9. Bg5 b5 10. Nxb5 cxb5 11. Bxb5+ Nbd7 12. O-O-O Rd8 13. Rxd7 Rxd7 14. Rd1 Qe6 15. Bxd7+ Nxd7 16. Qb8+ Nxb8 17. Rd8# 1-0                                                                                                                      ",325,{"$f":"IFERROR(MID($D$153,E130,100),\"\")","v":""},"",{"$f":"IF(OR(E130=0,LEN(F130)<100),0,MATCH(\" \",CONCATENATE(MID(RIGHT(F130,15),{15;14;13;12;11;10;9;8;7;6;5;4;3;2;1},1)),0)-1)","v":0},null,null,null,null," ",null,null,null,null," ",null,null,null,null," ",null,null,null,null,null,null,null,null,null,null,null,""]
[131,{"$f":"IFERROR(IF(INDEX(PGN[0],A131-1)=pgnPartida,INDEX(PGN[PGN],A131-1),\"\"),\"\")","v":""},null,"1. e4 e5 2. Nf3 d6 3. d4 Bg4 4. dxe5 Bxf3 5. Qxf3 dxe5 6. Bc4 Nf6 7. Qb3 Qe7 8. Nc3 c6 9. Bg5 b5 10. Nxb5 cxb5 11. Bxb5+ Nbd7 12. O-O-O Rd8 13. Rxd7 Rxd7 14. Rd1 Qe6 15. Bxd7+ Nxd7 16. Qb8+ Nxb8 17. Rd8# 1-0                                                                                                                       ",{"$f":"IF(D131=\"\",0,E130+LEN(G130)+IF(G130=\"\",1,0))","v":326},"","",{"$f":"IF(OR(E131=0,LEN(F131)<100),0,MATCH(\" \",CONCATENATE(MID(RIGHT(F131,15),{15;14;13;12;11;10;9;8;7;6;5;4;3;2;1},1)),0)-1)","v":0},null,null,null,null," ",null,null,null,null," ",null,null,null,null," ",null,null,null,null,null,null,null,null,null,null,null,""]
[132,{"$f":"IFERROR(IF(INDEX(PGN[0],A132-1)=pgnPartida,INDEX(PGN[PGN],A132-1),\"\"),\"\")","v":""},null,"1. e4 e5 2. Nf3 d6 3. d4 Bg4 4. dxe5 Bxf3 5. Qxf3 dxe5 6. Bc4 Nf6 7. Qb3 Qe7 8. Nc3 c6 9. Bg5 b5 10. Nxb5 cxb5 11. Bxb5+ Nbd7 12. O-O-O Rd8 13. Rxd7 Rxd7 14. Rd1 Qe6 15. Bxd7+ Nxd7 16. Qb8+ Nxb8 17. Rd8# 1-0                                                                                                                        ",327,"","",{"$f":"IF(OR(E132=0,LEN(F132)<100),0,MATCH(\" \",CONCATENATE(MID(RIGHT(F132,15),{15;14;13;12;11;10;9;8;7;6;5;4;3;2;1},1)),0)-1)","v":0},null,null,null,null," ",null,null,null,null," ",null,null,null,null," ",null,null,null,null,null,null,null,null,null,null,null,""]
[133,{"$f":"IFERROR(IF(INDEX(PGN[0],A133-1)=pgnPartida,INDEX(PGN[PGN],A133-1),\"\"),\"\")","v":""},null,"1. e4 e5 2. Nf3 d6 3. d4 Bg4 4. dxe5 Bxf3 5. Qxf3 dxe5 6. Bc4 Nf6 7. Qb3 Qe7 8. Nc3 c6 9. Bg5 b5 10. Nxb5 cxb5 11. Bxb5+ Nbd7 12. O-O-O Rd8 13. Rxd7 Rxd7 14. Rd1 Qe6 15. Bxd7+ Nxd7 16. Qb8+ Nxb8 17. Rd8# 1-0                                                                                                                         ",328,"","",{"$f":"IF(OR(E133=0,LEN(F133)<100),0,MATCH(\" \",CONCATENATE(MID(RIGHT(F133,15),{15;14;13;12;11;10;9;8;7;6;5;4;3;2;1},1)),0)-1)","v":0},null,null,null,null," ",null,null,null,null," ",null,null,null,null," ",null,null,null,null,null,null,null,null,null,null,null,""]
[134,{"$f":"IFERROR(IF(INDEX(PGN[0],A134-1)=pgnPartida,INDEX(PGN[PGN],A134-1),\"\"),\"\")","v":""},null,"1. e4 e5 2. Nf3 d6 3. d4 Bg4 4. dxe5 Bxf3 5. Qxf3 dxe5 6. Bc4 Nf6 7. Qb3 Qe7 8. Nc3 c6 9. Bg5 b5 10. Nxb5 cxb5 11. Bxb5+ Nbd7 12. O-O-O Rd8 13. Rxd7 Rxd7 14. Rd1 Qe6 15. Bxd7+ Nxd7 16. Qb8+ Nxb8 17. Rd8# 1-0                                                                                                                          ",329,"","",{"$f":"IF(OR(E134=0,LEN(F134)<100),0,MATCH(\" \",CONCATENATE(MID(RIGHT(F134,15),{15;14;13;12;11;10;9;8;7;6;5;4;3;2;1},1)),0)-1)","v":0},null,null,null,null," ",null,null,null,null," ",null,null,null,null," ",null,null,null,null,null,null,null,null,null,null,null,""]
[135,{"$f":"IFERROR(IF(INDEX(PGN[0],A135-1)=pgnPartida,INDEX(PGN[PGN],A135-1),\"\"),\"\")","v":""},null,"1. e4 e5 2. Nf3 d6 3. d4 Bg4 4. dxe5 Bxf3 5. Qxf3 dxe5 6. Bc4 Nf6 7. Qb3 Qe7 8. Nc3 c6 9. Bg5 b5 10. Nxb5 cxb5 11. Bxb5+ Nbd7 12. O-O-O Rd8 13. Rxd7 Rxd7 14. Rd1 Qe6 15. Bxd7+ Nxd7 16. Qb8+ Nxb8 17. Rd8# 1-0                                                                                                                           ",330,"","",{"$f":"IF(OR(E135=0,LEN(F135)<100),0,MATCH(\" \",CONCATENATE(MID(RIGHT(F135,15),{15;14;13;12;11;10;9;8;7;6;5;4;3;2;1},1)),0)-1)","v":0},null,null,null,null," ",null,null,null,null," ",null,null,null,null," ",null,null,null,null,null,null,null,null,null,null,null,""]
[136,{"$f":"IFERROR(IF(INDEX(PGN[0],A136-1)=pgnPartida,INDEX(PGN[PGN],A136-1),\"\"),\"\")","v":""},null,"1. e4 e5 2. Nf3 d6 3. d4 Bg4 4. dxe5 Bxf3 5. Qxf3 dxe5 6. Bc4 Nf6 7. Qb3 Qe7 8. Nc3 c6 9. Bg5 b5 10. Nxb5 cxb5 11. Bxb5+ Nbd7 12. O-O-O Rd8 13. Rxd7 Rxd7 14. Rd1 Qe6 15. Bxd7+ Nxd7 16. Qb8+ Nxb8 17. Rd8# 1-0                                                                                                                            ",331,"","",{"$f":"IF(OR(E136=0,LEN(F136)<100),0,MATCH(\" \",CONCATENATE(MID(RIGHT(F136,15),{15;14;13;12;11;10;9;8;7;6;5;4;3;2;1},1)),0)-1)","v":0},null,null,null,null," ",null,null,null,null," ",null,null,null,null," ",null,null,null,null,null,null,null,null,null,null,null,""]
[137,{"$f":"IFERROR(IF(INDEX(PGN[0],A137-1)=pgnPartida,INDEX(PGN[PGN],A137-1),\"\"),\"\")","v":""},null,"1. e4 e5 2. Nf3 d6 3. d4 Bg4 4. dxe5 Bxf3 5. Qxf3 dxe5 6. Bc4 Nf6 7. Qb3 Qe7 8. Nc3 c6 9. Bg5 b5 10. Nxb5 cxb5 11. Bxb5+ Nbd7 12. O-O-O Rd8 13. Rxd7 Rxd7 14. Rd1 Qe6 15. Bxd7+ Nxd7 16. Qb8+ Nxb8 17. Rd8# 1-0                                                                                                                             ",332,"","",{"$f":"IF(OR(E137=0,LEN(F137)<100),0,MATCH(\" \",CONCATENATE(MID(RIGHT(F137,15),{15;14;13;12;11;10;9;8;7;6;5;4;3;2;1},1)),0)-1)","v":0},null,null,null,null," ",null,null,null,null," ",null,null,null,null," ",null,null,null,null,null,null,null,null,null,null,null,""]
[138,{"$f":"IFERROR(IF(INDEX(PGN[0],A138-1)=pgnPartida,INDEX(PGN[PGN],A138-1),\"\"),\"\")","v":""},null,"1. e4 e5 2. Nf3 d6 3. d4 Bg4 4. dxe5 Bxf3 5. Qxf3 dxe5 6. Bc4 Nf6 7. Qb3 Qe7 8. Nc3 c6 9. Bg5 b5 10. Nxb5 cxb5 11. Bxb5+ Nbd7 12. O-O-O Rd8 13. Rxd7 Rxd7 14. Rd1 Qe6 15. Bxd7+ Nxd7 16. Qb8+ Nxb8 17. Rd8# 1-0                                                                                                                              ",333,"","",{"$f":"IF(OR(E138=0,LEN(F138)<100),0,MATCH(\" \",CONCATENATE(MID(RIGHT(F138,15),{15;14;13;12;11;10;9;8;7;6;5;4;3;2;1},1)),0)-1)","v":0},null,null,null,null," ",null,null,null,null," ",null,null,null,null," ",null,null,null,null,null,null,null,null,null,null,null,""]
[139,{"$f":"IFERROR(IF(INDEX(PGN[0],A139-1)=pgnPartida,INDEX(PGN[PGN],A139-1),\"\"),\"\")","v":""},null,"1. e4 e5 2. Nf3 d6 3. d4 Bg4 4. dxe5 Bxf3 5. Qxf3 dxe5 6. Bc4 Nf6 7. Qb3 Qe7 8. Nc3 c6 9. Bg5 b5 10. Nxb5 cxb5 11. Bxb5+ Nbd7 12. O-O-O Rd8 13. Rxd7 Rxd7 14. Rd1 Qe6 15. Bxd7+ Nxd7 16. Qb8+ Nxb8 17. Rd8# 1-0                                                                                                                               ",334,"","",{"$f":"IF(OR(E139=0,LEN(F139)<100),0,MATCH(\" \",CONCATENATE(MID(RIGHT(F139,15),{15;14;13;12;11;10;9;8;7;6;5;4;3;2;1},1)),0)-1)","v":0},null,null,null,null," ",null,null,null,null," ",null,null,null,null," ",null,null,null,null,null,null,null,null,null,null,null,""]
[140,{"$f":"IFERROR(IF(INDEX(PGN[0],A140-1)=pgnPartida,INDEX(PGN[PGN],A140-1),\"\"),\"\")","v":""},null,"1. e4 e5 2. Nf3 d6 3. d4 Bg4 4. dxe5 Bxf3 5. Qxf3 dxe5 6. Bc4 Nf6 7. Qb3 Qe7 8. Nc3 c6 9. Bg5 b5 10. Nxb5 cxb5 11. Bxb5+ Nbd7 12. O-O-O Rd8 13. Rxd7 Rxd7 14. Rd1 Qe6 15. Bxd7+ Nxd7 16. Qb8+ Nxb8 17. Rd8# 1-0                                                                                                                                ",335,"","",{"$f":"IF(OR(E140=0,LEN(F140)<100),0,MATCH(\" \",CONCATENATE(MID(RIGHT(F140,15),{15;14;13;12;11;10;9;8;7;6;5;4;3;2;1},1)),0)-1)","v":0},null,null,null,null," ",null,null,null,null," ",null,null,null,null," ",null,null,null,null,null,null,null,null,null,null,null,""]
[141,{"$f":"IFERROR(IF(INDEX(PGN[0],A141-1)=pgnPartida,INDEX(PGN[PGN],A141-1),\"\"),\"\")","v":""},null,"1. e4 e5 2. Nf3 d6 3. d4 Bg4 4. dxe5 Bxf3 5. Qxf3 dxe5 6. Bc4 Nf6 7. Qb3 Qe7 8. Nc3 c6 9. Bg5 b5 10. Nxb5 cxb5 11. Bxb5+ Nbd7 12. O-O-O Rd8 13. Rxd7 Rxd7 14. Rd1 Qe6 15. Bxd7+ Nxd7 16. Qb8+ Nxb8 17. Rd8# 1-0                                                                                                                                 ",336,"","",{"$f":"IF(OR(E141=0,LEN(F141)<100),0,MATCH(\" \",CONCATENATE(MID(RIGHT(F141,15),{15;14;13;12;11;10;9;8;7;6;5;4;3;2;1},1)),0)-1)","v":0},null,null,null,null," ",null,null,null,null," ",null,null,null,null," ",null,null,null,null,null,null,null,null,null,null,null,""]
[142,{"$f":"IFERROR(IF(INDEX(PGN[0],A142-1)=pgnPartida,INDEX(PGN[PGN],A142-1),\"\"),\"\")","v":""},null,"1. e4 e5 2. Nf3 d6 3. d4 Bg4 4. dxe5 Bxf3 5. Qxf3 dxe5 6. Bc4 Nf6 7. Qb3 Qe7 8. Nc3 c6 9. Bg5 b5 10. Nxb5 cxb5 11. Bxb5+ Nbd7 12. O-O-O Rd8 13. Rxd7 Rxd7 14. Rd1 Qe6 15. Bxd7+ Nxd7 16. Qb8+ Nxb8 17. Rd8# 1-0                                                                                                                                  ",337,"","",{"$f":"IF(OR(E142=0,LEN(F142)<100),0,MATCH(\" \",CONCATENATE(MID(RIGHT(F142,15),{15;14;13;12;11;10;9;8;7;6;5;4;3;2;1},1)),0)-1)","v":0},null,null,null,null," ",null,null,null,null," ",null,null,null,null," ",null,null,null,null,null,null,null,null,null,null,null,""]
[143,{"$f":"IFERROR(IF(INDEX(PGN[0],A143-1)=pgnPartida,INDEX(PGN[PGN],A143-1),\"\"),\"\")","v":""},null,"1. e4 e5 2. Nf3 d6 3. d4 Bg4 4. dxe5 Bxf3 5. Qxf3 dxe5 6. Bc4 Nf6 7. Qb3 Qe7 8. Nc3 c6 9. Bg5 b5 10. Nxb5 cxb5 11. Bxb5+ Nbd7 12. O-O-O Rd8 13. Rxd7 Rxd7 14. Rd1 Qe6 15. Bxd7+ Nxd7 16. Qb8+ Nxb8 17. Rd8# 1-0                                                                                                                                   ",338,"","",{"$f":"IF(OR(E143=0,LEN(F143)<100),0,MATCH(\" \",CONCATENATE(MID(RIGHT(F143,15),{15;14;13;12;11;10;9;8;7;6;5;4;3;2;1},1)),0)-1)","v":0},null,null,null,null," ",null,null,null,null," ",null,null,null,null," ",null,null,null,null,null,null,null,null,null,null,null,""]
[144,{"$f":"IFERROR(IF(INDEX(PGN[0],A144-1)=pgnPartida,INDEX(PGN[PGN],A144-1),\"\"),\"\")","v":""},null,"1. e4 e5 2. Nf3 d6 3. d4 Bg4 4. dxe5 Bxf3 5. Qxf3 dxe5 6. Bc4 Nf6 7. Qb3 Qe7 8. Nc3 c6 9. Bg5 b5 10. Nxb5 cxb5 11. Bxb5+ Nbd7 12. O-O-O Rd8 13. Rxd7 Rxd7 14. Rd1 Qe6 15. Bxd7+ Nxd7 16. Qb8+ Nxb8 17. Rd8# 1-0                                                                                                                                    ",339,"","",{"$f":"IF(OR(E144=0,LEN(F144)<100),0,MATCH(\" \",CONCATENATE(MID(RIGHT(F144,15),{15;14;13;12;11;10;9;8;7;6;5;4;3;2;1},1)),0)-1)","v":0},null,null,null,null," ",null,null,null,null," ",null,null,null,null," ",null,null,null,null,null,null,null,null,null,null,null,""]
[145,{"$f":"IFERROR(IF(INDEX(PGN[0],A145-1)=pgnPartida,INDEX(PGN[PGN],A145-1),\"\"),\"\")","v":""},null,"1. e4 e5 2. Nf3 d6 3. d4 Bg4 4. dxe5 Bxf3 5. Qxf3 dxe5 6. Bc4 Nf6 7. Qb3 Qe7 8. Nc3 c6 9. Bg5 b5 10. Nxb5 cxb5 11. Bxb5+ Nbd7 12. O-O-O Rd8 13. Rxd7 Rxd7 14. Rd1 Qe6 15. Bxd7+ Nxd7 16. Qb8+ Nxb8 17. Rd8# 1-0                                                                                                                                     ",340,"",{"$f":"IF(E145=0,B145,IFERROR(MID($D$153,E145,MIN(100,LEN(F145))-H145),\"\"))","v":""},{"$f":"IF(OR(E145=0,LEN(F145)<100),0,MATCH(\" \",CONCATENATE(MID(RIGHT(F145,15),{15;14;13;12;11;10;9;8;7;6;5;4;3;2;1},1)),0)-1)","v":0},null,null,null,null," ",null,null,null,null," ",null,null,null,null," ",null,null,null,null,null,null,null,null,null,null,null,""]
[146,{"$f":"IFERROR(IF(INDEX(PGN[0],A146-1)=pgnPartida,INDEX(PGN[PGN],A146-1),\"\"),\"\")","v":""},null,"1. e4 e5 2. Nf3 d6 3. d4 Bg4 4. dxe5 Bxf3 5. Qxf3 dxe5 6. Bc4 Nf6 7. Qb3 Qe7 8. Nc3 c6 9. Bg5 b5 10. Nxb5 cxb5 11. Bxb5+ Nbd7 12. O-O-O Rd8 13. Rxd7 Rxd7 14. Rd1 Qe6 15. Bxd7+ Nxd7 16. Qb8+ Nxb8 17. Rd8# 1-0                                                                                                                                      ",341,"","",{"$f":"IF(OR(E146=0,LEN(F146)<100),0,MATCH(\" \",CONCATENATE(MID(RIGHT(F146,15),{15;14;13;12;11;10;9;8;7;6;5;4;3;2;1},1)),0)-1)","v":0},null,null,null,null," ",null,null,null,null," ",null,null,null,null," ",null,null,null,null,null,null,null,null,null,null,null,""]
[147,{"$f":"IFERROR(IF(INDEX(PGN[0],A147-1)=pgnPartida,INDEX(PGN[PGN],A147-1),\"\"),\"\")","v":""},null,"1. e4 e5 2. Nf3 d6 3. d4 Bg4 4. dxe5 Bxf3 5. Qxf3 dxe5 6. Bc4 Nf6 7. Qb3 Qe7 8. Nc3 c6 9. Bg5 b5 10. Nxb5 cxb5 11. Bxb5+ Nbd7 12. O-O-O Rd8 13. Rxd7 Rxd7 14. Rd1 Qe6 15. Bxd7+ Nxd7 16. Qb8+ Nxb8 17. Rd8# 1-0                                                                                                                                       ",342,"","",{"$f":"IF(OR(E147=0,LEN(F147)<100),0,MATCH(\" \",CONCATENATE(MID(RIGHT(F147,15),{15;14;13;12;11;10;9;8;7;6;5;4;3;2;1},1)),0)-1)","v":0},null,null,null,null," ",null,null,null,null," ",null,null,null,null," ",null,null,null,null,null,null,null,null,null,null,null,""]
[148,{"$f":"IFERROR(IF(INDEX(PGN[0],A148-1)=pgnPartida,INDEX(PGN[PGN],A148-1),\"\"),\"\")","v":""},null,"1. e4 e5 2. Nf3 d6 3. d4 Bg4 4. dxe5 Bxf3 5. Qxf3 dxe5 6. Bc4 Nf6 7. Qb3 Qe7 8. Nc3 c6 9. Bg5 b5 10. Nxb5 cxb5 11. Bxb5+ Nbd7 12. O-O-O Rd8 13. Rxd7 Rxd7 14. Rd1 Qe6 15. Bxd7+ Nxd7 16. Qb8+ Nxb8 17. Rd8# 1-0                                                                                                                                        ",343,"","",{"$f":"IF(OR(E148=0,LEN(F148)<100),0,MATCH(\" \",CONCATENATE(MID(RIGHT(F148,15),{15;14;13;12;11;10;9;8;7;6;5;4;3;2;1},1)),0)-1)","v":0},null,null,null,null," ",null,null,null,null," ",null,null,null,null," ",null,null,null,null,null,null,null,null,null,null,null,""]
[149,{"$f":"IFERROR(IF(INDEX(PGN[0],A149-1)=pgnPartida,INDEX(PGN[PGN],A149-1),\"\"),\"\")","v":""},null,{"$f":"D148&\" \"&B149","v":"1. e4 e5 2. Nf3 d6 3. d4 Bg4 4. dxe5 Bxf3 5. Qxf3 dxe5 6. Bc4 Nf6 7. Qb3 Qe7 8. Nc3 c6 9. Bg5 b5 10. Nxb5 cxb5 11. Bxb5+ Nbd7 12. O-O-O Rd8 13. Rxd7 Rxd7 14. Rd1 Qe6 15. Bxd7+ Nxd7 16. Qb8+ Nxb8 17. Rd8# 1-0                                                                                                                                         "},344,"","",{"$f":"IF(OR(E149=0,LEN(F149)<100),0,MATCH(\" \",CONCATENATE(MID(RIGHT(F149,15),{15;14;13;12;11;10;9;8;7;6;5;4;3;2;1},1)),0)-1)","v":0},null,null,null,null," ",null,null,null,null," ",null,null,null,null," ",null,null,null,null,null,null,null,null,null,null,null,""]
[150,{"$f":"IFERROR(IF(INDEX(PGN[0],A150-1)=pgnPartida,INDEX(PGN[PGN],A150-1),\"\"),\"\")","v":""},null,"1. e4 e5 2. Nf3 d6 3. d4 Bg4 4. dxe5 Bxf3 5. Qxf3 dxe5 6. Bc4 Nf6 7. Qb3 Qe7 8. Nc3 c6 9. Bg5 b5 10. Nxb5 cxb5 11. Bxb5+ Nbd7 12. O-O-O Rd8 13. Rxd7 Rxd7 14. Rd1 Qe6 15. Bxd7+ Nxd7 16. Qb8+ Nxb8 17. Rd8# 1-0                                                                                                                                          ",345,"","",{"$f":"IF(OR(E150=0,LEN(F150)<100),0,MATCH(\" \",CONCATENATE(MID(RIGHT(F150,15),{15;14;13;12;11;10;9;8;7;6;5;4;3;2;1},1)),0)-1)","v":0},null,null,null,null," ",null,null,null,null," ",null,null,null,null," ",null,null,null,null,null,null,null,null,null,null,null,""]
[null,null,null,null,null,null,null,null,null,null,null,null,null,null,null,null,null,null,null,null,null,null,null,null,null,null,null,null,null,null,null,null,null,null,""]
["Archivo:","Paul Morphy_vs_Duke of Brunswick and Count Isouard_1858.__.__.pgn",null,"PGN original",null,null,null,null,null,null,null,"PGN sin comentarios",null,null,null,null,"PGN sin variantes",null,null,null,null,"PGN transformado",null,null,null,null,null,null,null,null,null,null,null,null,""]
["Ruta:","C:\\Users\\Pedro Wave\\Downloads\\Desarrollo\\Ajedrez\\PGN\\Paul Morphy_vs_Duke of Brunswick and Count Isouard_1858.__.__.pgn",null,{"$f":"CLEAN(TRIM(SUBSTITUTE(SUBSTITUTE(IF(MID($D$150,3,1)=\" \",$D$150,SUBSTITUTE($D$150,\".\",\". \")),CHAR(10),\" \"),CHAR(160),CHAR(32))))","v":"1. e4 e5 2. Nf3 d6 3. d4 Bg4 4. dxe5 Bxf3 5. Qxf3 dxe5 6. Bc4 Nf6 7. Qb3 Qe7 8. Nc3 c6 9. Bg5 b5 10. Nxb5 cxb5 11. Bxb5+ Nbd7 12. O-O-O Rd8 13. Rxd7 Rxd7 14. Rd1 Qe6 15. Bxd7+ Nxd7 16. Qb8+ Nxb8 17. Rd8# 1-0"}," ",null,null,null,null,null,null,{"$f":"$I$75","v":"1. e4 e5 2. Nf3 d6 3. d4 Bg4 4. dxe5 Bxf3 5. Qxf3 dxe5 6. Bc4 Nf6 7. Qb3 Qe7 8. Nc3 c6 9. Bg5 b5 10. Nxb5 cxb5 11. Bxb5+ Nbd7 12. O-O-O Rd8 13. Rxd7 Rxd7 14. Rd1 Qe6 15. Bxd7+ Nxd7 16. Qb8+ Nxb8 17. Rd8# 1-0"}," ",null,null,null,{"$f":"$N$50","v":"1. e4 e5 2. Nf3 d6 3. d4 Bg4 4. dxe5 Bxf3 5. Qxf3 dxe5 6. Bc4 Nf6 7. Qb3 Qe7 8. Nc3 c6 9. Bg5 b5 10. Nxb5 cxb5 11. Bxb5+ Nbd7 12. O-O-O Rd8 13. Rxd7 Rxd7 14. Rd1 Qe6 15. Bxd7+ Nxd7 16. Qb8+ Nxb8 17. Rd8# 1-0"}," ",null,null,null,{"$f":"TRIM(SUBSTITUTE(SUBSTITUTE(SUBSTITUTE(SUBSTITUTE(SUBSTITUTE($S$50,\"{\",\"\"),\"}\",\"\"),\"(\",\"\"),\")\",\"\"),\"  \",\" \"))","v":"1. e4 e5 2. Nf3 d6 3. d4 Bg4 4. dxe5 Bxf3 5. Qxf3 dxe5 6. Bc4 Nf6 7. Qb3 Qe7 8. Nc3 c6 9. Bg5 b5 10. Nxb5 cxb5 11. Bxb5+ Nbd7 12. O-O-O Rd8 13. Rxd7 Rxd7 14. Rd1 Qe6 15. Bxd7+ Nxd7 16. Qb8+ Nxb8 17. Rd8# 1-0"}," ",null,null,null,null,null,null,null,null,null,null,null,""]
[null,null,null,null,null,null,null,null,null,null,null,null,null,null,null,null,null,null,null,null,null,null,null,null,null,null,null,null,null,null,null,null,null,null,""]
[null,null,null,null,null,null,null,null,null,null,null,null,null,null,null,null,null,null,null,null,null,null,null,null,null,null,null,null,null,null,null,null,null,null,""]
[null,null,null,null,null,null,null,null,null,null,null,null,null,null,null,null,null,null,null,null,null,null,null,null,null,null,null,null,null,null,null,null,null,null,""]
[null,null,null,null,null,null,null,null,null,null,null,null,null,null,null,null,null,null,null,null,null,null,null,null,null,null,null,null,null,null,null,null,null,null,""]
[null,null,null,null,null,null,null,null,null,null,null,null,null,null,null,null,null,null,null,null,null,null,null,null,null,null,null,null,null,null,null,null,null,null,""]
[null,null,null,null,null,null,null,null,null,null,null,null,null,null,null,null,null,null,null,null,null,null,null,null,null,null,null,null,null,null,null,null,null,null,""]
[null,null,null,null,null,null,null,null,null,null,null,null,null,null,null,null,null,null,null,null,null,null,null,null,null,null,null,null,null,null,null,null,null,null,""]
[null,null,null,null,null,null,null,null,null,null,null,null,null,null,null,null,null,null,null,null,null,null,null,null,null,null,null,null,null,null,null,null,null,null,""]
[null,null,null,null,null,null,null,null,null,null,null,null,null,null,null,null,null,null,null,null,null,null,null,null,null,null,null,null,null,null,null,null,null,null,""]
[null,null,null,null,null,null,null,null,null,null,null,null,null,null,null,null,null,null,null,null,null,null,null,null,null,null,null,null,null,null,null,null,null,null,""]
[null,null,null,null,null,null,null,null,null,null,null,null,null,null,null,null,null,null,null,null,null,null,null,null,null,null,null,null,null,null,null,null,null,null,""]
[null,null,null,null,null,null,null,null,null,null,null,null,null,null,null,null,null,null,null,null,null,null,null,null,null,null,null,null,null,null,null,null,null,null,""]
[null,null,null,null,null,null,null,null,null,null,null,null,null,null,null,null,null,null,null,null,null,null,null,null,null,null,null,null,null,null,null,null,null,null,""]
[null,null,null,null,null,null,null,null,null,null,null,null,null,null,null,null,null,null,null,null,null,null,null,null,null,null,null,null,null,null,null,null,null,null,""]
[null,null,null,null,null,null,null,null,null,null,null,null,null,null,null,null,null,null,null,null,null,null,null,null,null,null,null,null,null,null,null,null,null,null,""]
[null,null,null,null,null,null,null,null,null,null,null,null,null,null,null,null,null,null,null,null,null,null,null,null,null,null,null,null,null,null,null,null,null,null,""]
[null,null,null,null,null,null,null,null,null,null,null,null,null,null,null,null,null,null,null,null,null,null,null,null,null,null,null,null,null,null,null,null,null,null,""]
[null,null,null,null,null,null,null,null,null,null,null,null,null,null,null,null,null,null,null,null,null,null,null,null,null,null,null,null,null,null,null,null,null,null,""]
[null,null,null,null,null,null,null,null,null,null,null,null,null,null,null,null,null,null,null,null,null,null,null,null,null,null,null,null,null,null,null,null,null,null,""]
[null,null,null,null,null,null,null,null,null,null,null,null,null,null,null,null,null,null,null,null,null,null,null,null,null,null,null,null,null,null,null,null,null,null,""]
[null,null,null,null,null,null,null,null,null,null,null,null,null,null,null,null,null,null,null,null,null,null,null,null,null,null,null,null,null,null,null,null,null,null,""]
[null,null,null,null,null,null,null,null,null,null,null,null,null,null,null,null,null,null,null,null,null,null,null,null,null,null,null,null,null,null,null,null,null,null,""]
[null,null,null,null,null,null,null,null,null,null,null,null,null,null,null,null,null,null,null,null,null,null,null,null,null,null,null,null,null,null,null,null,null,null,""]
[null,null,null,null,null,null,null,null,null,null,null,null,null,null,null,null,null,null,null,null,null,null,null,null,null,null,null,null,null,null,null,null,null,null,""]
[null,null,null,null,null,null,null,null,null,null,null,null,null,null,null,null,null,null,null,null,null,null,null,null,null,null,null,null,null,null,null,null,null,null,""]
[null,null,null,null,null,null,null,null,null,null,null,null,null,null,null,null,null,null,null,null,null,null,null,null,null,null,null,null,null,null,null,null,null,null,""]
[null,null,null,null,null,null,null,null,null,null,null,null,null,null,null,null,null,null,null,null,null,null,null,null,null,null,null,null,null,null,null,null,null,null,""]
[null,null,null,null,null,null,null,null,null,null,null,null,null,null,null,null,null,null,null,null,null,null,null,null,null,null,null,null,null,null,null,null,null,null,""]
[null,null,null,null,null,null,null,null,null,null,null,null,null,null,null,null,null,null,null,null,null,null,null,null,null,null,null,null,null,null,null,null,null,null,""]
[null,null,null,null,null,null,null,null,null,null,null,null,null,null,null,null,null,null,null,null,null,null,null,null,null,null,null,null,null,null,null,null,null,null,""]
[null,null,null,null,null,null,null,null,null,null,null,null,null,null,null,null,null,null,null,null,null,null,null,null,null,null,null,null,null,null,null,null,null,null,""]
[null,null,null,null,null,null,null,null,null,null,null,null,null,null,null,null,null,null,null,null,null,null,null,null,null,null,null,null,null,null,null,null,null,null,""]
[null,null,null,null,null,null,null,null,null,null,null,null,null,null,null,null,null,null,null,null,null,null,null,null,null,null,null,null,null,null,null,null,null,null,""]
[null,null,null,null,null,null,null,null,null,null,null,null,null,null,null,null,null,null,null,null,null,null,null,null,null,null,null,null,null,null,null,null,null,null,""]
[null,null,null,null,null,null,null,null,null,null,null,null,null,null,null,null,null,null,null,null,null,null,null,null,null,null,null,null,null,null,null,null,null,null,""]
[null,null,null,null,null,null,null,null,null,null,null,null,null,null,null,null,null,null,null,null,null,null,null,null,null,null,null,null,null,null,null,null,null,null,""]
[null,null,null,null,null,null,null,null,null,null,null,null,null,null,null,null,null,null,null,null,null,null,null,null,null,null,null,null,null,null,null,null,null,null,""]
[null,null,null,null,null,null,null,null,null,null,null,null,null,null,null,null,null,null,null,null,null,null,null,null,null,null,null,null,null,null,null,null,null,null,""]
[null,null,null,null,null,null,null,null,null,null,null,null,null,null,null,null,null,null,null,null,null,null,null,null,null,null,null,null,null,null,null,null,null,null,""]
[null,null,null,null,null,null,null,null,null,null,null,null,null,null,null,null,null,null,null,null,null,null,null,null,null,null,null,null,null,null,null,null,null,null,""]
[null,null,null,null,null,null,null,null,null,null,null,null,null,null,null,null,null,null,null,null,null,null,null,null,null,null,null,null,null,null,null,null,null,null,""]
[null,null,null,null,null,null,null,null,null,null,null,null,null,null,null,null,null,null,null,null,null,null,null,null,null,null,null,null,null,null,null,null,null,null,""]
[null,null,null,null,null,null,null,null,null,null,null,null,null,null,null,null,null,null,null,null,null,null,null,null,null,null,null,null,null,null,null,null,null,null,""]
[null,null,null,null,null,null,null,null,null,null,null,null,null,null,null,null,null,null,null,null,null,null,null,null,null,null,null,null,null,null,null,null,null,null,""]
[null,null,null,null,null,null,null,null,null,null,null,null,null,null,null,null,null,null,null,null,null,null,null,null,null,null,null,null,null,null,null,null,null,null,""]
[null,null,null,null,null,null,null,null,null,null,null,null,null,null,null,null,null,null,null,null,null,null,null,null,null,null,null,null,null,null,null,null,null,null,""]
[null,null,null,null,null,null,null,null,null,null,null,null,null,null,null,null,null,null,null,null,null,null,null,null,null,null,null,null,null,null,null,null,null,null,""]
[null,null,null,null,null,null,null,null,null,null,null,null,null,null,null,null,null,null,null,null,null,null,null,null,null,null,null,null,null,null,null,null,null,null,""]
[null,null,null,null,null,null,null,null,null,null,null,null,null,null,null,null,null,null,null,null,null,null,null,null,null,null,null,null,null,null,null,null,null,null,""]
[null,null,null,null,null,null,null,null,null,null,null,null,null,null,null,null,null,null,null,null,null,null,null,null,null,null,null,null,null,null,null,null,null,null,""]
[null,null,null,null,null,null,null,null,null,null,null,null,null,null,null,null,null,null,null,null,null,null,null,null,null,null,null,null,null,null,null,null,null,null,""]
[null,null,null,null,null,null,null,null,null,null,null,null,null,null,null,null,null,null,null,null,null,null,null,null,null,null,null,null,null,null,null,null,null,null,""]

{"sheet":"PGN","index":2,"n_rows":12,"n_cols":3,"rows_kept":12,"cut":false,"hidden":true,"merged":[]}
["PGN","Event","0"]
["[Event \"Paul Morphy - Duke Karl Count Isouard (1858.??.??)\"]",1,{"$f":"C1+B2","v":1}]
["[Site \"Paris (France)\"]",0,{"$f":"C2+B3","v":1}]
["[Date \"1858.??.??\"]",0,1]
["[Round \"?\"]",0,1]
["[White \"Paul Morphy\"]",0,1]
["[Black \"Duke of Brunswick and Count Isouard\"]",0,1]
["[Result \"1-0\"]",0,1]
["",0,1]
["1. e4 e5 2. Nf3 d6 3. d4 Bg4 4. dxe5 Bxf3 5. Qxf3 dxe5 6. Bc4 Nf6 7. Qb3 Qe7 8.",0,1]
["Nc3 c6 9. Bg5 b5 10. Nxb5 cxb5 11. Bxb5+ Nbd7 12. O-O-O Rd8 13. Rxd7 Rxd7 14.",0,1]
["Rd1 Qe6 15. Bxd7+ Nxd7 16. Qb8+ Nxb8 17. Rd8# 1-0",0,1]

{"sheet":"Archivo","index":3,"n_rows":0,"n_cols":0,"rows_kept":0,"cut":false,"hidden":false,"merged":[]}

{"sheet":"Piezas","index":4,"n_rows":13,"n_cols":7,"rows_kept":13,"cut":false,"hidden":true,"merged":[]}
["FAN ♔|♕","Español","English","Française","Italiano","Deutsch","Português"]
["♔","R","K","R","R","K","R"]
["♕","D","Q","D","D","D","D"]
["♖","T","R","T","T","T","T"]
["♗","A","B","F","A","L","B"]
["♘","C","N","C","C","S","C"]
["♙","P","P","P","P","B","P"]
["♚","r","k","r","r","k","r"]
["♛","d","q","d","d","d","d"]
["♜","t","r","t","t","t","t"]
["♝","a","b","f","a","l","b"]
["♞","c","n","c","c","s","c"]
["♟","p","p","p","p","b","p"]